{"text_format":"1","workbook":"xlsx","n_sheets":4,"sheets":["Form","COP-LOP","Metinler","Form A"],"not_rendered":{"charts":0,"images":1,"macros":1,"external_links":0,"defined_names":1,"comments":0,"pivot_tables":0},"unopened":[],"bounds":{"document_bytes":16777216,"sheet_cells":100000,"rows_first":2000,"rows_last":500,"rows_between":2000,"halvings":0,"cell_chars":16384,"cell_head_chars":4096},"cells_cut":0,"cells_raw":0,"read":"whole","date_system":"1900"}

{"sheet":"Form","index":0,"n_rows":415,"n_cols":54,"rows_kept":415,"cut":false,"hidden":false,"merged":[[25,21,25,22],[18,20,18,21],[51,22,51,23],[47,5,47,9],[36,13,36,18],[50,8,50,9],[47,22,47,23],[48,22,48,23],[51,8,51,9],[49,22,49,23],[50,22,50,23],[31,4,31,8],[31,17,31,20],[49,8,49,9],[36,8,36,11],[37,8,37,10],[17,13,17,14],[11,21,11,25],[17,5,17,6],[17,20,17,21],[26,5,26,8],[26,12,26,15],[25,12,25,15],[24,12,24,15],[19,13,19,14],[20,6,20,11],[18,13,18,14],[24,21,24,22],[24,5,24,8],[25,5,25,8],[20,20,20,21],[18,5,18,8],[8,25,8,26],[13,2,13,10],[13,12,13,16],[8,23,8,24],[8,7,8,8],[8,14,8,15],[8,16,8,17],[8,19,8,20],[8,21,8,22],[13,18,13,25],[11,2,11,5],[7,7,7,13],[5,7,5,17],[5,20,5,26],[6,7,6,17],[7,21,7,22],[7,23,7,24],[7,25,7,26],[6,24,6,26],[77,14,81,26],[36,2,36,6],[44,2,46,14],[43,17,43,23],[44,16,46,24],[43,3,43,13],[72,5,72,26],[73,2,73,26],[74,2,74,26],[37,5,37,6],[37,17,37,18],[38,5,38,6]]}
[]
[]
[]
[null,null,null,null,{"$f":"Metinler!A18","v":"MİK-EL ELEKTRONİK KUMANDA PANOSU & BUTONYER TEKLİF / SİPARİŞ FORMU"},null,null,null,null,null,null,null,null,null,null,null,null,null,null,null,null,null,null,null,null,null,"TR",null,"    TR\n<= EN\n     RU"]
[]
[null,null,{"$f":"Metinler!A19","v":"Firma Adı"},null,null,null,null,null,null,null,null,null,null,null,null,null,null,null,null,{"$f":"Metinler!A24","v":"Tarih"},{"$f":"TODAY()","v":"2017-09-12"}]
[null,null,{"$f":"Metinler!A20","v":"Referans/Proje Adı"},null,null,null,null,null,null,null,null,null,null,null,null,null,null,null,null,{"$f":"Metinler!A25","v":"Talep Edilen Teslim Tarihi"}]
[null,null,{"$f":"Metinler!A21","v":"E-posta Adresi"}]
[null,null,{"$f":"Metinler!A22","v":"Adet"},null,null,null,null,null,null,{"$f":"Metinler!A23","v":"adet"}]
[]
[null,null,{"$f":"Metinler!A26","v":"Kumanda Sistemi Modeli"},null,null,null,null,null,null,null,null,null,null,null,null,null,null,null,null,null,null,{"$f":"Metinler!A31","v":"Asansör Standardı"}]
[null,null,null,null,null,null,{"$f":"VLOOKUP(C12,AU230:AV234,2,FALSE)","v":{"$error":"#N/A"}}]
[null,null,{"$f":"Metinler!A28","v":"Kumanda Türü"},null,null,null,null,null,null,null,null,null,{"$f":"Metinler!A29","v":"Tek / Grup Çalışma"},null,null,null,null,null,{"$f":"Metinler!A30","v":"Tahrik Türü"}]
[]
[]
[]
[null,null,{"$f":"Metinler!A32","v":"Genel Özellikler"}]
[null,null,{"$f":"Metinler!A33","v":"Durak Sayısı"},null,null,null,null,{"$f":"Metinler!A36","v":"Durak"},null,null,null,{"$f":"Metinler!A37","v":"Güç / Akım"},null,null,null,"kW",null,{"$f":"Metinler!A38","v":"Kabin Kapasitesi"},null,null,null,null,"Kg"]
[null,null,{"$f":"Metinler!A34","v":"Motor / Hidrolik"},null,null,null,null,null,null,null,null,null,null,null,null,"A",null,{"$f":"Metinler!A39","v":"Kabin Hızı"},null,null,null,null,"m/s"]
[]
[null,null,{"$f":"Metinler!A35","v":"Konum Bilgisi"},null,null,null,null,null,null,null,null,null,null,null,null,null,null,{"$f":"Metinler!A40","v":"Motor Fren Gerilimi"}]
[]
[]
[null,null,{"$f":"Metinler!A41","v":"Kapılar"},null,null,null,null,null,null,null,{"$f":"Metinler!A45","v":"2. Kapı (eğer varsa)"}]
[null,null,{"$f":"Metinler!A42","v":"Otomatik Kapı"},null,null,null,null,null,null,null,{"$f":"Metinler!A46","v":"Otomatik Kapı"},null,null,null,null,null,null,{"$f":"Metinler!A50","v":"Lirpomp Gerilimi"}]
[null,null,{"$f":"Metinler!A43","v":"Kat Kapısı"},null,null,null,null,null,null,null,{"$f":"Metinler!A47","v":"Kat Kapısı"},null,null,null,null,null,null,{"$f":"Metinler!A51","v":"3-Faz Kapı Mot. için 3VF"}]
[null,null,{"$f":"Metinler!A44","v":"Kapı Mot Volt"},null,null,null,null,null,null,null,{"$f":"Metinler!A48","v":"Kapı Mot Volt"}]
[null,null,null,null,null,null,null,null,null,null,null,null,{"$f":"IF(M25=\"\",\"\",Metinler!A49)","v":""}]
[]
[null,null,{"$f":"Metinler!A52","v":"VVVF Asansörler için Inverter Seçimi"}]
[null,null,null,null,{"$f":"Metinler!A53","v":"İnverter Modeli"},null,null,null,null,null,null,null,null,null,null,null,null,{"$f":"Metinler!A54","v":"Enkoder Kartı"}]
[]
[]
[]
[null,null,{"$f":"Metinler!A55","v":"Opsiyonlar & Diğer Özellikler"}]
[null,null,{"$f":"Metinler!A56","v":"Kata Getirme Cihazı"},null,null,null,null,null,{"$f":"Metinler!A59","v":"Kumanda Panosu Tipi"},null,null,null,null,{"$f":"Metinler!A61","v":"Kontaktör Tipi"},null,null,null,null,null,null,{"$f":"Metinler!A64","v":"3VF için Ekranlı Mot Kabl (7M)"}]
[null,null,null,null,null,null,null,null,null,null,null,null,null,null,null,null,null,null,null,null,{"$f":"Metinler!A65","v":"Elektrik Dağıtım Panosu"}]
[null,null,{"$f":"Metinler!A57","v":"Valf"},null,null,null,null,null,null,null,null,null,null,{"$f":"Metinler!A62","v":"Ön Tetik. Reg. Bobin Gerilimi"}]
[null,null,{"$f":"Metinler!A58","v":"Emniyet Devresi"},null,null,null,null,null,{"$f":"Metinler!A60","v":"Kum. Panosu için Baza"},null,null,null,null,{"$f":"Metinler!A63","v":"Seviyeleme & Erken Kapı Açma"}]
[null,null,null,null,null,null,null,null,null,null,null,null,null,null,null,{"$f":"IF(AH45=\"NO\",\"I don't need +-20mm for UCM ve EN81+A3 in this lift\",\"\")","v":""},null,null,null,null,null,null,{"$f":"Metinler!A66","v":"Revizyon kutusu dahildir."}]
[]
[null,null,{"$f":"Metinler!A67","v":"Kat ve Kabin Butonyerleri"}]
[null,null,null,null,null,null,null,null,null,null,null,null,null,null,null,null,{"$f":"IF(R44=\"\",\"\",Metinler!A88)","v":""}]
[null,null,{"$f":"Metinler!A68","v":"COP"},null,null,null,null,null,null,null,null,null,null,null,null,null,{"$f":"Metinler!B69","v":"LOPs"}]
[null,null,{"$f":"VLOOKUP(D44,'COP-LOP'!B95:C129,2,FALSE)","v":{"$error":"#N/A"}},null,null,null,null,null,null,null,null,null,null,null,null,null,{"$f":"VLOOKUP(R44,'COP-LOP'!B6:C91,2,FALSE)","v":0}]
[]
[]
[null,null,{"$f":"Metinler!A70","v":"Durak İsimleri"},null,null,null,null,null,null,null,null,null,null,null,null,null,{"$f":"Metinler!A74","v":"Kabin Butonyeri için Lazer Logo"}]
[null,null,null,null,null,null,null,null,null,null,null,null,null,null,null,null,{"$f":"Metinler!A75","v":"Kat Butonyeri için Lazer Logo"}]
[null,null,{"$f":"Metinler!A71","v":"Anons Modülü için 4GB SD Kart"},null,null,null,null,null,null,null,null,null,null,null,null,null,{"$f":"Metinler!A76","v":"SC24 Kartı için Kablo Seti"}]
[null,null,{"$f":"Metinler!A72","v":"Işıklandırmalı Firma Logosu"},null,null,null,null,null,null,null,null,null,null,null,null,null,{"$f":"Metinler!A77","v":"SL Kartları için Kablo Seti"}]
[null,null,{"$f":"Metinler!A73","v":"2. İntercom Modülü"},null,null,null,null,null,null,null,null,null,null,null,null,null,{"$f":"Metinler!A78","v":"Kabin But. & Rev. Kutusu Bağ. Kablosu"}]
[]
[]
[null,null,{"$f":"Metinler!A79","v":"Boş bırakılan VAR/YOK seçimleri 'YOK' kabul edilecektir."}]
[]
[]
[]
[]
[]
[]
[]
[]
[]
[]
[]
[]
[]
[]
[]
[]
[]
[null,null,{"$f":"Metinler!A80","v":"Notlar"}]
[]
[]
[]
[null,null,null,null,null,null,null,null,null,null,null,null,null,null,{"$f":"Metinler!A81","v":"Sipariş Onayı"}]
[]
[]
[]
[]
[]
[]
[]
[]
[null,null,null,null,null,null,null,null,null,null,null,null,null,null,null,null,null,null,null,null,null,null,null,null,null,null,null,null,null,null,null,null,null,null,null,null,null,null,null,null,null,null,null,null,null,null,null,null,"TR",null,"EN",null,"RU"]
[null,null,null,null,null,null,null,null,null,null,null,null,null,null,null,null,null,null,null,null,null,null,null,null,null,null,null,null,null,null,null,null,null,null,null,null,null,null,null,null,null,null,null,null,null,null,{"$f":"IF($AA$4=\"TR\",AW87,IF($AA$4=\"EN\",AY87,IF($AA$4=\"RU\",BA87,\"HATA!\")))","v":"VAR"},null,"VAR",null,"YES",null,"ДА"]
[null,null,null,null,null,null,null,null,null,null,null,null,null,null,null,null,null,null,null,null,null,null,null,null,null,null,null,null,null,null,null,null,null,null,null,null,null,null,null,null,null,null,null,null,null,null,{"$f":"IF($AA$4=\"TR\",AW88,IF($AA$4=\"EN\",AY88,IF($AA$4=\"RU\",BA88,\"HATA!\")))","v":"YOK"},null,"YOK",null,"NO",null,"НЕТ"]
[null,null,null,null,null,null,null,null,null,null,null,null,null,null,null,null,null,null,null,null,null,null,null,null,null,null,null,null,null,null,null,null,null,null,null,null,null,null,null,null,null,null,null,null,null,null,"Kontaktörler",null,"Kontaktörler",null,"Contactors",null,"Контаторы"]
[null,null,null,null,null,null,null,null,null,null,null,null,null,null,null,null,null,null,null,null,null,null,null,null,null,null,null,null,null,null,null,null,null,null,null,null,null,null,null,null,null,null,null,null,null,null,"Schneider D Serisi",null,"Schneider D Serisi",null,"Schneider D Serie",null,"Schneider D Serie"]
[null,null,null,null,null,null,null,null,null,null,null,null,null,null,null,null,null,null,null,null,null,null,null,null,null,null,null,null,null,null,null,null,null,null,null,null,null,null,null,null,null,null,null,null,null,null,"Schneider E Serisi (eko seri)",null,"Schneider E Serisi (eko seri)",null,"Schneider E Serie (eco serie)",null,"Schneider E Serie (eco serie)"]
[]
[null,null,null,null,null,null,null,null,null,null,null,null,null,null,null,null,null,null,null,null,null,null,null,null,null,null,null,null,null,null,null,null,null,null,null,null,null,null,null,null,null,null,null,null,null,null,{"$f":"IF($AA$4=\"TR\",AW93,IF($AA$4=\"EN\",AY93,IF($AA$4=\"RU\",BA93,\"HATA!\")))","v":"Kabin Hızı"},null,"Kabin Hızı",null,"Car Speed",null,"Скорость лифта"]
[null,null,null,null,null,null,null,null,null,null,null,null,null,null,null,null,null,null,null,null,null,null,null,null,null,null,null,null,null,null,null,null,null,null,null,null,null,null,null,null,null,null,null,null,null,null,0.5,null,0.5,null,0.5,null,0.5]
[null,null,null,null,null,null,null,null,null,null,null,null,null,null,null,null,null,null,null,null,null,null,null,null,null,null,null,null,null,null,null,null,null,null,null,null,null,null,null,null,null,null,null,null,null,null,0.63,null,0.63,null,0.63,null,0.63]
[null,null,null,null,null,null,null,null,null,null,null,null,null,null,null,null,null,null,null,null,null,null,null,null,null,null,null,null,null,null,null,null,null,null,null,null,null,null,null,null,null,null,null,null,null,null,1,null,1,null,1,null,1]
[null,null,null,null,null,null,null,null,null,null,null,null,null,null,null,null,null,null,null,null,null,null,null,null,null,null,null,null,null,null,null,null,null,null,null,null,null,null,null,null,null,null,null,null,null,null,1.2,null,1.2,null,1.2,null,1.2]
[null,null,null,null,null,null,null,null,null,null,null,null,null,null,null,null,null,null,null,null,null,null,null,null,null,null,null,null,null,null,null,null,null,null,null,null,null,null,null,null,null,null,null,null,null,null,1.6,null,1.6,null,1.6,null,1.6]
[null,null,null,null,null,null,null,null,null,null,null,null,null,null,null,null,null,null,null,null,null,null,null,null,null,null,null,null,null,null,null,null,null,null,null,null,null,null,null,null,null,null,null,null,null,null,2,null,2,null,2,null,2]
[null,null,null,null,null,null,null,null,null,null,null,null,null,null,null,null,null,null,null,null,null,null,null,null,null,null,null,null,null,null,null,null,null,null,null,null,null,null,null,null,null,null,null,null,null,null,2.5,null,2.5,null,2.5,null,2.5]
[]
[null,null,null,null,null,null,null,null,null,null,null,null,null,null,null,null,null,null,null,null,null,null,null,null,null,null,null,null,null,null,null,null,null,null,null,null,null,null,null,null,null,null,null,null,null,null,{"$f":"IF($AA$4=\"TR\",AW102,IF($AA$4=\"EN\",AY102,IF($AA$4=\"RU\",BA102,\"HATA!\")))","v":"Kabin Kapasitesi"},null,"Kabin Kapasitesi",null,"Car Capacity",null,"Грузоподъёмность"]
[null,null,null,null,null,null,null,null,null,null,null,null,null,null,null,null,null,null,null,null,null,null,null,null,null,null,null,null,null,null,null,null,null,null,null,null,null,null,null,null,null,null,null,null,null,null,320,null,320,null,320,null,320]
[null,null,null,null,null,null,null,null,null,null,null,null,null,null,null,null,null,null,null,null,null,null,null,null,null,null,null,null,null,null,null,null,null,null,null,null,null,null,null,null,null,null,null,null,null,null,450,null,450,null,450,null,450]
[null,null,null,null,null,null,null,null,null,null,null,null,null,null,null,null,null,null,null,null,null,null,null,null,null,null,null,null,null,null,null,null,null,null,null,null,null,null,null,null,null,null,null,null,null,null,630,null,630,null,630,null,630]
[null,null,null,null,null,null,null,null,null,null,null,null,null,null,null,null,null,null,null,null,null,null,null,null,null,null,null,null,null,null,null,null,null,null,null,null,null,null,null,null,null,null,null,null,null,null,750,null,750,null,750,null,750]
[null,null,null,null,null,null,null,null,null,null,null,null,null,null,null,null,null,null,null,null,null,null,null,null,null,null,null,null,null,null,null,null,null,null,null,null,null,null,null,null,null,null,null,null,null,null,800,null,800,null,800,null,800]
[null,null,null,null,null,null,null,null,null,null,null,null,null,null,null,null,null,null,null,null,null,null,null,null,null,null,null,null,null,null,null,null,null,null,null,null,null,null,null,null,null,null,null,null,null,null,1000,null,1000,null,1000,null,1000]
[null,null,null,null,null,null,null,null,null,null,null,null,null,null,null,null,null,null,null,null,null,null,null,null,null,null,null,null,null,null,null,null,null,null,null,null,null,null,null,null,null,null,null,null,null,null,1200,null,1200,null,1200,null,1200]
[null,null,null,null,null,null,null,null,null,null,null,null,null,null,null,null,null,null,null,null,null,null,null,null,null,null,null,null,null,null,null,null,null,null,null,null,null,null,null,null,null,null,null,null,null,null,1600,null,1600,null,1600,null,1600]
[null,null,null,null,null,null,null,null,null,null,null,null,null,null,null,null,null,null,null,null,null,null,null,null,null,null,null,null,null,null,null,null,null,null,null,null,null,null,null,null,null,null,null,null,null,null,2000,null,2000,null,2000,null,2000]
[null,null,null,null,null,null,null,null,null,null,null,null,null,null,null,null,null,null,null,null,null,null,null,null,null,null,null,null,null,null,null,null,null,null,null,null,null,null,null,null,null,null,null,null,null,null,3000,null,3000,null,3000,null,3000]
[null,null,null,null,null,null,null,null,null,null,null,null,null,null,null,null,null,null,null,null,null,null,null,null,null,null,null,null,null,null,null,null,null,null,null,null,null,null,null,null,null,null,null,null,null,null,4000,null,4000,null,4000,null,4000]
[]
[null,null,null,null,null,null,null,null,null,null,null,null,null,null,null,null,null,null,null,null,null,null,null,null,null,null,null,null,null,null,null,null,null,null,null,null,null,null,null,null,null,null,null,null,null,null,{"$f":"IF($AA$4=\"TR\",AW115,IF($AA$4=\"EN\",AY115,IF($AA$4=\"RU\",BA115,\"HATA!\")))","v":"Motor Fren Gerilimi"},null,"Motor Fren Gerilimi",null,"Motor Brake",null,"Тормозная катушка"]
[null,null,null,null,null,null,null,null,null,null,null,null,null,null,null,null,null,null,null,null,null,null,null,null,null,null,null,null,null,null,null,null,null,null,null,null,null,null,null,null,null,null,null,null,null,null,"60 V DC",null,"60 V DC",null,"60 V DC",null,"60 V DC"]
[null,null,null,null,null,null,null,null,null,null,null,null,null,null,null,null,null,null,null,null,null,null,null,null,null,null,null,null,null,null,null,null,null,null,null,null,null,null,null,null,null,null,null,null,null,null,"110 V DC",null,"110 V DC",null,"110 V DC",null,"110 V DC"]
[null,null,null,null,null,null,null,null,null,null,null,null,null,null,null,null,null,null,null,null,null,null,null,null,null,null,null,null,null,null,null,null,null,null,null,null,null,null,null,null,null,null,null,null,null,null,"190 V DC",null,"190 V DC",null,"190 V DC",null,"190 V DC"]
[null,null,null,null,null,null,null,null,null,null,null,null,null,null,null,null,null,null,null,null,null,null,null,null,null,null,null,null,null,null,null,null,null,null,null,null,null,null,null,null,null,null,null,null,null,null,"207 V DC",null,"207 V DC",null,"207 V DC",null,"207 V DC"]
[]
[null,null,null,null,null,null,null,null,null,null,null,null,null,null,null,null,null,null,null,null,null,null,null,null,null,null,null,null,null,null,null,null,null,null,null,null,null,null,null,null,null,null,null,null,null,null,{"$f":"IF($AA$4=\"TR\",AW121,IF($AA$4=\"EN\",AY121,IF($AA$4=\"RU\",BA121,\"HATA!\")))","v":"Valf"},null,"Valf",null,"Valve",null,"Клапан"]
[null,null,null,null,null,null,null,null,null,null,null,null,null,null,null,null,null,null,null,null,null,null,null,null,null,null,null,null,null,null,null,null,null,null,null,null,null,null,null,null,null,null,null,null,null,null,"12 V DC",null,"12 V DC",null,"12 V DC",null,"12 V DC"]
[null,null,null,null,null,null,null,null,null,null,null,null,null,null,null,null,null,null,null,null,null,null,null,null,null,null,null,null,null,null,null,null,null,null,null,null,null,null,null,null,null,null,null,null,null,null,"48 V DC",null,"48 V DC",null,"48 V DC",null,"48 V DC"]
[]
[null,null,null,null,null,null,null,null,null,null,null,null,null,null,null,null,null,null,null,null,null,null,null,null,null,null,null,null,null,null,null,null,null,null,null,null,null,null,null,null,null,null,null,null,null,null,{"$f":"IF($AA$4=\"TR\",AW125,IF($AA$4=\"EN\",AY125,IF($AA$4=\"RU\",BA125,\"HATA!\")))","v":"Lirpomp"},null,"Lirpomp",null,"Door Lock Magnet",null,"Дверной замок"]
[null,null,null,null,null,null,null,null,null,null,null,null,null,null,null,null,null,null,null,null,null,null,null,null,null,null,null,null,null,null,null,null,null,null,null,null,null,null,null,null,null,null,null,null,null,null,"YOK",null,"YOK",null,"NONE",null,"НЕТ"]
[null,null,null,null,null,null,null,null,null,null,null,null,null,null,null,null,null,null,null,null,null,null,null,null,null,null,null,null,null,null,null,null,null,null,null,null,null,null,null,null,null,null,null,null,null,null,"48 V DC",null,"48 V DC",null,"48 V DC",null,"48 V DC"]
[null,null,null,null,null,null,null,null,null,null,null,null,null,null,null,null,null,null,null,null,null,null,null,null,null,null,null,null,null,null,null,null,null,null,null,null,null,null,null,null,null,null,null,null,null,null,"190 V DC",null,"190 V DC",null,"190 V DC",null,"190 V DC"]
[]
[null,null,null,null,null,null,null,null,null,null,null,null,null,null,null,null,null,null,null,null,null,null,null,null,null,null,null,null,null,null,null,null,null,null,null,null,null,null,null,null,null,null,null,null,null,null,{"$f":"IF($AA$4=\"TR\",AW130,IF($AA$4=\"EN\",AY130,IF($AA$4=\"RU\",BA130,\"HATA!\")))","v":"Makine Markası"},null,"Makine Markası",null,"Machine Brand",null,"Модель Лебедки"]
[null,null,null,null,null,null,null,null,null,null,null,null,null,null,null,null,null,null,null,null,null,null,null,null,null,null,null,null,null,null,null,null,null,null,null,null,null,null,null,null,null,null,null,null,null,null,"A.SASSI",null,"A.SASSI",null,"A.SASSI",null,"A.SASSI"]
[null,null,null,null,null,null,null,null,null,null,null,null,null,null,null,null,null,null,null,null,null,null,null,null,null,null,null,null,null,null,null,null,null,null,null,null,null,null,null,null,null,null,null,null,null,null,"AKAR",null,"AKAR",null,"AKAR",null,"AKAR"]
[null,null,null,null,null,null,null,null,null,null,null,null,null,null,null,null,null,null,null,null,null,null,null,null,null,null,null,null,null,null,null,null,null,null,null,null,null,null,null,null,null,null,null,null,null,null,"AKAY",null,"AKAY",null,"AKAY",null,"AKAY"]
[null,null,null,null,null,null,null,null,null,null,null,null,null,null,null,null,null,null,null,null,null,null,null,null,null,null,null,null,null,null,null,null,null,null,null,null,null,null,null,null,null,null,null,null,null,null,"AKİŞ",null,"AKİŞ",null,"AKİŞ",null,"AKİŞ"]
[null,null,null,null,null,null,null,null,null,null,null,null,null,null,null,null,null,null,null,null,null,null,null,null,null,null,null,null,null,null,null,null,null,null,null,null,null,null,null,null,null,null,null,null,null,null,"ARK",null,"ARK",null,"ARK",null,"ARK"]
[null,null,null,null,null,null,null,null,null,null,null,null,null,null,null,null,null,null,null,null,null,null,null,null,null,null,null,null,null,null,null,null,null,null,null,null,null,null,null,null,null,null,null,null,null,null,"ASTES",null,"ASTES",null,"ASTES",null,"ASTES"]
[null,null,null,null,null,null,null,null,null,null,null,null,null,null,null,null,null,null,null,null,null,null,null,null,null,null,null,null,null,null,null,null,null,null,null,null,null,null,null,null,null,null,null,null,null,null,"EMF",null,"EMF",null,"EMF",null,"EMF"]
[null,null,null,null,null,null,null,null,null,null,null,null,null,null,null,null,null,null,null,null,null,null,null,null,null,null,null,null,null,null,null,null,null,null,null,null,null,null,null,null,null,null,null,null,null,null,"ENGİN",null,"ENGİN",null,"ENGİN",null,"ENGİN"]
[null,null,null,null,null,null,null,null,null,null,null,null,null,null,null,null,null,null,null,null,null,null,null,null,null,null,null,null,null,null,null,null,null,null,null,null,null,null,null,null,null,null,null,null,null,null,"LAFERT",null,"LAFERT",null,"LAFERT",null,"LAFERT"]
[null,null,null,null,null,null,null,null,null,null,null,null,null,null,null,null,null,null,null,null,null,null,null,null,null,null,null,null,null,null,null,null,null,null,null,null,null,null,null,null,null,null,null,null,null,null,"LEROY SOMER",null,"LEROY SOMER",null,"LEROY SOMER",null,"LEROY SOMER"]
[null,null,null,null,null,null,null,null,null,null,null,null,null,null,null,null,null,null,null,null,null,null,null,null,null,null,null,null,null,null,null,null,null,null,null,null,null,null,null,null,null,null,null,null,null,null,"LIFT EQUIP",null,"LIFT EQUIP",null,"LIFT EQUIP",null,"LIFT EQUIP"]
[null,null,null,null,null,null,null,null,null,null,null,null,null,null,null,null,null,null,null,null,null,null,null,null,null,null,null,null,null,null,null,null,null,null,null,null,null,null,null,null,null,null,null,null,null,null,"MONTANARI",null,"MONTANARI",null,"MONTANARI",null,"MONTANARI"]
[null,null,null,null,null,null,null,null,null,null,null,null,null,null,null,null,null,null,null,null,null,null,null,null,null,null,null,null,null,null,null,null,null,null,null,null,null,null,null,null,null,null,null,null,null,null,"NAGEL",null,"NAGEL",null,"NAGEL",null,"NAGEL"]
[null,null,null,null,null,null,null,null,null,null,null,null,null,null,null,null,null,null,null,null,null,null,null,null,null,null,null,null,null,null,null,null,null,null,null,null,null,null,null,null,null,null,null,null,null,null,"PERMAGSA",null,"PERMAGSA",null,"PERMAGSA",null,"PERMAGSA"]
[null,null,null,null,null,null,null,null,null,null,null,null,null,null,null,null,null,null,null,null,null,null,null,null,null,null,null,null,null,null,null,null,null,null,null,null,null,null,null,null,null,null,null,null,null,null,"SCHINDLER",null,"SCHINDLER",null,"SCHINDLER",null,"SCHINDLER"]
[null,null,null,null,null,null,null,null,null,null,null,null,null,null,null,null,null,null,null,null,null,null,null,null,null,null,null,null,null,null,null,null,null,null,null,null,null,null,null,null,null,null,null,null,null,null,"SICOR",null,"SICOR",null,"SICOR",null,"SICOR"]
[null,null,null,null,null,null,null,null,null,null,null,null,null,null,null,null,null,null,null,null,null,null,null,null,null,null,null,null,null,null,null,null,null,null,null,null,null,null,null,null,null,null,null,null,null,null,"ZIEHL ABEGG",null,"ZIEHL ABEGG",null,"ZIEHL ABEGG",null,"ZIEHL ABEGG"]
[null,null,null,null,null,null,null,null,null,null,null,null,null,null,null,null,null,null,null,null,null,null,null,null,null,null,null,null,null,null,null,null,null,null,null,null,null,null,null,null,null,null,null,null,null,null,"Hidrolik Markası",null,"Hidrolik Markası",null,"Hydraulic Brand",null,"Модель Гидравлики"]
[null,null,null,null,null,null,null,null,null,null,null,null,null,null,null,null,null,null,null,null,null,null,null,null,null,null,null,null,null,null,null,null,null,null,null,null,null,null,null,null,null,null,null,null,null,null,"BIOFIAL",null,"BIOFIAL",null,"BIOFIAL",null,"BIOFIAL"]
[null,null,null,null,null,null,null,null,null,null,null,null,null,null,null,null,null,null,null,null,null,null,null,null,null,null,null,null,null,null,null,null,null,null,null,null,null,null,null,null,null,null,null,null,null,null,"BUCHER",null,"BUCHER",null,"BUCHER",null,"BUCHER"]
[null,null,null,null,null,null,null,null,null,null,null,null,null,null,null,null,null,null,null,null,null,null,null,null,null,null,null,null,null,null,null,null,null,null,null,null,null,null,null,null,null,null,null,null,null,null,"GMV 3010 VALF",null,"GMV 3010 VALF",null,"GMV 3010 VALF",null,"GMV 3010 VALF"]
[null,null,null,null,null,null,null,null,null,null,null,null,null,null,null,null,null,null,null,null,null,null,null,null,null,null,null,null,null,null,null,null,null,null,null,null,null,null,null,null,null,null,null,null,null,null,"GMV 3100 VALF",null,"GMV 3100 VALF",null,"GMV 3100 VALF",null,"GMV 3100 VALF"]
[null,null,null,null,null,null,null,null,null,null,null,null,null,null,null,null,null,null,null,null,null,null,null,null,null,null,null,null,null,null,null,null,null,null,null,null,null,null,null,null,null,null,null,null,null,null,"GMV ENG VALF",null,"GMV ENG VALF",null,"GMV ENG VALF",null,"GMV ENG VALF"]
[null,null,null,null,null,null,null,null,null,null,null,null,null,null,null,null,null,null,null,null,null,null,null,null,null,null,null,null,null,null,null,null,null,null,null,null,null,null,null,null,null,null,null,null,null,null,"IGV",null,"IGV",null,"IGV",null,"IGV"]
[null,null,null,null,null,null,null,null,null,null,null,null,null,null,null,null,null,null,null,null,null,null,null,null,null,null,null,null,null,null,null,null,null,null,null,null,null,null,null,null,null,null,null,null,null,null,"KLEEMANN",null,"KLEEMANN",null,"KLEEMANN",null,"KLEEMANN"]
[null,null,null,null,null,null,null,null,null,null,null,null,null,null,null,null,null,null,null,null,null,null,null,null,null,null,null,null,null,null,null,null,null,null,null,null,null,null,null,null,null,null,null,null,null,null,"M0RE",null,"M0RE",null,"M0RE",null,"M0RE"]
[null,null,null,null,null,null,null,null,null,null,null,null,null,null,null,null,null,null,null,null,null,null,null,null,null,null,null,null,null,null,null,null,null,null,null,null,null,null,null,null,null,null,null,null,null,null,"MORİS",null,"MORİS",null,"MORİS",null,"MORİS"]
[]
[null,null,null,null,null,null,null,null,null,null,null,null,null,null,null,null,null,null,null,null,null,null,null,null,null,null,null,null,null,null,null,null,null,null,null,null,null,null,null,null,null,null,null,null,null,null,{"$f":"IF($AA$4=\"TR\",AW159,IF($AA$4=\"EN\",AY159,IF($AA$4=\"RU\",BA159,\"HATA!\")))","v":"Kapı Markası"},null,"Kapı Markası",null,"Door Brand",null,"Модель Дверного Привода"]
[null,null,null,null,null,null,null,null,null,null,null,null,null,null,null,null,null,null,null,null,null,null,null,null,null,null,null,null,null,null,null,null,null,null,null,null,null,null,null,null,null,null,null,null,null,null,"AKE OSMA",null,"AKE OSMA",null,"AKE OSMA",null,"AKE OSMA"]
[null,null,null,null,null,null,null,null,null,null,null,null,null,null,null,null,null,null,null,null,null,null,null,null,null,null,null,null,null,null,null,null,null,null,null,null,null,null,null,null,null,null,null,null,null,null,"ÇAĞIN CRİPPA",null,"ÇAĞIN CRİPPA",null,"ÇAĞIN CRİPPA",null,"ÇAĞIN CRİPPA"]
[null,null,null,null,null,null,null,null,null,null,null,null,null,null,null,null,null,null,null,null,null,null,null,null,null,null,null,null,null,null,null,null,null,null,null,null,null,null,null,null,null,null,null,null,null,null,"DEMAS",null,"DEMAS",null,"DEMAS",null,"DEMAS"]
[null,null,null,null,null,null,null,null,null,null,null,null,null,null,null,null,null,null,null,null,null,null,null,null,null,null,null,null,null,null,null,null,null,null,null,null,null,null,null,null,null,null,null,null,null,null,"EMAY",null,"EMAY",null,"EMAY",null,"EMAY"]
[null,null,null,null,null,null,null,null,null,null,null,null,null,null,null,null,null,null,null,null,null,null,null,null,null,null,null,null,null,null,null,null,null,null,null,null,null,null,null,null,null,null,null,null,null,null,"FABRE",null,"FABRE",null,"FABRE",null,"FABRE"]
[null,null,null,null,null,null,null,null,null,null,null,null,null,null,null,null,null,null,null,null,null,null,null,null,null,null,null,null,null,null,null,null,null,null,null,null,null,null,null,null,null,null,null,null,null,null,"FERMATOR 3VF",null,"FERMATOR 3VF",null,"FERMATOR 3VF",null,"FERMATOR 3VF"]
[null,null,null,null,null,null,null,null,null,null,null,null,null,null,null,null,null,null,null,null,null,null,null,null,null,null,null,null,null,null,null,null,null,null,null,null,null,null,null,null,null,null,null,null,null,null,"HAS",null,"HAS",null,"HAS",null,"HAS"]
[null,null,null,null,null,null,null,null,null,null,null,null,null,null,null,null,null,null,null,null,null,null,null,null,null,null,null,null,null,null,null,null,null,null,null,null,null,null,null,null,null,null,null,null,null,null,"HÜRAS",null,"HÜRAS",null,"HÜRAS",null,"HÜRAS"]
[null,null,null,null,null,null,null,null,null,null,null,null,null,null,null,null,null,null,null,null,null,null,null,null,null,null,null,null,null,null,null,null,null,null,null,null,null,null,null,null,null,null,null,null,null,null,"KATLANIR",null,"KATLANIR",null,"KATLANIR",null,"KATLANIR"]
[null,null,null,null,null,null,null,null,null,null,null,null,null,null,null,null,null,null,null,null,null,null,null,null,null,null,null,null,null,null,null,null,null,null,null,null,null,null,null,null,null,null,null,null,null,null,"KLEFER",null,"KLEFER",null,"KLEFER",null,"KLEFER"]
[null,null,null,null,null,null,null,null,null,null,null,null,null,null,null,null,null,null,null,null,null,null,null,null,null,null,null,null,null,null,null,null,null,null,null,null,null,null,null,null,null,null,null,null,null,null,"MEKİSAN",null,"MEKİSAN",null,"MEKİSAN",null,"MEKİSAN"]
[null,null,null,null,null,null,null,null,null,null,null,null,null,null,null,null,null,null,null,null,null,null,null,null,null,null,null,null,null,null,null,null,null,null,null,null,null,null,null,null,null,null,null,null,null,null,"MERİH",null,"MERİH",null,"MERİH",null,"MERİH"]
[null,null,null,null,null,null,null,null,null,null,null,null,null,null,null,null,null,null,null,null,null,null,null,null,null,null,null,null,null,null,null,null,null,null,null,null,null,null,null,null,null,null,null,null,null,null,"PRİSMA",null,"PRİSMA",null,"PRİSMA",null,"PRİSMA"]
[null,null,null,null,null,null,null,null,null,null,null,null,null,null,null,null,null,null,null,null,null,null,null,null,null,null,null,null,null,null,null,null,null,null,null,null,null,null,null,null,null,null,null,null,null,null,"PROLIFT",null,"PROLIFT",null,"PROLIFT",null,"PROLIFT"]
[null,null,null,null,null,null,null,null,null,null,null,null,null,null,null,null,null,null,null,null,null,null,null,null,null,null,null,null,null,null,null,null,null,null,null,null,null,null,null,null,null,null,null,null,null,null,"SEMATIC",null,"SEMATIC",null,"SEMATIC",null,"SEMATIC"]
[null,null,null,null,null,null,null,null,null,null,null,null,null,null,null,null,null,null,null,null,null,null,null,null,null,null,null,null,null,null,null,null,null,null,null,null,null,null,null,null,null,null,null,null,null,null,"TROMP",null,"TROMP",null,"TROMP",null,"TROMP"]
[null,null,null,null,null,null,null,null,null,null,null,null,null,null,null,null,null,null,null,null,null,null,null,null,null,null,null,null,null,null,null,null,null,null,null,null,null,null,null,null,null,null,null,null,null,null,"WITTUR HYDRA +",null,"WITTUR HYDRA +",null,"WITTUR HYDRA +",null,"WITTUR HYDRA +"]
[null,null,null,null,null,null,null,null,null,null,null,null,null,null,null,null,null,null,null,null,null,null,null,null,null,null,null,null,null,null,null,null,null,null,null,null,null,null,null,null,null,null,null,null,null,null,"YÜKSELİŞ",null,"YÜKSELİŞ",null,"YÜKSELİŞ",null,"YÜKSELİŞ"]
[null,null,null,null,null,null,null,null,null,null,null,null,null,null,null,null,null,null,null,null,null,null,null,null,null,null,null,null,null,null,null,null,null,null,null,null,null,null,null,null,null,null,null,null,null,null,"YOK",null,"YOK",null,"NONE",null,"NONE"]
[null,null,null,null,null,null,null,null,null,null,null,null,null,null,null,null,null,null,null,null,null,null,null,null,null,null,null,null,null,null,null,null,null,null,null,null,null,null,null,null,null,null,null,null,null,null,"Kat Kapısı",null,"Kat Kapısı",null,"Landing Door",null,"Этажные Двери"]
[null,null,null,null,null,null,null,null,null,null,null,null,null,null,null,null,null,null,null,null,null,null,null,null,null,null,null,null,null,null,null,null,null,null,null,null,null,null,null,null,null,null,null,null,null,null,"Aynı",null,"Aynı",null,"Same",null,"Такие же"]
[null,null,null,null,null,null,null,null,null,null,null,null,null,null,null,null,null,null,null,null,null,null,null,null,null,null,null,null,null,null,null,null,null,null,null,null,null,null,null,null,null,null,null,null,null,null,"Çarpma Kapı",null,"Çarpma Kapı",null,"Manual",null,"Распашные"]
[]
[null,null,null,null,null,null,null,null,null,null,null,null,null,null,null,null,null,null,null,null,null,null,null,null,null,null,null,null,null,null,null,null,null,null,null,null,null,null,null,null,null,null,null,null,null,null,{"$f":"IF($AA$4=\"TR\",AW183,IF($AA$4=\"EN\",AY183,IF($AA$4=\"RU\",BA183,\"HATA!\")))","v":"Regülatör Bobin Gerilimi"},null,"Regülatör Bobin Gerilimi",null,"Speed Governer Voltage",null,"Ограничитель скорости"]
[null,null,null,null,null,null,null,null,null,null,null,null,null,null,null,null,null,null,null,null,null,null,null,null,null,null,null,null,null,null,null,null,null,null,null,null,null,null,null,null,null,null,null,null,null,null,"YOK",null,"YOK",null,"NONE",null,"НЕТ"]
[null,null,null,null,null,null,null,null,null,null,null,null,null,null,null,null,null,null,null,null,null,null,null,null,null,null,null,null,null,null,null,null,null,null,null,null,null,null,null,null,null,null,null,null,null,null,"190 V DC",null,"190 V DC",null,"190 V DC",null,"190 V DC"]
[null,null,null,null,null,null,null,null,null,null,null,null,null,null,null,null,null,null,null,null,null,null,null,null,null,null,null,null,null,null,null,null,null,null,null,null,null,null,null,null,null,null,null,null,null,null,"24 V DC",null,"24 V DC",null,"24 V DC",null,"24 V DC"]
[null,null,null,null,null,null,null,null,null,null,null,null,null,null,null,null,null,null,null,null,null,null,null,null,null,null,null,null,null,null,null,null,null,null,null,null,null,null,null,null,null,null,null,null,null,null,"12 V DC",null,"12 V DC",null,"12 V DC",null,"12 V DC"]
[]
[null,null,null,null,null,null,null,null,null,null,null,null,null,null,null,null,null,null,null,null,null,null,null,null,null,null,null,null,null,null,null,null,null,null,null,null,null,null,null,null,null,null,null,null,null,null,{"$f":"IF($AA$4=\"TR\",AW189,IF($AA$4=\"EN\",AY189,IF($AA$4=\"RU\",BA189,\"HATA!\")))","v":"İnverter Modelleri"},null,"İnverter Modelleri",null,"Inverter Models",null,"Модель Инвертора"]
[null,null,null,null,null,null,null,null,null,null,null,null,null,null,null,null,null,null,null,null,null,null,null,null,null,null,null,null,null,null,null,null,null,null,null,null,null,null,null,null,null,null,null,null,null,null,"MIK-EL MD-STO Serisi",null,"MIK-EL MD-STO Serisi",null,"MIK-EL MD-STO Series",null,"MIK-EL MD-STO Series"]
[null,null,null,null,null,null,null,null,null,null,null,null,null,null,null,null,null,null,null,null,null,null,null,null,null,null,null,null,null,null,null,null,null,null,null,null,null,null,null,null,null,null,null,null,null,null,"MD-STO 15A",null,"MD-STO 15A",null,"MD-STO 15A",null,"MD-STO 15A"]
[null,null,null,null,null,null,null,null,null,null,null,null,null,null,null,null,null,null,null,null,null,null,null,null,null,null,null,null,null,null,null,null,null,null,null,null,null,null,null,null,null,null,null,null,null,null,"MD-STO 18A",null,"MD-STO 18A",null,"MD-STO 18A",null,"MD-STO 18A"]
[null,null,null,null,null,null,null,null,null,null,null,null,null,null,null,null,null,null,null,null,null,null,null,null,null,null,null,null,null,null,null,null,null,null,null,null,null,null,null,null,null,null,null,null,null,null,"MD-STO 22A",null,"MD-STO 22A",null,"MD-STO 22A",null,"MD-STO 22A"]
[null,null,null,null,null,null,null,null,null,null,null,null,null,null,null,null,null,null,null,null,null,null,null,null,null,null,null,null,null,null,null,null,null,null,null,null,null,null,null,null,null,null,null,null,null,null,"MD-STO 26A",null,"MD-STO 26A",null,"MD-STO 26A",null,"MD-STO 26A"]
[null,null,null,null,null,null,null,null,null,null,null,null,null,null,null,null,null,null,null,null,null,null,null,null,null,null,null,null,null,null,null,null,null,null,null,null,null,null,null,null,null,null,null,null,null,null,"MD-STO 34A",null,"MD-STO 34A",null,"MD-STO 34A",null,"MD-STO 34A"]
[null,null,null,null,null,null,null,null,null,null,null,null,null,null,null,null,null,null,null,null,null,null,null,null,null,null,null,null,null,null,null,null,null,null,null,null,null,null,null,null,null,null,null,null,null,null,"MIK-EL MD-2012 Serisi",null,"MIK-EL MD-2012 Serisi",null,"MIK-EL MD-2012 Series",null,"MIK-EL MD-2012 Series"]
[null,null,null,null,null,null,null,null,null,null,null,null,null,null,null,null,null,null,null,null,null,null,null,null,null,null,null,null,null,null,null,null,null,null,null,null,null,null,null,null,null,null,null,null,null,null,"MD-2012 15A",null,"MD-2012 15A",null,"MD-2012 15A",null,"MD-2012 15A"]
[null,null,null,null,null,null,null,null,null,null,null,null,null,null,null,null,null,null,null,null,null,null,null,null,null,null,null,null,null,null,null,null,null,null,null,null,null,null,null,null,null,null,null,null,null,null,"MD-2012 18A",null,"MD-2012 18A",null,"MD-2012 18A",null,"MD-2012 18A"]
[null,null,null,null,null,null,null,null,null,null,null,null,null,null,null,null,null,null,null,null,null,null,null,null,null,null,null,null,null,null,null,null,null,null,null,null,null,null,null,null,null,null,null,null,null,null,"MD-2012 22A",null,"MD-2012 22A",null,"MD-2012 22A",null,"MD-2012 22A"]
[null,null,null,null,null,null,null,null,null,null,null,null,null,null,null,null,null,null,null,null,null,null,null,null,null,null,null,null,null,null,null,null,null,null,null,null,null,null,null,null,null,null,null,null,null,null,"MD-2012 26A",null,"MD-2012 26A",null,"MD-2012 26A",null,"MD-2012 26A"]
[null,null,null,null,null,null,null,null,null,null,null,null,null,null,null,null,null,null,null,null,null,null,null,null,null,null,null,null,null,null,null,null,null,null,null,null,null,null,null,null,null,null,null,null,null,null,"MD-2012 34A",null,"MD-2012 34A",null,"MD-2012 34A",null,"MD-2012 34A"]
[null,null,null,null,null,null,null,null,null,null,null,null,null,null,null,null,null,null,null,null,null,null,null,null,null,null,null,null,null,null,null,null,null,null,null,null,null,null,null,null,null,null,null,null,null,null,"MD-2012 50A",null,"MD-2012 50A",null,"MD-2012 50A",null,"MD-2012 50A"]
[null,null,null,null,null,null,null,null,null,null,null,null,null,null,null,null,null,null,null,null,null,null,null,null,null,null,null,null,null,null,null,null,null,null,null,null,null,null,null,null,null,null,null,null,null,null,"MD-2012 66A",null,"MD-2012 66A",null,"MD-2012 66A",null,"MD-2012 66A"]
[null,null,null,null,null,null,null,null,null,null,null,null,null,null,null,null,null,null,null,null,null,null,null,null,null,null,null,null,null,null,null,null,null,null,null,null,null,null,null,null,null,null,null,null,null,null,"YASKAWA L1000A Serisi",null,"YASKAWA L1000A Serisi",null,"YASKAWA L1000A Series",null,"YASKAWA L1000A Series"]
[null,null,null,null,null,null,null,null,null,null,null,null,null,null,null,null,null,null,null,null,null,null,null,null,null,null,null,null,null,null,null,null,null,null,null,null,null,null,null,null,null,null,null,null,null,null,"L1000A 09A",null,"L1000A 09A",null,"L1000A 09A",null,"L1000A 09A"]
[null,null,null,null,null,null,null,null,null,null,null,null,null,null,null,null,null,null,null,null,null,null,null,null,null,null,null,null,null,null,null,null,null,null,null,null,null,null,null,null,null,null,null,null,null,null,"L1000A 15A",null,"L1000A 15A",null,"L1000A 15A",null,"L1000A 15A"]
[null,null,null,null,null,null,null,null,null,null,null,null,null,null,null,null,null,null,null,null,null,null,null,null,null,null,null,null,null,null,null,null,null,null,null,null,null,null,null,null,null,null,null,null,null,null,"L1000A 18A",null,"L1000A 18A",null,"L1000A 18A",null,"L1000A 18A"]
[null,null,null,null,null,null,null,null,null,null,null,null,null,null,null,null,null,null,null,null,null,null,null,null,null,null,null,null,null,null,null,null,null,null,null,null,null,null,null,null,null,null,null,null,null,null,"L1000A 24A",null,"L1000A 24A",null,"L1000A 24A",null,"L1000A 24A"]
[null,null,null,null,null,null,null,null,null,null,null,null,null,null,null,null,null,null,null,null,null,null,null,null,null,null,null,null,null,null,null,null,null,null,null,null,null,null,null,null,null,null,null,null,null,null,"L1000A 31A",null,"L1000A 31A",null,"L1000A 31A",null,"L1000A 31A"]
[null,null,null,null,null,null,null,null,null,null,null,null,null,null,null,null,null,null,null,null,null,null,null,null,null,null,null,null,null,null,null,null,null,null,null,null,null,null,null,null,null,null,null,null,null,null,"L1000A 39A",null,"L1000A 39A",null,"L1000A 39A",null,"L1000A 39A"]
[null,null,null,null,null,null,null,null,null,null,null,null,null,null,null,null,null,null,null,null,null,null,null,null,null,null,null,null,null,null,null,null,null,null,null,null,null,null,null,null,null,null,null,null,null,null,"L1000A 45A",null,"L1000A 45A",null,"L1000A 45A",null,"L1000A 45A"]
[null,null,null,null,null,null,null,null,null,null,null,null,null,null,null,null,null,null,null,null,null,null,null,null,null,null,null,null,null,null,null,null,null,null,null,null,null,null,null,null,null,null,null,null,null,null,"L1000A 60A",null,"L1000A 60A",null,"L1000A 60A",null,"L1000A 60A"]
[null,null,null,null,null,null,null,null,null,null,null,null,null,null,null,null,null,null,null,null,null,null,null,null,null,null,null,null,null,null,null,null,null,null,null,null,null,null,null,null,null,null,null,null,null,null,"L1000A 75A",null,"L1000A 75A",null,"L1000A 75A",null,"L1000A 75A"]
[null,null,null,null,null,null,null,null,null,null,null,null,null,null,null,null,null,null,null,null,null,null,null,null,null,null,null,null,null,null,null,null,null,null,null,null,null,null,null,null,null,null,null,null,null,null,"L1000A 91A",null,"L1000A 91A",null,"L1000A 91A",null,"L1000A 91A"]
[null,null,null,null,null,null,null,null,null,null,null,null,null,null,null,null,null,null,null,null,null,null,null,null,null,null,null,null,null,null,null,null,null,null,null,null,null,null,null,null,null,null,null,null,null,null,"L1000A 112A",null,"L1000A 112A",null,"L1000A 112A",null,"L1000A 112A"]
[]
[null,null,null,null,null,null,null,null,null,null,null,null,null,null,null,null,null,null,null,null,null,null,null,null,null,null,null,null,null,null,null,null,null,null,null,null,null,null,null,null,null,null,null,null,null,null,{"$f":"IF($AA$4=\"TR\",AW217,IF($AA$4=\"EN\",AY217,IF($AA$4=\"RU\",BA217,\"HATA!\")))","v":"Enkoder Kartı"},null,"Enkoder Kartı",null,"Encoder Card",null,"Экнодерная плата"]
[null,null,null,null,null,null,null,null,null,null,null,null,null,null,null,null,null,null,null,null,null,null,null,null,null,null,null,null,null,null,null,null,null,null,null,null,null,null,null,null,null,null,null,null,null,null,"MD-2012/STO için",null,"MD-2012/STO için",null,"for MD-2012/STO",null,"для MD-2012/STO"]
[null,null,null,null,null,null,null,null,null,null,null,null,null,null,null,null,null,null,null,null,null,null,null,null,null,null,null,null,null,null,null,null,null,null,null,null,null,null,null,null,null,null,null,null,null,null,"MD İnkremental",null,"MD İnkremental",null,"MD Incremental",null,"MD Incremental"]
[null,null,null,null,null,null,null,null,null,null,null,null,null,null,null,null,null,null,null,null,null,null,null,null,null,null,null,null,null,null,null,null,null,null,null,null,null,null,null,null,null,null,null,null,null,null,"EDT En-Dat",null,"EDT En-Dat",null,"EDT En-Dat",null,"EDT En-Dat"]
[null,null,null,null,null,null,null,null,null,null,null,null,null,null,null,null,null,null,null,null,null,null,null,null,null,null,null,null,null,null,null,null,null,null,null,null,null,null,null,null,null,null,null,null,null,null,"SCH Sin-Cos",null,"SCH Sin-Cos",null,"SCH Sin-Cos",null,"SCH Sin-Cos"]
[null,null,null,null,null,null,null,null,null,null,null,null,null,null,null,null,null,null,null,null,null,null,null,null,null,null,null,null,null,null,null,null,null,null,null,null,null,null,null,null,null,null,null,null,null,null,"L1000A için",null,"L1000A için",null,"for L1000A",null,"для L1000A"]
[null,null,null,null,null,null,null,null,null,null,null,null,null,null,null,null,null,null,null,null,null,null,null,null,null,null,null,null,null,null,null,null,null,null,null,null,null,null,null,null,null,null,null,null,null,null,"PG-B3 12 V(HTL)",null,"PG-B3 12 V(HTL)",null,"PG-B3 12 V(HTL)",null,"PG-B3 12 V(HTL)"]
[null,null,null,null,null,null,null,null,null,null,null,null,null,null,null,null,null,null,null,null,null,null,null,null,null,null,null,null,null,null,null,null,null,null,null,null,null,null,null,null,null,null,null,null,null,null,"PG-X3 5 V (TTL)",null,"PG-X3 5 V (TTL)",null,"PG-X3 5 V (TTL)",null,"PG-X3 5 V (TTL)"]
[null,null,null,null,null,null,null,null,null,null,null,null,null,null,null,null,null,null,null,null,null,null,null,null,null,null,null,null,null,null,null,null,null,null,null,null,null,null,null,null,null,null,null,null,null,null,"PG-F3 En-Dat",null,"PG-F3 En-Dat",null,"PG-F3 En-Dat",null,"PG-F3 En-Dat"]
[null,null,null,null,null,null,null,null,null,null,null,null,null,null,null,null,null,null,null,null,null,null,null,null,null,null,null,null,null,null,null,null,null,null,null,null,null,null,null,null,null,null,null,null,null,null,"PG-E3 Sin-Cos",null,"PG-E3 Sin-Cos",null,"PG-E3 Sin-Cos",null,"PG-E3 Sin-Cos"]
[null,null,null,null,null,null,null,null,null,null,null,null,null,null,null,null,null,null,null,null,null,null,null,null,null,null,null,null,null,null,null,null,null,null,null,null,null,null,null,null,null,null,null,null,null,null,"YOK - Açık Çevrim",null,"YOK - Açık Çevrim",null,"NONE - Open Loop",null,"НЕТ - Пусто"]
[]
[null,null,null,null,null,null,null,null,null,null,null,null,null,null,null,null,null,null,null,null,null,null,null,null,null,null,null,null,null,null,null,null,null,null,null,null,null,null,null,null,null,null,null,null,null,null,{"$f":"IF($AA$4=\"TR\",AW229,IF($AA$4=\"EN\",AY229,IF($AA$4=\"RU\",BA229,\"HATA!\")))","v":"Controllers"},null,"Controllers",null,"Controllers",null,"Станция Управления"]
[null,null,null,null,null,null,null,null,null,null,null,null,null,null,null,null,null,null,null,null,null,null,null,null,null,null,null,null,null,null,null,null,null,null,null,null,null,null,null,null,null,null,null,null,null,null,"SX-CLASSIC","Katlarla paralel, kabinle seri haberleşmeli (tek buton 16, çift buton 9, Hidrolik 7 durağa kadar)","SX-CLASSIC","Katlarla paralel, kabinle seri haberleşmeli (tek buton 16, çift buton 9, Hidrolik 7 durağa kadar)","SX-CLASSIC","Serial comm. with car via Can-Bus (max 16 stps single, 9 stps double button, Hyd 7 stps)","SX-CLASSIC","Серийное подкл. Can-Bus (макс. 16 ост. один., 9 ост. двойная кнопка, 7 ост. для гидрав.)"]
[null,null,null,null,null,null,null,null,null,null,null,null,null,null,null,null,null,null,null,null,null,null,null,null,null,null,null,null,null,null,null,null,null,null,null,null,null,null,null,null,null,null,null,null,null,null,"SX-PLUS","Katlarla ve kabinle seri haberleşmeli (Tek ya da çift buton 24 durağa kadar)","SX-PLUS","Katlarla ve kabinle seri haberleşmeli (Tek ya da çift buton 24 durağa kadar)","SX-PLUS","Serial comm. with car, COP & landings via Can-Bus (max 24 stops single or double button)","SX-PLUS","Серийное подкл. Пльта приказов, COP и кнопок вызова Can-Bus (макс. 24 ост. С одной или двумя кнопами)"]
[null,null,null,null,null,null,null,null,null,null,null,null,null,null,null,null,null,null,null,null,null,null,null,null,null,null,null,null,null,null,null,null,null,null,null,null,null,null,null,null,null,null,null,null,null,null,"SX-ULTRA-S","Katlarla ve kabinle seri haberleşmeli (Tek ya da çift buton 48 durağa kadar)","SX-ULTRA-S","Katlarla ve kabinle seri haberleşmeli (Tek ya da çift buton 48 durağa kadar)","SX-ULTRA-S","Serial comm. with car, COP & landings via Can-Bus (max 48 stops single or double button)","SX-ULTRA-S","Серийное подкл. Пльта приказов, COP и кнопок вызова Can-Bus (макс. 48 ост. С одной или двумя кнопами)"]
[null,null,null,null,null,null,null,null,null,null,null,null,null,null,null,null,null,null,null,null,null,null,null,null,null,null,null,null,null,null,null,null,null,null,null,null,null,null,null,null,null,null,null,null,null,null,"SX-ULTRA-P","Katlarla paralel, kabinle seri haberleşmeli (tek buton 24, çift buton 13 durağa kadar)","SX-ULTRA-P","Katlarla paralel, kabinle seri haberleşmeli (tek buton 24, çift buton 13 durağa kadar)","SX-ULTRA-P","Serial comm. with car via Can-Bus (max 24 stps single, 13 stps double button)","SX-ULTRA-P","Серийное подкл. пульта приаз. Can-Bus (макс. 24 ост. С одной, 13 ост. С двумя кнопками)"]
[null,null,null,null,null,null,null,null,null,null,null,null,null,null,null,null,null,null,null,null,null,null,null,null,null,null,null,null,null,null,null,null,null,null,null,null,null,null,null,null,null,null,null,null,null,null,"S-MS","Küçük yük asansörleri için (5 durağa kadar çağır-gönder kumanda)","S-MS","Küçük yük asansörleri için (5 durağa kadar çağır-gönder kumanda)","S-MS","Daumbwaiter (call-send, max 5 stops)","S-MS","Не большой подъемник (этажные кнопки приказа, макс. 5 ост.)"]
[]
[null,null,null,null,null,null,null,null,null,null,null,null,null,null,null,null,null,null,null,null,null,null,null,null,null,null,null,null,null,null,null,null,null,null,null,null,null,null,null,null,null,null,null,null,null,null,{"$f":"IF($AA$4=\"TR\",AW236,IF($AA$4=\"EN\",AY236,IF($AA$4=\"RU\",BA236,\"HATA!\")))","v":"Kumanda Tipleri"},null,"Kumanda Tipleri",null,"Control Types",null,"Control Types"]
[null,null,null,null,null,null,null,null,null,null,null,null,null,null,null,null,null,null,null,null,null,null,null,null,null,null,null,null,null,null,null,null,null,null,null,null,null,null,null,null,null,null,null,null,null,null,"Tek buton inişte toplamalı (KSA)",null,"Tek buton inişte toplamalı (KSA)",null,"Single button down-collective (KSA)",null,"Одинарная кнопка в низ (KSA)"]
[null,null,null,null,null,null,null,null,null,null,null,null,null,null,null,null,null,null,null,null,null,null,null,null,null,null,null,null,null,null,null,null,null,null,null,null,null,null,null,null,null,null,null,null,null,null,"Çift buton çift yönde toplamalı (KS)",null,"Çift buton çift yönde toplamalı (KS)",null,"Double button selective-collective (KS)",null,"Двойная кнопка селектив. (KS)"]
[]
[null,null,null,null,null,null,null,null,null,null,null,null,null,null,null,null,null,null,null,null,null,null,null,null,null,null,null,null,null,null,null,null,null,null,null,null,null,null,null,null,null,null,null,null,null,null,{"$f":"IF($AA$4=\"TR\",AW240,IF($AA$4=\"EN\",AY240,IF($AA$4=\"RU\",BA240,\"HATA!\")))","v":"Tek / Grup"},null,"Tek / Grup",null,"Single / Group",null,"Одиночный / В Группе"]
[null,null,null,null,null,null,null,null,null,null,null,null,null,null,null,null,null,null,null,null,null,null,null,null,null,null,null,null,null,null,null,null,null,null,null,null,null,null,null,null,null,null,null,null,null,null,"Simpleks",null,"Simpleks",null,"Simplex",null,"Симплекс (один)"]
[null,null,null,null,null,null,null,null,null,null,null,null,null,null,null,null,null,null,null,null,null,null,null,null,null,null,null,null,null,null,null,null,null,null,null,null,null,null,null,null,null,null,null,null,null,null,"Dubleks (2 asansör birlikte)",null,"Dubleks (2 asansör birlikte)",null,"Duplex (2 lifts in a group)",null,"Дуплес (2 лифта в группе)"]
[null,null,null,null,null,null,null,null,null,null,null,null,null,null,null,null,null,null,null,null,null,null,null,null,null,null,null,null,null,null,null,null,null,null,null,null,null,null,null,null,null,null,null,null,null,null,"Tripleks (3 asansör birlikte)",null,"Tripleks (3 asansör birlikte)",null,"Triplex (3 lifts in a group)",null,"Триплекс (3 лифта в группе)"]
[null,null,null,null,null,null,null,null,null,null,null,null,null,null,null,null,null,null,null,null,null,null,null,null,null,null,null,null,null,null,null,null,null,null,null,null,null,null,null,null,null,null,null,null,null,null,"Quattro plex (4 asansör birlikte)",null,"Quattro plex (4 asansör birlikte)",null,"Quattro plex (4 lifts in a group)",null,"Кватро (4 лифта в группе)"]
[]
[null,null,null,null,null,null,null,null,null,null,null,null,null,null,null,null,null,null,null,null,null,null,null,null,null,null,null,null,null,null,null,null,null,null,null,null,null,null,null,null,null,null,null,null,null,null,{"$f":"IF($AA$4=\"TR\",AW246,IF($AA$4=\"EN\",AY246,IF($AA$4=\"RU\",BA246,\"HATA!\")))","v":"Tahrik Türü"},null,"Tahrik Türü",null,"Traction",null,"Привод"]
[null,null,null,null,null,null,null,null,null,null,null,null,null,null,null,null,null,null,null,null,null,null,null,null,null,null,null,null,null,null,null,null,null,null,null,null,null,null,null,null,null,null,null,null,null,null,"VVVF Dişlisiz",null,"VVVF Dişlisiz",null,"VVVF Gearless",null,"VVVF Без редуктора"]
[null,null,null,null,null,null,null,null,null,null,null,null,null,null,null,null,null,null,null,null,null,null,null,null,null,null,null,null,null,null,null,null,null,null,null,null,null,null,null,null,null,null,null,null,null,null,"VVVF Dişlili",null,"VVVF Dişlili",null,"VVVF Geared",null,"VVVF С редуктором"]
[null,null,null,null,null,null,null,null,null,null,null,null,null,null,null,null,null,null,null,null,null,null,null,null,null,null,null,null,null,null,null,null,null,null,null,null,null,null,null,null,null,null,null,null,null,null,"Hidrolik (Yıldız-Üçgen)",null,"Hidrolik (Yıldız-Üçgen)",null,"Hydraulic (Star-Delta)",null,"Hydraulic (Star-Delta)"]
[null,null,null,null,null,null,null,null,null,null,null,null,null,null,null,null,null,null,null,null,null,null,null,null,null,null,null,null,null,null,null,null,null,null,null,null,null,null,null,null,null,null,null,null,null,null,"Hidrolik (Soft Start'a Uygun)",null,"Hidrolik (Soft Start'a Uygun)",null,"Hydraulic (Ready for Soft Starter)",null,"Hydraulic (Ready for Soft Starter)"]
[null,null,null,null,null,null,null,null,null,null,null,null,null,null,null,null,null,null,null,null,null,null,null,null,null,null,null,null,null,null,null,null,null,null,null,null,null,null,null,null,null,null,null,null,null,null,"Hidrolik (Doğrudan Yol Verme)",null,"Hidrolik (Doğrudan Yol Verme)",null,"Hydraulic (Direct Start)",null,"Hydraulic (Direct Start)"]
[null,null,null,null,null,null,null,null,null,null,null,null,null,null,null,null,null,null,null,null,null,null,null,null,null,null,null,null,null,null,null,null,null,null,null,null,null,null,null,null,null,null,null,null,null,null,"Çift Hızlı",null,"Çift Hızlı",null,"Two Speed",null,"Двух соростной"]
[null,null,null,null,null,null,null,null,null,null,null,null,null,null,null,null,null,null,null,null,null,null,null,null,null,null,null,null,null,null,null,null,null,null,null,null,null,null,null,null,null,null,null,null,null,null,"Tek Hızlı",null,"Tek Hızlı",null,"Single Speed",null,"Односкоростной"]
[]
[null,null,null,null,null,null,null,null,null,null,null,null,null,null,null,null,null,null,null,null,null,null,null,null,null,null,null,null,null,null,null,null,null,null,null,null,null,null,null,null,null,null,null,null,null,null,{"$f":"IF($AA$4=\"TR\",AW255,IF($AA$4=\"EN\",AY255,IF($AA$4=\"RU\",BA255,\"HATA!\")))","v":"Konum Bilgisi"},null,"Konum Bilgisi",null,"Shaft Copy",null,"Копирование шахты"]
[null,null,null,null,null,null,null,null,null,null,null,null,null,null,null,null,null,null,null,null,null,null,null,null,null,null,null,null,null,null,null,null,null,null,null,null,null,null,null,null,null,null,null,null,null,null,"Enkoderli Kuyu Kopyalama",null,"Enkoderli Kuyu Kopyalama",null,"Shaft Copying via motor encoder",null,"Копирование шахты Энкодэром"]
[null,null,null,null,null,null,null,null,null,null,null,null,null,null,null,null,null,null,null,null,null,null,null,null,null,null,null,null,null,null,null,null,null,null,null,null,null,null,null,null,null,null,null,null,null,null,"Sayıcı Şalter",null,"Sayıcı Şalter",null,"Counter Switch (Mikopulse)",null,"Датчик (Mikopulse)"]
[null,null,null,null,null,null,null,null,null,null,null,null,null,null,null,null,null,null,null,null,null,null,null,null,null,null,null,null,null,null,null,null,null,null,null,null,null,null,null,null,null,null,null,null,null,null,"Grey kod",null,"Grey kod",null,"Gray Code",null,"Грей код"]
[]
[null,null,null,null,null,null,null,null,null,null,null,null,null,null,null,null,null,null,null,null,null,null,null,null,null,null,null,null,null,null,null,null,null,null,null,null,null,null,null,null,null,null,null,null,null,null,{"$f":"IF($AA$4=\"TR\",AW260,IF($AA$4=\"EN\",AY260,IF($AA$4=\"RU\",BA260,\"HATA!\")))","v":"Otomatik Kapı"},null,"Otomatik Kapı",null,"Oto Door",null,"Дверной привод"]
[null,null,null,null,null,null,null,null,null,null,null,null,null,null,null,null,null,null,null,null,null,null,null,null,null,null,null,null,null,null,null,null,null,null,null,null,null,null,null,null,null,null,null,null,null,null,"220 V AC",null,"220 V AC",null,"220 V AC",null,"220 V AC"]
[null,null,null,null,null,null,null,null,null,null,null,null,null,null,null,null,null,null,null,null,null,null,null,null,null,null,null,null,null,null,null,null,null,null,null,null,null,null,null,null,null,null,null,null,null,null,"24 V DC",null,"24 V DC",null,"24 V DC",null,"24 V DC"]
[null,null,null,null,null,null,null,null,null,null,null,null,null,null,null,null,null,null,null,null,null,null,null,null,null,null,null,null,null,null,null,null,null,null,null,null,null,null,null,null,null,null,null,null,null,null,"3 FAZ",null,"3 FAZ",null,"3 PHASE",null,"3 PHASE"]
[null,null,null,null,null,null,null,null,null,null,null,null,null,null,null,null,null,null,null,null,null,null,null,null,null,null,null,null,null,null,null,null,null,null,null,null,null,null,null,null,null,null,null,null,null,null,"Diğer",null,"Diğer",null,"Other",null,"Другой"]
[]
[null,null,null,null,null,null,null,null,null,null,null,null,null,null,null,null,null,null,null,null,null,null,null,null,null,null,null,null,null,null,null,null,null,null,null,null,null,null,null,null,null,null,null,null,null,null,{"$f":"IF($AA$4=\"TR\",AW266,IF($AA$4=\"EN\",AY266,IF($AA$4=\"RU\",BA266,\"HATA!\")))","v":"ARD"},null,"ARD",null,"ARD",null,"ARD"]
[null,null,null,null,null,null,null,null,null,null,null,null,null,null,null,null,null,null,null,null,null,null,null,null,null,null,null,null,null,null,null,null,null,null,null,null,null,null,null,null,null,null,null,null,null,null,"UPS",null,"UPS",null,"UPS",null,"UPS"]
[null,null,null,null,null,null,null,null,null,null,null,null,null,null,null,null,null,null,null,null,null,null,null,null,null,null,null,null,null,null,null,null,null,null,null,null,null,null,null,null,null,null,null,null,null,null,"Servosan Kurtaran",null,"Servosan Kurtaran",null,"Servosan ARD",null,"Servosan ARD"]
[null,null,null,null,null,null,null,null,null,null,null,null,null,null,null,null,null,null,null,null,null,null,null,null,null,null,null,null,null,null,null,null,null,null,null,null,null,null,null,null,null,null,null,null,null,null,"UPS'ye Uygun",null,"UPS'ye Uygun",null,"Ready for UPS",null,"Ready for UPS"]
[null,null,null,null,null,null,null,null,null,null,null,null,null,null,null,null,null,null,null,null,null,null,null,null,null,null,null,null,null,null,null,null,null,null,null,null,null,null,null,null,null,null,null,null,null,null,"Yok",null,"Yok",null,"None",null,"Нет"]
[]
[null,null,null,null,null,null,null,null,null,null,null,null,null,null,null,null,null,null,null,null,null,null,null,null,null,null,null,null,null,null,null,null,null,null,null,null,null,null,null,null,null,null,null,null,null,null,{"$f":"IF($AA$4=\"TR\",AW272,IF($AA$4=\"EN\",AY272,IF($AA$4=\"RU\",BA272,\"HATA!\")))","v":"KP Tipi"},null,"KP Tipi",null,"CP Types",null,"Тип СУ"]
[null,null,null,null,null,null,null,null,null,null,null,null,null,null,null,null,null,null,null,null,null,null,null,null,null,null,null,null,null,null,null,null,null,null,null,null,null,null,null,null,null,null,null,null,null,null,"Standart Pano",null,"Standart Pano",null,"Standard Type",null,"Стандартный"]
[null,null,null,null,null,null,null,null,null,null,null,null,null,null,null,null,null,null,null,null,null,null,null,null,null,null,null,null,null,null,null,null,null,null,null,null,null,null,null,null,null,null,null,null,null,null,"Uzun Pano",null,"Uzun Pano",null,"Long Type",null,"Высокий"]
[null,null,null,null,null,null,null,null,null,null,null,null,null,null,null,null,null,null,null,null,null,null,null,null,null,null,null,null,null,null,null,null,null,null,null,null,null,null,null,null,null,null,null,null,null,null,"Slim Pano",null,"Slim Pano",null,"Slim Type",null,"Узкий"]
[null,null,null,null,null,null,null,null,null,null,null,null,null,null,null,null,null,null,null,null,null,null,null,null,null,null,null,null,null,null,null,null,null,null,null,null,null,null,null,null,null,null,null,null,null,null,"Özel Ölçülü Pano",null,"Özel Ölçülü Pano",null,"Custom Size",null,"Другой размер"]
[]
[null,null,null,null,null,null,null,null,null,null,null,null,null,null,null,null,null,null,null,null,null,null,null,null,null,null,null,null,null,null,null,null,null,null,null,null,null,null,null,null,null,null,null,null,null,null,{"$f":"IF($AA$4=\"TR\",AW278,IF($AA$4=\"EN\",AY278,IF($AA$4=\"RU\",BA278,\"HATA!\")))","v":"Standart"},null,"Standart",null,"Standards",null,"Стандарты"]
[null,null,null,null,null,null,null,null,null,null,null,null,null,null,null,null,null,null,null,null,null,null,null,null,null,null,null,null,null,null,null,null,null,null,null,null,null,null,null,null,null,null,null,null,null,null,"EN81-20'ye Uygun",null,"EN81-20'ye Uygun",null,"EN81-20 Compatible",null,"EN81-20 Compatible"]
[null,null,null,null,null,null,null,null,null,null,null,null,null,null,null,null,null,null,null,null,null,null,null,null,null,null,null,null,null,null,null,null,null,null,null,null,null,null,null,null,null,null,null,null,null,null,"EN81+A3'e Uygun",null,"EN81+A3'e Uygun",null,"EN81+A3 Compatible",null,"EN81+A3 Compatible"]
[null,null,null,null,null,null,null,null,null,null,null,null,null,null,null,null,null,null,null,null,null,null,null,null,null,null,null,null,null,null,null,null,null,null,null,null,null,null,null,null,null,null,null,null,null,null,"Diğer",null,"Diğer",null,"Other",null,"Другой"]
[]
[null,null,null,null,null,null,null,null,null,null,null,null,null,null,null,null,null,null,null,null,null,null,null,null,null,null,null,null,null,null,null,null,null,null,null,null,null,null,null,null,null,null,null,null,null,null,{"$f":"IF($AA$4=\"TR\",AW283,IF($AA$4=\"EN\",AY283,IF($AA$4=\"RU\",BA283,\"HATA!\")))","v":"Emniyet Devresi"},null,"Emniyet Devresi",null,"Safety Circuit",null,"Цепь безопасности"]
[null,null,null,null,null,null,null,null,null,null,null,null,null,null,null,null,null,null,null,null,null,null,null,null,null,null,null,null,null,null,null,null,null,null,null,null,null,null,null,null,null,null,null,null,null,null,"230 V AC",null,"230 V AC",null,"230 V AC",null,"230 V AC"]
[null,null,null,null,null,null,null,null,null,null,null,null,null,null,null,null,null,null,null,null,null,null,null,null,null,null,null,null,null,null,null,null,null,null,null,null,null,null,null,null,null,null,null,null,null,null,"110 V AC",null,"110 V AC",null,"110 V AC",null,"110 V AC"]
[null,null,null,null,null,null,null,null,null,null,null,null,null,null,null,null,null,null,null,null,null,null,null,null,null,null,null,null,null,null,null,null,null,null,null,null,null,null,null,null,null,null,null,null,null,null,"48 V AC",null,"48 V AC",null,"48 V AC",null,"48 V AC"]
[null,null,null,null,null,null,null,null,null,null,null,null,null,null,null,null,null,null,null,null,null,null,null,null,null,null,null,null,null,null,null,null,null,null,null,null,null,null,null,null,null,null,null,null,null,null,"24 V AC",null,"24 V AC",null,"24 V AC",null,"24 V AC"]
[null,null,null,null,null,null,null,null,null,null,null,null,null,null,null,null,null,null,null,null,null,null,null,null,null,null,null,null,null,null,null,null,null,null,null,null,null,null,null,null,null,null,null,null,null,null,"48 V DC",null,"48 V DC",null,"48 V DC",null,"48 V DC"]
[null,null,null,null,null,null,null,null,null,null,null,null,null,null,null,null,null,null,null,null,null,null,null,null,null,null,null,null,null,null,null,null,null,null,null,null,null,null,null,null,null,null,null,null,null,null,"24 V DC",null,"24 V DC",null,"24 V DC",null,"24 V DC"]
[]
[]
[]
[]
[]
[]
[]
[]
[]
[]
[]
[]
[null,null,null,null,null,null,null,null,null,null,null,null,null,null,null,null,null,null,null,null,null,null,null,null,null,null,null,null,null,null,null,null,null,null,null,null,null,null,null,null,null,null,null,null,null,null,null,null,null,{"$f":"TODAY()","v":"2017-09-12"}]
[null,null,null,null,null,null,null,null,null,null,null,null,null,null,null,null,null,null,null,null,null,null,null,null,null,null,null,null,null,null,null,null,null,null,null,null,null,null,null,null,null,null,null,null,null,null,null,null,null,"Delivery Date"]
[null,null,null,null,null,null,null,null,null,null,null,null,null,null,null,null,null,null,null,null,null,null,null,null,null,null,null,null,null,null,null,null,null,null,null,null,null,null,null,null,null,null,null,null,null,null,null,null,null,{"$f":"AX302+10","v":"2017-09-22"}]
[null,null,null,null,null,null,null,null,null,null,null,null,null,null,null,null,null,null,null,null,null,null,null,null,null,null,null,null,null,null,null,null,null,null,null,null,null,null,null,null,null,null,null,null,null,null,null,null,null,{"$f":"AX304+1","v":"2017-09-23"}]
[null,null,null,null,null,null,null,null,null,null,null,null,null,null,null,null,null,null,null,null,null,null,null,null,null,null,null,null,null,null,null,null,null,null,null,null,null,null,null,null,null,null,null,null,null,null,null,null,null,{"$f":"AX305+1","v":"2017-09-24"}]
[null,null,null,null,null,null,null,null,null,null,null,null,null,null,null,null,null,null,null,null,null,null,null,null,null,null,null,null,null,null,null,null,null,null,null,null,null,null,null,null,null,null,null,null,null,null,null,null,null,{"$f":"AX306+1","v":"2017-09-25"}]
[null,null,null,null,null,null,null,null,null,null,null,null,null,null,null,null,null,null,null,null,null,null,null,null,null,null,null,null,null,null,null,null,null,null,null,null,null,null,null,null,null,null,null,null,null,null,null,null,null,"2017-09-26"]
[null,null,null,null,null,null,null,null,null,null,null,null,null,null,null,null,null,null,null,null,null,null,null,null,null,null,null,null,null,null,null,null,null,null,null,null,null,null,null,null,null,null,null,null,null,null,null,null,null,"2017-09-27"]
[null,null,null,null,null,null,null,null,null,null,null,null,null,null,null,null,null,null,null,null,null,null,null,null,null,null,null,null,null,null,null,null,null,null,null,null,null,null,null,null,null,null,null,null,null,null,null,null,null,"2017-09-28"]
[null,null,null,null,null,null,null,null,null,null,null,null,null,null,null,null,null,null,null,null,null,null,null,null,null,null,null,null,null,null,null,null,null,null,null,null,null,null,null,null,null,null,null,null,null,null,null,null,null,"2017-09-29"]
[null,null,null,null,null,null,null,null,null,null,null,null,null,null,null,null,null,null,null,null,null,null,null,null,null,null,null,null,null,null,null,null,null,null,null,null,null,null,null,null,null,null,null,null,null,null,null,null,null,"2017-09-30"]
[null,null,null,null,null,null,null,null,null,null,null,null,null,null,null,null,null,null,null,null,null,null,null,null,null,null,null,null,null,null,null,null,null,null,null,null,null,null,null,null,null,null,null,null,null,null,null,null,null,"2017-10-01"]
[null,null,null,null,null,null,null,null,null,null,null,null,null,null,null,null,null,null,null,null,null,null,null,null,null,null,null,null,null,null,null,null,null,null,null,null,null,null,null,null,null,null,null,null,null,null,null,null,null,"2017-10-02"]
[null,null,null,null,null,null,null,null,null,null,null,null,null,null,null,null,null,null,null,null,null,null,null,null,null,null,null,null,null,null,null,null,null,null,null,null,null,null,null,null,null,null,null,null,null,null,null,null,null,"2017-10-03"]
[null,null,null,null,null,null,null,null,null,null,null,null,null,null,null,null,null,null,null,null,null,null,null,null,null,null,null,null,null,null,null,null,null,null,null,null,null,null,null,null,null,null,null,null,null,null,null,null,null,"2017-10-04"]
[null,null,null,null,null,null,null,null,null,null,null,null,null,null,null,null,null,null,null,null,null,null,null,null,null,null,null,null,null,null,null,null,null,null,null,null,null,null,null,null,null,null,null,null,null,null,null,null,null,"2017-10-05"]
[null,null,null,null,null,null,null,null,null,null,null,null,null,null,null,null,null,null,null,null,null,null,null,null,null,null,null,null,null,null,null,null,null,null,null,null,null,null,null,null,null,null,null,null,null,null,null,null,null,"2017-10-06"]
[null,null,null,null,null,null,null,null,null,null,null,null,null,null,null,null,null,null,null,null,null,null,null,null,null,null,null,null,null,null,null,null,null,null,null,null,null,null,null,null,null,null,null,null,null,null,null,null,null,"2017-10-07"]
[null,null,null,null,null,null,null,null,null,null,null,null,null,null,null,null,null,null,null,null,null,null,null,null,null,null,null,null,null,null,null,null,null,null,null,null,null,null,null,null,null,null,null,null,null,null,null,null,null,"2017-10-08"]
[null,null,null,null,null,null,null,null,null,null,null,null,null,null,null,null,null,null,null,null,null,null,null,null,null,null,null,null,null,null,null,null,null,null,null,null,null,null,null,null,null,null,null,null,null,null,null,null,null,"2017-10-09"]
[null,null,null,null,null,null,null,null,null,null,null,null,null,null,null,null,null,null,null,null,null,null,null,null,null,null,null,null,null,null,null,null,null,null,null,null,null,null,null,null,null,null,null,null,null,null,null,null,null,"2017-10-10"]
[null,null,null,null,null,null,null,null,null,null,null,null,null,null,null,null,null,null,null,null,null,null,null,null,null,null,null,null,null,null,null,null,null,null,null,null,null,null,null,null,null,null,null,null,null,null,null,null,null,"2017-10-11"]
[null,null,null,null,null,null,null,null,null,null,null,null,null,null,null,null,null,null,null,null,null,null,null,null,null,null,null,null,null,null,null,null,null,null,null,null,null,null,null,null,null,null,null,null,null,null,null,null,null,"2017-10-12"]
[null,null,null,null,null,null,null,null,null,null,null,null,null,null,null,null,null,null,null,null,null,null,null,null,null,null,null,null,null,null,null,null,null,null,null,null,null,null,null,null,null,null,null,null,null,null,null,null,null,"2017-10-13"]
[null,null,null,null,null,null,null,null,null,null,null,null,null,null,null,null,null,null,null,null,null,null,null,null,null,null,null,null,null,null,null,null,null,null,null,null,null,null,null,null,null,null,null,null,null,null,null,null,null,"2017-10-14"]
[null,null,null,null,null,null,null,null,null,null,null,null,null,null,null,null,null,null,null,null,null,null,null,null,null,null,null,null,null,null,null,null,null,null,null,null,null,null,null,null,null,null,null,null,null,null,null,null,null,"2017-10-15"]
[null,null,null,null,null,null,null,null,null,null,null,null,null,null,null,null,null,null,null,null,null,null,null,null,null,null,null,null,null,null,null,null,null,null,null,null,null,null,null,null,null,null,null,null,null,null,null,null,null,"2017-10-16"]
[null,null,null,null,null,null,null,null,null,null,null,null,null,null,null,null,null,null,null,null,null,null,null,null,null,null,null,null,null,null,null,null,null,null,null,null,null,null,null,null,null,null,null,null,null,null,null,null,null,"2017-10-17"]
[null,null,null,null,null,null,null,null,null,null,null,null,null,null,null,null,null,null,null,null,null,null,null,null,null,null,null,null,null,null,null,null,null,null,null,null,null,null,null,null,null,null,null,null,null,null,null,null,null,"2017-10-18"]
[null,null,null,null,null,null,null,null,null,null,null,null,null,null,null,null,null,null,null,null,null,null,null,null,null,null,null,null,null,null,null,null,null,null,null,null,null,null,null,null,null,null,null,null,null,null,null,null,null,"2017-10-19"]
[null,null,null,null,null,null,null,null,null,null,null,null,null,null,null,null,null,null,null,null,null,null,null,null,null,null,null,null,null,null,null,null,null,null,null,null,null,null,null,null,null,null,null,null,null,null,null,null,null,"2017-10-20"]
[null,null,null,null,null,null,null,null,null,null,null,null,null,null,null,null,null,null,null,null,null,null,null,null,null,null,null,null,null,null,null,null,null,null,null,null,null,null,null,null,null,null,null,null,null,null,null,null,null,"2017-10-21"]
[null,null,null,null,null,null,null,null,null,null,null,null,null,null,null,null,null,null,null,null,null,null,null,null,null,null,null,null,null,null,null,null,null,null,null,null,null,null,null,null,null,null,null,null,null,null,null,null,null,"2017-10-22"]
[null,null,null,null,null,null,null,null,null,null,null,null,null,null,null,null,null,null,null,null,null,null,null,null,null,null,null,null,null,null,null,null,null,null,null,null,null,null,null,null,null,null,null,null,null,null,null,null,null,"2017-10-23"]
[null,null,null,null,null,null,null,null,null,null,null,null,null,null,null,null,null,null,null,null,null,null,null,null,null,null,null,null,null,null,null,null,null,null,null,null,null,null,null,null,null,null,null,null,null,null,null,null,null,"2017-10-24"]
[null,null,null,null,null,null,null,null,null,null,null,null,null,null,null,null,null,null,null,null,null,null,null,null,null,null,null,null,null,null,null,null,null,null,null,null,null,null,null,null,null,null,null,null,null,null,null,null,null,"2017-10-25"]
[null,null,null,null,null,null,null,null,null,null,null,null,null,null,null,null,null,null,null,null,null,null,null,null,null,null,null,null,null,null,null,null,null,null,null,null,null,null,null,null,null,null,null,null,null,null,null,null,null,"2017-10-26"]
[null,null,null,null,null,null,null,null,null,null,null,null,null,null,null,null,null,null,null,null,null,null,null,null,null,null,null,null,null,null,null,null,null,null,null,null,null,null,null,null,null,null,null,null,null,null,null,null,null,"2017-10-27"]
[null,null,null,null,null,null,null,null,null,null,null,null,null,null,null,null,null,null,null,null,null,null,null,null,null,null,null,null,null,null,null,null,null,null,null,null,null,null,null,null,null,null,null,null,null,null,null,null,null,"2017-10-28"]
[null,null,null,null,null,null,null,null,null,null,null,null,null,null,null,null,null,null,null,null,null,null,null,null,null,null,null,null,null,null,null,null,null,null,null,null,null,null,null,null,null,null,null,null,null,null,null,null,null,"2017-10-29"]
[null,null,null,null,null,null,null,null,null,null,null,null,null,null,null,null,null,null,null,null,null,null,null,null,null,null,null,null,null,null,null,null,null,null,null,null,null,null,null,null,null,null,null,null,null,null,null,null,null,"2017-10-30"]
[null,null,null,null,null,null,null,null,null,null,null,null,null,null,null,null,null,null,null,null,null,null,null,null,null,null,null,null,null,null,null,null,null,null,null,null,null,null,null,null,null,null,null,null,null,null,null,null,null,"2017-10-31"]
[null,null,null,null,null,null,null,null,null,null,null,null,null,null,null,null,null,null,null,null,null,null,null,null,null,null,null,null,null,null,null,null,null,null,null,null,null,null,null,null,null,null,null,null,null,null,null,null,null,"2017-11-01"]
[null,null,null,null,null,null,null,null,null,null,null,null,null,null,null,null,null,null,null,null,null,null,null,null,null,null,null,null,null,null,null,null,null,null,null,null,null,null,null,null,null,null,null,null,null,null,null,null,null,"2017-11-02"]
[null,null,null,null,null,null,null,null,null,null,null,null,null,null,null,null,null,null,null,null,null,null,null,null,null,null,null,null,null,null,null,null,null,null,null,null,null,null,null,null,null,null,null,null,null,null,null,null,null,"2017-11-03"]
[null,null,null,null,null,null,null,null,null,null,null,null,null,null,null,null,null,null,null,null,null,null,null,null,null,null,null,null,null,null,null,null,null,null,null,null,null,null,null,null,null,null,null,null,null,null,null,null,null,"2017-11-04"]
[null,null,null,null,null,null,null,null,null,null,null,null,null,null,null,null,null,null,null,null,null,null,null,null,null,null,null,null,null,null,null,null,null,null,null,null,null,null,null,null,null,null,null,null,null,null,null,null,null,"2017-11-05"]
[null,null,null,null,null,null,null,null,null,null,null,null,null,null,null,null,null,null,null,null,null,null,null,null,null,null,null,null,null,null,null,null,null,null,null,null,null,null,null,null,null,null,null,null,null,null,null,null,null,"2017-11-06"]
[null,null,null,null,null,null,null,null,null,null,null,null,null,null,null,null,null,null,null,null,null,null,null,null,null,null,null,null,null,null,null,null,null,null,null,null,null,null,null,null,null,null,null,null,null,null,null,null,null,"2017-11-07"]
[null,null,null,null,null,null,null,null,null,null,null,null,null,null,null,null,null,null,null,null,null,null,null,null,null,null,null,null,null,null,null,null,null,null,null,null,null,null,null,null,null,null,null,null,null,null,null,null,null,"2017-11-08"]
[null,null,null,null,null,null,null,null,null,null,null,null,null,null,null,null,null,null,null,null,null,null,null,null,null,null,null,null,null,null,null,null,null,null,null,null,null,null,null,null,null,null,null,null,null,null,null,null,null,"2017-11-09"]
[null,null,null,null,null,null,null,null,null,null,null,null,null,null,null,null,null,null,null,null,null,null,null,null,null,null,null,null,null,null,null,null,null,null,null,null,null,null,null,null,null,null,null,null,null,null,null,null,null,"2017-11-10"]
[null,null,null,null,null,null,null,null,null,null,null,null,null,null,null,null,null,null,null,null,null,null,null,null,null,null,null,null,null,null,null,null,null,null,null,null,null,null,null,null,null,null,null,null,null,null,null,null,null,"2017-11-11"]
[null,null,null,null,null,null,null,null,null,null,null,null,null,null,null,null,null,null,null,null,null,null,null,null,null,null,null,null,null,null,null,null,null,null,null,null,null,null,null,null,null,null,null,null,null,null,null,null,null,"2017-11-12"]
[null,null,null,null,null,null,null,null,null,null,null,null,null,null,null,null,null,null,null,null,null,null,null,null,null,null,null,null,null,null,null,null,null,null,null,null,null,null,null,null,null,null,null,null,null,null,null,null,null,"2017-11-13"]
[null,null,null,null,null,null,null,null,null,null,null,null,null,null,null,null,null,null,null,null,null,null,null,null,null,null,null,null,null,null,null,null,null,null,null,null,null,null,null,null,null,null,null,null,null,null,null,null,null,"2017-11-14"]
[null,null,null,null,null,null,null,null,null,null,null,null,null,null,null,null,null,null,null,null,null,null,null,null,null,null,null,null,null,null,null,null,null,null,null,null,null,null,null,null,null,null,null,null,null,null,null,null,null,"2017-11-15"]
[null,null,null,null,null,null,null,null,null,null,null,null,null,null,null,null,null,null,null,null,null,null,null,null,null,null,null,null,null,null,null,null,null,null,null,null,null,null,null,null,null,null,null,null,null,null,null,null,null,"2017-11-16"]
[null,null,null,null,null,null,null,null,null,null,null,null,null,null,null,null,null,null,null,null,null,null,null,null,null,null,null,null,null,null,null,null,null,null,null,null,null,null,null,null,null,null,null,null,null,null,null,null,null,"2017-11-17"]
[null,null,null,null,null,null,null,null,null,null,null,null,null,null,null,null,null,null,null,null,null,null,null,null,null,null,null,null,null,null,null,null,null,null,null,null,null,null,null,null,null,null,null,null,null,null,null,null,null,"2017-11-18"]
[null,null,null,null,null,null,null,null,null,null,null,null,null,null,null,null,null,null,null,null,null,null,null,null,null,null,null,null,null,null,null,null,null,null,null,null,null,null,null,null,null,null,null,null,null,null,null,null,null,"2017-11-19"]
[null,null,null,null,null,null,null,null,null,null,null,null,null,null,null,null,null,null,null,null,null,null,null,null,null,null,null,null,null,null,null,null,null,null,null,null,null,null,null,null,null,null,null,null,null,null,null,null,null,"2017-11-20"]
[null,null,null,null,null,null,null,null,null,null,null,null,null,null,null,null,null,null,null,null,null,null,null,null,null,null,null,null,null,null,null,null,null,null,null,null,null,null,null,null,null,null,null,null,null,null,null,null,null,"2017-11-21"]
[null,null,null,null,null,null,null,null,null,null,null,null,null,null,null,null,null,null,null,null,null,null,null,null,null,null,null,null,null,null,null,null,null,null,null,null,null,null,null,null,null,null,null,null,null,null,null,null,null,"2017-11-22"]
[null,null,null,null,null,null,null,null,null,null,null,null,null,null,null,null,null,null,null,null,null,null,null,null,null,null,null,null,null,null,null,null,null,null,null,null,null,null,null,null,null,null,null,null,null,null,null,null,null,"2017-11-23"]
[null,null,null,null,null,null,null,null,null,null,null,null,null,null,null,null,null,null,null,null,null,null,null,null,null,null,null,null,null,null,null,null,null,null,null,null,null,null,null,null,null,null,null,null,null,null,null,null,null,"2017-11-24"]
[null,null,null,null,null,null,null,null,null,null,null,null,null,null,null,null,null,null,null,null,null,null,null,null,null,null,null,null,null,null,null,null,null,null,null,null,null,null,null,null,null,null,null,null,null,null,null,null,null,"2017-11-25"]
[null,null,null,null,null,null,null,null,null,null,null,null,null,null,null,null,null,null,null,null,null,null,null,null,null,null,null,null,null,null,null,null,null,null,null,null,null,null,null,null,null,null,null,null,null,null,null,null,null,"2017-11-26"]
[null,null,null,null,null,null,null,null,null,null,null,null,null,null,null,null,null,null,null,null,null,null,null,null,null,null,null,null,null,null,null,null,null,null,null,null,null,null,null,null,null,null,null,null,null,null,null,null,null,"2017-11-27"]
[null,null,null,null,null,null,null,null,null,null,null,null,null,null,null,null,null,null,null,null,null,null,null,null,null,null,null,null,null,null,null,null,null,null,null,null,null,null,null,null,null,null,null,null,null,null,null,null,null,{"$f":"AX370+1","v":"2017-11-28"}]
[null,null,null,null,null,null,null,null,null,null,null,null,null,null,null,null,null,null,null,null,null,null,null,null,null,null,null,null,null,null,null,null,null,null,null,null,null,null,null,null,null,null,null,null,null,null,null,null,null,"2017-11-29"]
[null,null,null,null,null,null,null,null,null,null,null,null,null,null,null,null,null,null,null,null,null,null,null,null,null,null,null,null,null,null,null,null,null,null,null,null,null,null,null,null,null,null,null,null,null,null,null,null,null,"2017-11-30"]
[null,null,null,null,null,null,null,null,null,null,null,null,null,null,null,null,null,null,null,null,null,null,null,null,null,null,null,null,null,null,null,null,null,null,null,null,null,null,null,null,null,null,null,null,null,null,null,null,null,"2017-12-01"]
[null,null,null,null,null,null,null,null,null,null,null,null,null,null,null,null,null,null,null,null,null,null,null,null,null,null,null,null,null,null,null,null,null,null,null,null,null,null,null,null,null,null,null,null,null,null,null,null,null,"2017-12-02"]
[null,null,null,null,null,null,null,null,null,null,null,null,null,null,null,null,null,null,null,null,null,null,null,null,null,null,null,null,null,null,null,null,null,null,null,null,null,null,null,null,null,null,null,null,null,null,null,null,null,"2017-12-03"]
[null,null,null,null,null,null,null,null,null,null,null,null,null,null,null,null,null,null,null,null,null,null,null,null,null,null,null,null,null,null,null,null,null,null,null,null,null,null,null,null,null,null,null,null,null,null,null,null,null,"2017-12-04"]
[null,null,null,null,null,null,null,null,null,null,null,null,null,null,null,null,null,null,null,null,null,null,null,null,null,null,null,null,null,null,null,null,null,null,null,null,null,null,null,null,null,null,null,null,null,null,null,null,null,"2017-12-05"]
[null,null,null,null,null,null,null,null,null,null,null,null,null,null,null,null,null,null,null,null,null,null,null,null,null,null,null,null,null,null,null,null,null,null,null,null,null,null,null,null,null,null,null,null,null,null,null,null,null,"2017-12-06"]
[null,null,null,null,null,null,null,null,null,null,null,null,null,null,null,null,null,null,null,null,null,null,null,null,null,null,null,null,null,null,null,null,null,null,null,null,null,null,null,null,null,null,null,null,null,null,null,null,null,"2017-12-07"]
[null,null,null,null,null,null,null,null,null,null,null,null,null,null,null,null,null,null,null,null,null,null,null,null,null,null,null,null,null,null,null,null,null,null,null,null,null,null,null,null,null,null,null,null,null,null,null,null,null,"2017-12-08"]
[null,null,null,null,null,null,null,null,null,null,null,null,null,null,null,null,null,null,null,null,null,null,null,null,null,null,null,null,null,null,null,null,null,null,null,null,null,null,null,null,null,null,null,null,null,null,null,null,null,"2017-12-09"]
[null,null,null,null,null,null,null,null,null,null,null,null,null,null,null,null,null,null,null,null,null,null,null,null,null,null,null,null,null,null,null,null,null,null,null,null,null,null,null,null,null,null,null,null,null,null,null,null,null,"2017-12-10"]
[null,null,null,null,null,null,null,null,null,null,null,null,null,null,null,null,null,null,null,null,null,null,null,null,null,null,null,null,null,null,null,null,null,null,null,null,null,null,null,null,null,null,null,null,null,null,null,null,null,"2017-12-11"]
[null,null,null,null,null,null,null,null,null,null,null,null,null,null,null,null,null,null,null,null,null,null,null,null,null,null,null,null,null,null,null,null,null,null,null,null,null,null,null,null,null,null,null,null,null,null,null,null,null,"2017-12-12"]
[null,null,null,null,null,null,null,null,null,null,null,null,null,null,null,null,null,null,null,null,null,null,null,null,null,null,null,null,null,null,null,null,null,null,null,null,null,null,null,null,null,null,null,null,null,null,null,null,null,"2017-12-13"]
[null,null,null,null,null,null,null,null,null,null,null,null,null,null,null,null,null,null,null,null,null,null,null,null,null,null,null,null,null,null,null,null,null,null,null,null,null,null,null,null,null,null,null,null,null,null,null,null,null,"2017-12-14"]
[null,null,null,null,null,null,null,null,null,null,null,null,null,null,null,null,null,null,null,null,null,null,null,null,null,null,null,null,null,null,null,null,null,null,null,null,null,null,null,null,null,null,null,null,null,null,null,null,null,"2017-12-15"]
[null,null,null,null,null,null,null,null,null,null,null,null,null,null,null,null,null,null,null,null,null,null,null,null,null,null,null,null,null,null,null,null,null,null,null,null,null,null,null,null,null,null,null,null,null,null,null,null,null,"2017-12-16"]
[null,null,null,null,null,null,null,null,null,null,null,null,null,null,null,null,null,null,null,null,null,null,null,null,null,null,null,null,null,null,null,null,null,null,null,null,null,null,null,null,null,null,null,null,null,null,null,null,null,"2017-12-17"]
[null,null,null,null,null,null,null,null,null,null,null,null,null,null,null,null,null,null,null,null,null,null,null,null,null,null,null,null,null,null,null,null,null,null,null,null,null,null,null,null,null,null,null,null,null,null,null,null,null,"2017-12-18"]
[null,null,null,null,null,null,null,null,null,null,null,null,null,null,null,null,null,null,null,null,null,null,null,null,null,null,null,null,null,null,null,null,null,null,null,null,null,null,null,null,null,null,null,null,null,null,null,null,null,"2017-12-19"]
[null,null,null,null,null,null,null,null,null,null,null,null,null,null,null,null,null,null,null,null,null,null,null,null,null,null,null,null,null,null,null,null,null,null,null,null,null,null,null,null,null,null,null,null,null,null,null,null,null,"2017-12-20"]
[null,null,null,null,null,null,null,null,null,null,null,null,null,null,null,null,null,null,null,null,null,null,null,null,null,null,null,null,null,null,null,null,null,null,null,null,null,null,null,null,null,null,null,null,null,null,null,null,null,"2017-12-21"]
[null,null,null,null,null,null,null,null,null,null,null,null,null,null,null,null,null,null,null,null,null,null,null,null,null,null,null,null,null,null,null,null,null,null,null,null,null,null,null,null,null,null,null,null,null,null,null,null,null,"2017-12-22"]
[null,null,null,null,null,null,null,null,null,null,null,null,null,null,null,null,null,null,null,null,null,null,null,null,null,null,null,null,null,null,null,null,null,null,null,null,null,null,null,null,null,null,null,null,null,null,null,null,null,"2017-12-23"]
[null,null,null,null,null,null,null,null,null,null,null,null,null,null,null,null,null,null,null,null,null,null,null,null,null,null,null,null,null,null,null,null,null,null,null,null,null,null,null,null,null,null,null,null,null,null,null,null,null,"2017-12-24"]
[null,null,null,null,null,null,null,null,null,null,null,null,null,null,null,null,null,null,null,null,null,null,null,null,null,null,null,null,null,null,null,null,null,null,null,null,null,null,null,null,null,null,null,null,null,null,null,null,null,"2017-12-25"]
[null,null,null,null,null,null,null,null,null,null,null,null,null,null,null,null,null,null,null,null,null,null,null,null,null,null,null,null,null,null,null,null,null,null,null,null,null,null,null,null,null,null,null,null,null,null,null,null,null,"2017-12-26"]
[null,null,null,null,null,null,null,null,null,null,null,null,null,null,null,null,null,null,null,null,null,null,null,null,null,null,null,null,null,null,null,null,null,null,null,null,null,null,null,null,null,null,null,null,null,null,null,null,null,"2017-12-27"]
[null,null,null,null,null,null,null,null,null,null,null,null,null,null,null,null,null,null,null,null,null,null,null,null,null,null,null,null,null,null,null,null,null,null,null,null,null,null,null,null,null,null,null,null,null,null,null,null,null,"2017-12-28"]
[null,null,null,null,null,null,null,null,null,null,null,null,null,null,null,null,null,null,null,null,null,null,null,null,null,null,null,null,null,null,null,null,null,null,null,null,null,null,null,null,null,null,null,null,null,null,null,null,null,"2017-12-29"]
[null,null,null,null,null,null,null,null,null,null,null,null,null,null,null,null,null,null,null,null,null,null,null,null,null,null,null,null,null,null,null,null,null,null,null,null,null,null,null,null,null,null,null,null,null,null,null,null,null,"2017-12-30"]
[null,null,null,null,null,null,null,null,null,null,null,null,null,null,null,null,null,null,null,null,null,null,null,null,null,null,null,null,null,null,null,null,null,null,null,null,null,null,null,null,null,null,null,null,null,null,null,null,null,"2017-12-31"]
[null,null,null,null,null,null,null,null,null,null,null,null,null,null,null,null,null,null,null,null,null,null,null,null,null,null,null,null,null,null,null,null,null,null,null,null,null,null,null,null,null,null,null,null,null,null,null,null,null,"2018-01-01"]
[null,null,null,null,null,null,null,null,null,null,null,null,null,null,null,null,null,null,null,null,null,null,null,null,null,null,null,null,null,null,null,null,null,null,null,null,null,null,null,null,null,null,null,null,null,null,null,null,null,"2018-01-02"]
[null,null,null,null,null,null,null,null,null,null,null,null,null,null,null,null,null,null,null,null,null,null,null,null,null,null,null,null,null,null,null,null,null,null,null,null,null,null,null,null,null,null,null,null,null,null,null,null,null,"2018-01-03"]
[null,null,null,null,null,null,null,null,null,null,null,null,null,null,null,null,null,null,null,null,null,null,null,null,null,null,null,null,null,null,null,null,null,null,null,null,null,null,null,null,null,null,null,null,null,null,null,null,null,"2018-01-04"]
[null,null,null,null,null,null,null,null,null,null,null,null,null,null,null,null,null,null,null,null,null,null,null,null,null,null,null,null,null,null,null,null,null,null,null,null,null,null,null,null,null,null,null,null,null,null,null,null,null,"2018-01-05"]
[null,null,null,null,null,null,null,null,null,null,null,null,null,null,null,null,null,null,null,null,null,null,null,null,null,null,null,null,null,null,null,null,null,null,null,null,null,null,null,null,null,null,null,null,null,null,null,null,null,"2018-01-06"]
[null,null,null,null,null,null,null,null,null,null,null,null,null,null,null,null,null,null,null,null,null,null,null,null,null,null,null,null,null,null,null,null,null,null,null,null,null,null,null,null,null,null,null,null,null,null,null,null,null,"2018-01-07"]
[null,null,null,null,null,null,null,null,null,null,null,null,null,null,null,null,null,null,null,null,null,null,null,null,null,null,null,null,null,null,null,null,null,null,null,null,null,null,null,null,null,null,null,null,null,null,null,null,null,"2018-01-08"]
[null,null,null,null,null,null,null,null,null,null,null,null,null,null,null,null,null,null,null,null,null,null,null,null,null,null,null,null,null,null,null,null,null,null,null,null,null,null,null,null,null,null,null,null,null,null,null,null,null,"2018-01-09"]
[null,null,null,null,null,null,null,null,null,null,null,null,null,null,null,null,null,null,null,null,null,null,null,null,null,null,null,null,null,null,null,null,null,null,null,null,null,null,null,null,null,null,null,null,null,null,null,null,null,"2018-01-10"]
[null,null,null,null,null,null,null,null,null,null,null,null,null,null,null,null,null,null,null,null,null,null,null,null,null,null,null,null,null,null,null,null,null,null,null,null,null,null,null,null,null,null,null,null,null,null,null,null,null,"2018-01-11"]

{"sheet":"COP-LOP","index":1,"n_rows":129,"n_cols":13,"rows_kept":129,"cut":false,"hidden":true,"merged":[]}
[]
[]
[]
[]
[null,null,null,null,null,null,null,"TR","TR","EN","EN","RU","RU"]
[null,{"$f":"IF(Form!$AA$4=\"TR\",H6,IF(Form!$AA$4=\"EN\",J6,IF(Form!$AA$4=\"RU\",L6,\"HATA!\")))","v":"Mik-el Mivox Seri Haberleşmeli Kat Butonyerleri"},null,null,null,null,null,"Mik-el Mivox Seri Haberleşmeli Kat Butonyerleri",null,"Mik-el Mivox Serial LOPs",null,"Mik-el Mivox Serial LOPs"]
[null,{"$f":"IF(Form!$AA$4=\"TR\",H7,IF(Form!$AA$4=\"EN\",J7,IF(Form!$AA$4=\"RU\",L7,\"HATA!\")))","v":"MV1072-MB"},{"$f":"IF(Form!$AA$4=\"TR\",I7,IF(Form!$AA$4=\"EN\",K7,IF(Form!$AA$4=\"RU\",M7,\"HATA!\")))","v":"Tek Buton & Simpleks & 7-Seg Mavi / Multicolor & Buzzer"},null,null,null,null,"MV1072-MB","Tek Buton & Simpleks & 7-Seg Mavi / Multicolor & Buzzer","MV1072-MB","Single Button & Simplex & 7-Seg Blue / Multicolor & Buzzer","MV1072-MB","Single Button & Simplex & 7-Seg Blue / Multicolor & Buzzer"]
[null,{"$f":"IF(Form!$AA$4=\"TR\",H8,IF(Form!$AA$4=\"EN\",J8,IF(Form!$AA$4=\"RU\",L8,\"HATA!\")))","v":"MV2072-MB"},{"$f":"IF(Form!$AA$4=\"TR\",I8,IF(Form!$AA$4=\"EN\",K8,IF(Form!$AA$4=\"RU\",M8,\"HATA!\")))","v":"Çift Buton & Simpleks & 7-Seg Mavi / Multicolor & Buzzer"},null,null,null,null,"MV2072-MB","Çift Buton & Simpleks & 7-Seg Mavi / Multicolor & Buzzer","MV2072-MB","Double Button & Simplex & 7-Seg Blue / Multicolor & Buzzer","MV2072-MB","Double Button & Simplex & 7-Seg Blue / Multicolor & Buzzer"]
[null,{"$f":"IF(Form!$AA$4=\"TR\",H9,IF(Form!$AA$4=\"EN\",J9,IF(Form!$AA$4=\"RU\",L9,\"HATA!\")))","v":"MV1012-R"},{"$f":"IF(Form!$AA$4=\"TR\",I9,IF(Form!$AA$4=\"EN\",K9,IF(Form!$AA$4=\"RU\",M9,\"HATA!\")))","v":"Tek Buton & Simpleks & Dot-matris & Kırmızı & 160LED & Buzzer"},null,null,null,null,"MV1012-R","Tek Buton & Simpleks & Dot-matris & Kırmızı & 160LED & Buzzer","MV1012-R","Single Button & Simplex & Dot-matrix & Red & 160LED & Buzzer","MV1012-R","Single Button & Simplex & Dot-matrix & Red & 160LED & Buzzer"]
[null,{"$f":"IF(Form!$AA$4=\"TR\",H10,IF(Form!$AA$4=\"EN\",J10,IF(Form!$AA$4=\"RU\",L10,\"HATA!\")))","v":"MV2012-R"},{"$f":"IF(Form!$AA$4=\"TR\",I10,IF(Form!$AA$4=\"EN\",K10,IF(Form!$AA$4=\"RU\",M10,\"HATA!\")))","v":"Çift Buton & Simpleks & Dot-matris & Kırmızı &  160LED & Buzzer"},null,null,null,null,"MV2012-R","Çift Buton & Simpleks & Dot-matris & Kırmızı &  160LED & Buzzer","MV2012-R","Double Button & Simplex & Dot-matrix & Red &  160LED & Buzzer","MV2012-R","Double Button & Simplex & Dot-matrix & Red &  160LED & Buzzer"]
[null,{"$f":"IF(Form!$AA$4=\"TR\",H11,IF(Form!$AA$4=\"EN\",J11,IF(Form!$AA$4=\"RU\",L11,\"HATA!\")))","v":"MV1082-MB"},{"$f":"IF(Form!$AA$4=\"TR\",I11,IF(Form!$AA$4=\"EN\",K11,IF(Form!$AA$4=\"RU\",M11,\"HATA!\")))","v":"Tek Buton & Dubleks & 7-Seg Mavi / Multicolor & Buzzer"},null,null,null,null,"MV1082-MB","Tek Buton & Dubleks & 7-Seg Mavi / Multicolor & Buzzer","MV1082-MB","Single Button & Duplex & 7-Seg Blue / Multicolor & Buzzer","MV1082-MB","Single Button & Duplex & 7-Seg Blue / Multicolor & Buzzer"]
[null,{"$f":"IF(Form!$AA$4=\"TR\",H12,IF(Form!$AA$4=\"EN\",J12,IF(Form!$AA$4=\"RU\",L12,\"HATA!\")))","v":"MV2082-MB"},{"$f":"IF(Form!$AA$4=\"TR\",I12,IF(Form!$AA$4=\"EN\",K12,IF(Form!$AA$4=\"RU\",M12,\"HATA!\")))","v":"Çift Buton & Dubleks & 7-Seg Mavi / Multicolor & Buzzer"},null,null,null,null,"MV2082-MB","Çift Buton & Dubleks & 7-Seg Mavi / Multicolor & Buzzer","MV2082-MB","Double Button & Duplex & 7-Seg Blue / Multicolor & Buzzer","MV2082-MB","Double Button & Duplex & 7-Seg Blue / Multicolor & Buzzer"]
[null,{"$f":"IF(Form!$AA$4=\"TR\",H13,IF(Form!$AA$4=\"EN\",J13,IF(Form!$AA$4=\"RU\",L13,\"HATA!\")))","v":"MV1022-R"},{"$f":"IF(Form!$AA$4=\"TR\",I13,IF(Form!$AA$4=\"EN\",K13,IF(Form!$AA$4=\"RU\",M13,\"HATA!\")))","v":"Tek Buton & Dubleks & Dot-matris & Kırmızı & 2x160LED & Buzzer"},null,null,null,null,"MV1022-R","Tek Buton & Dubleks & Dot-matris & Kırmızı & 2x160LED & Buzzer","MV1022-R","Single Button & Duplex & Dot-matrix & Red & 2x160LED & Buzzer","MV1022-R","Single Button & Duplex & Dot-matrix & Red & 2x160LED & Buzzer"]
[null,{"$f":"IF(Form!$AA$4=\"TR\",H14,IF(Form!$AA$4=\"EN\",J14,IF(Form!$AA$4=\"RU\",L14,\"HATA!\")))","v":"MV2022-R"},{"$f":"IF(Form!$AA$4=\"TR\",I14,IF(Form!$AA$4=\"EN\",K14,IF(Form!$AA$4=\"RU\",M14,\"HATA!\")))","v":"Çift Buton & Dubleks & Dot-matris & Kırmızı &  2x160LED & Buzzer"},null,null,null,null,"MV2022-R","Çift Buton & Dubleks & Dot-matris & Kırmızı &  2x160LED & Buzzer","MV2022-R","Double Button & Duplex & Dot-matrix & Red &  2x160LED & Buzzer","MV2022-R","Double Button & Duplex & Dot-matrix & Red &  2x160LED & Buzzer"]
[null,{"$f":"IF(Form!$AA$4=\"TR\",H15,IF(Form!$AA$4=\"EN\",J15,IF(Form!$AA$4=\"RU\",L15,\"HATA!\")))","v":"Mik-el & Ametal Seri Haberleşmeli Kat Butonyerleri"},{"$f":"IF(Form!$AA$4=\"TR\",I15,IF(Form!$AA$4=\"EN\",K15,IF(Form!$AA$4=\"RU\",M15,\"HATA!\")))","v":0},null,null,null,null,"Mik-el & Ametal Seri Haberleşmeli Kat Butonyerleri",null,"Mik-el & Ametal Serial LOPs",null,"Mik-el & Ametal Serial LOPs"]
[null,{"$f":"IF(Form!$AA$4=\"TR\",H16,IF(Form!$AA$4=\"EN\",J16,IF(Form!$AA$4=\"RU\",L16,\"HATA!\")))","v":"SMSC 502 SL 14"},{"$f":"IF(Form!$AA$4=\"TR\",I16,IF(Form!$AA$4=\"EN\",K16,IF(Form!$AA$4=\"RU\",M16,\"HATA!\")))","v":"Tek Buton & Simpleks & 7-Seg Amber / Multicolor & Buzzer"},null,null,null,null,"SMSC 502 SL 14","Tek Buton & Simpleks & 7-Seg Amber / Multicolor & Buzzer","SMSC 502 SL 14","Single Button & Simplex & 7-Seg Amber / Multicolor & Buzzer","SMSC 502 SL 14","Single Button & Simplex & 7-Seg Amber / Multicolor & Buzzer"]
[null,{"$f":"IF(Form!$AA$4=\"TR\",H17,IF(Form!$AA$4=\"EN\",J17,IF(Form!$AA$4=\"RU\",L17,\"HATA!\")))","v":"IP600M 502 SL 14"},{"$f":"IF(Form!$AA$4=\"TR\",I17,IF(Form!$AA$4=\"EN\",K17,IF(Form!$AA$4=\"RU\",M17,\"HATA!\")))","v":"Tek Buton & Simpleks & 7-Seg Amber / Multicolor & Buzzer"},null,null,null,null,"IP600M 502 SL 14","Tek Buton & Simpleks & 7-Seg Amber / Multicolor & Buzzer","IP600M 502 SL 14","Single Button & Simplex & 7-Seg Amber / Multicolor & Buzzer","IP600M 502 SL 14","Single Button & Simplex & 7-Seg Amber / Multicolor & Buzzer"]
[null,{"$f":"IF(Form!$AA$4=\"TR\",H18,IF(Form!$AA$4=\"EN\",J18,IF(Form!$AA$4=\"RU\",L18,\"HATA!\")))","v":"MARS 502 SL 14"},{"$f":"IF(Form!$AA$4=\"TR\",I18,IF(Form!$AA$4=\"EN\",K18,IF(Form!$AA$4=\"RU\",M18,\"HATA!\")))","v":"Tek Buton & Simpleks & 7-Seg Amber / Multicolor & Buzzer"},null,null,null,null,"MARS 502 SL 14","Tek Buton & Simpleks & 7-Seg Amber / Multicolor & Buzzer","MARS 502 SL 14","Single Button & Simplex & 7-Seg Amber / Multicolor & Buzzer","MARS 502 SL 14","Single Button & Simplex & 7-Seg Amber / Multicolor & Buzzer"]
[null,{"$f":"IF(Form!$AA$4=\"TR\",H19,IF(Form!$AA$4=\"EN\",J19,IF(Form!$AA$4=\"RU\",L19,\"HATA!\")))","v":"MARS 602 SL 14"},{"$f":"IF(Form!$AA$4=\"TR\",I19,IF(Form!$AA$4=\"EN\",K19,IF(Form!$AA$4=\"RU\",M19,\"HATA!\")))","v":"Çift Buton & Simpleks & 7-Seg Amber / Multicolor & Buzzer"},null,null,null,null,"MARS 602 SL 14","Çift Buton & Simpleks & 7-Seg Amber / Multicolor & Buzzer","MARS 602 SL 14","Double Button & Simplex & 7-Seg Amber / Multicolor & Buzzer","MARS 602 SL 14","Double Button & Simplex & 7-Seg Amber / Multicolor & Buzzer"]
[null,{"$f":"IF(Form!$AA$4=\"TR\",H20,IF(Form!$AA$4=\"EN\",J20,IF(Form!$AA$4=\"RU\",L20,\"HATA!\")))","v":"P90 502 SL 14"},{"$f":"IF(Form!$AA$4=\"TR\",I20,IF(Form!$AA$4=\"EN\",K20,IF(Form!$AA$4=\"RU\",M20,\"HATA!\")))","v":"Tek Buton & Simpleks & 7-Seg Amber / Multicolor & Buzzer"},null,null,null,null,"P90 502 SL 14","Tek Buton & Simpleks & 7-Seg Amber / Multicolor & Buzzer","P90 502 SL 14","Single Button & Simplex & 7-Seg Amber / Multicolor & Buzzer","P90 502 SL 14","Single Button & Simplex & 7-Seg Amber / Multicolor & Buzzer"]
[null,{"$f":"IF(Form!$AA$4=\"TR\",H21,IF(Form!$AA$4=\"EN\",J21,IF(Form!$AA$4=\"RU\",L21,\"HATA!\")))","v":"P150 703A SL 14"},{"$f":"IF(Form!$AA$4=\"TR\",I21,IF(Form!$AA$4=\"EN\",K21,IF(Form!$AA$4=\"RU\",M21,\"HATA!\")))","v":"Tek Buton & Dubleks & 7-Seg Amber / Multicolor & Buzzer"},null,null,null,null,"P150 703A SL 14","Tek Buton & Dubleks & 7-Seg Amber / Multicolor & Buzzer","P150 703A SL 14","Single Button & Duplex & 7-Seg Amber / Multicolor & Buzzer","P150 703A SL 14","Single Button & Duplex & 7-Seg Amber / Multicolor & Buzzer"]
[null,{"$f":"IF(Form!$AA$4=\"TR\",H22,IF(Form!$AA$4=\"EN\",J22,IF(Form!$AA$4=\"RU\",L22,\"HATA!\")))","v":"P150 703 SL 14"},{"$f":"IF(Form!$AA$4=\"TR\",I22,IF(Form!$AA$4=\"EN\",K22,IF(Form!$AA$4=\"RU\",M22,\"HATA!\")))","v":"Çift Buton & Dubleks & 7-Seg Amber / Multicolor & Buzzer"},null,null,null,null,"P150 703 SL 14","Çift Buton & Dubleks & 7-Seg Amber / Multicolor & Buzzer","P150 703 SL 14","Double Button & Duplex & 7-Seg Amber / Multicolor & Buzzer","P150 703 SL 14","Double Button & Duplex & 7-Seg Amber / Multicolor & Buzzer"]
[null,{"$f":"IF(Form!$AA$4=\"TR\",H23,IF(Form!$AA$4=\"EN\",J23,IF(Form!$AA$4=\"RU\",L23,\"HATA!\")))","v":"SMSC 502 SL 160"},{"$f":"IF(Form!$AA$4=\"TR\",I23,IF(Form!$AA$4=\"EN\",K23,IF(Form!$AA$4=\"RU\",M23,\"HATA!\")))","v":"Tek Buton & Simpleks & Dot-matris Kırmızı & Buzzer"},null,null,null,null,"SMSC 502 SL 160","Tek Buton & Simpleks & Dot-matris Kırmızı & Buzzer","SMSC 502 SL 160","Single Button & Simplex & Dot-matrix Red & Buzzer","SMSC 502 SL 160","Single Button & Simplex & Dot-matrix Red & Buzzer"]
[null,{"$f":"IF(Form!$AA$4=\"TR\",H24,IF(Form!$AA$4=\"EN\",J24,IF(Form!$AA$4=\"RU\",L24,\"HATA!\")))","v":"IP600M 502 SL 160"},{"$f":"IF(Form!$AA$4=\"TR\",I24,IF(Form!$AA$4=\"EN\",K24,IF(Form!$AA$4=\"RU\",M24,\"HATA!\")))","v":"Tek Buton & Simpleks & Dot-matris Kırmızı & Buzzer"},null,null,null,null,"IP600M 502 SL 160","Tek Buton & Simpleks & Dot-matris Kırmızı & Buzzer","IP600M 502 SL 160","Single Button & Simplex & Dot-matrix Red & Buzzer","IP600M 502 SL 160","Single Button & Simplex & Dot-matrix Red & Buzzer"]
[null,{"$f":"IF(Form!$AA$4=\"TR\",H25,IF(Form!$AA$4=\"EN\",J25,IF(Form!$AA$4=\"RU\",L25,\"HATA!\")))","v":"MARS 502 SL 160"},{"$f":"IF(Form!$AA$4=\"TR\",I25,IF(Form!$AA$4=\"EN\",K25,IF(Form!$AA$4=\"RU\",M25,\"HATA!\")))","v":"Tek Buton & Simpleks & Dot-matris Kırmızı & Buzzer"},null,null,null,null,"MARS 502 SL 160","Tek Buton & Simpleks & Dot-matris Kırmızı & Buzzer","MARS 502 SL 160","Single Button & Simplex & Dot-matrix Red & Buzzer","MARS 502 SL 160","Single Button & Simplex & Dot-matrix Red & Buzzer"]
[null,{"$f":"IF(Form!$AA$4=\"TR\",H26,IF(Form!$AA$4=\"EN\",J26,IF(Form!$AA$4=\"RU\",L26,\"HATA!\")))","v":"MARS 602 SL 160"},{"$f":"IF(Form!$AA$4=\"TR\",I26,IF(Form!$AA$4=\"EN\",K26,IF(Form!$AA$4=\"RU\",M26,\"HATA!\")))","v":"Çift Buton & Simpleks & Dot-matris Kırmızı & Buzzer"},null,null,null,null,"MARS 602 SL 160","Çift Buton & Simpleks & Dot-matris Kırmızı & Buzzer","MARS 602 SL 160","Double Button & Simplex & Dot-matrix Red & Buzzer","MARS 602 SL 160","Double Button & Simplex & Dot-matrix Red & Buzzer"]
[null,{"$f":"IF(Form!$AA$4=\"TR\",H27,IF(Form!$AA$4=\"EN\",J27,IF(Form!$AA$4=\"RU\",L27,\"HATA!\")))","v":"P90 502 SL 160"},{"$f":"IF(Form!$AA$4=\"TR\",I27,IF(Form!$AA$4=\"EN\",K27,IF(Form!$AA$4=\"RU\",M27,\"HATA!\")))","v":"Tek Buton & Simpleks & Dot-matris Kırmızı & Buzzer"},null,null,null,null,"P90 502 SL 160","Tek Buton & Simpleks & Dot-matris Kırmızı & Buzzer","P90 502 SL 160","Single Button & Simplex & Dot-matrix Red & Buzzer","P90 502 SL 160","Single Button & Simplex & Dot-matrix Red & Buzzer"]
[null,{"$f":"IF(Form!$AA$4=\"TR\",H28,IF(Form!$AA$4=\"EN\",J28,IF(Form!$AA$4=\"RU\",L28,\"HATA!\")))","v":"P150 703A SL 160"},{"$f":"IF(Form!$AA$4=\"TR\",I28,IF(Form!$AA$4=\"EN\",K28,IF(Form!$AA$4=\"RU\",M28,\"HATA!\")))","v":"Tek Buton & Dubleks & Dot-matris Kırmızı & Buzzer"},null,null,null,null,"P150 703A SL 160","Tek Buton & Dubleks & Dot-matris Kırmızı & Buzzer","P150 703A SL 160","Single Button & Duplex & Dot-matrix Red & Buzzer","P150 703A SL 160","Single Button & Duplex & Dot-matrix Red & Buzzer"]
[null,{"$f":"IF(Form!$AA$4=\"TR\",H29,IF(Form!$AA$4=\"EN\",J29,IF(Form!$AA$4=\"RU\",L29,\"HATA!\")))","v":"P150 703 SL 160"},{"$f":"IF(Form!$AA$4=\"TR\",I29,IF(Form!$AA$4=\"EN\",K29,IF(Form!$AA$4=\"RU\",M29,\"HATA!\")))","v":"Çift Buton & Dubleks & Dot-matris Kırmızı & Buzzer"},null,null,null,null,"P150 703 SL 160","Çift Buton & Dubleks & Dot-matris Kırmızı & Buzzer","P150 703 SL 160","Double Button & Duplex & Dot-matrix Red & Buzzer","P150 703 SL 160","Double Button & Duplex & Dot-matrix Red & Buzzer"]
[null,{"$f":"IF(Form!$AA$4=\"TR\",H30,IF(Form!$AA$4=\"EN\",J30,IF(Form!$AA$4=\"RU\",L30,\"HATA!\")))","v":"Mik-el & But-San Seri Haberleşmeli Kat Butonyerleri"},{"$f":"IF(Form!$AA$4=\"TR\",I30,IF(Form!$AA$4=\"EN\",K30,IF(Form!$AA$4=\"RU\",M30,\"HATA!\")))","v":0},null,null,null,null,"Mik-el & But-San Seri Haberleşmeli Kat Butonyerleri",null,"Mik-el & But-San Serial LOPs",null,"Mik-el & But-San Serial LOPs"]
[null,{"$f":"IF(Form!$AA$4=\"TR\",H31,IF(Form!$AA$4=\"EN\",J31,IF(Form!$AA$4=\"RU\",L31,\"HATA!\")))","v":"SL205.SL.14 Q5MENS/LENS"},{"$f":"IF(Form!$AA$4=\"TR\",I31,IF(Form!$AA$4=\"EN\",K31,IF(Form!$AA$4=\"RU\",M31,\"HATA!\")))","v":"Tek Buton & Simpleks & 7-Seg Amber / Multicolor & Buzzer"},null,null,null,null,"SL205.SL.14 Q5MENS/LENS","Tek Buton & Simpleks & 7-Seg Amber / Multicolor & Buzzer","SL205.SL.14 Q5MENS/LENS","Single Button & Simplex & 7-Seg Amber / Multicolor & Buzzer","SL205.SL.14 Q5MENS/LENS","Single Button & Simplex & 7-Seg Amber / Multicolor & Buzzer"]
[null,{"$f":"IF(Form!$AA$4=\"TR\",H32,IF(Form!$AA$4=\"EN\",J32,IF(Form!$AA$4=\"RU\",L32,\"HATA!\")))","v":"SL220.SL.14 Q5MENS/LENS"},{"$f":"IF(Form!$AA$4=\"TR\",I32,IF(Form!$AA$4=\"EN\",K32,IF(Form!$AA$4=\"RU\",M32,\"HATA!\")))","v":"Çift Buton & Simpleks & 7-Seg Amber / Multicolor & Buzzer"},null,null,null,null,"SL220.SL.14 Q5MENS/LENS","Çift Buton & Simpleks & 7-Seg Amber / Multicolor & Buzzer","SL220.SL.14 Q5MENS/LENS","Double Button & Simplex & 7-Seg Amber / Multicolor & Buzzer","SL220.SL.14 Q5MENS/LENS","Double Button & Simplex & 7-Seg Amber / Multicolor & Buzzer"]
[null,{"$f":"IF(Form!$AA$4=\"TR\",H33,IF(Form!$AA$4=\"EN\",J33,IF(Form!$AA$4=\"RU\",L33,\"HATA!\")))","v":"FLX205.SL.14 Q5MENS/LENS"},{"$f":"IF(Form!$AA$4=\"TR\",I33,IF(Form!$AA$4=\"EN\",K33,IF(Form!$AA$4=\"RU\",M33,\"HATA!\")))","v":"Tek Buton & Simpleks & 7-Seg Amber / Multicolor & Buzzer"},null,null,null,null,"FLX205.SL.14 Q5MENS/LENS","Tek Buton & Simpleks & 7-Seg Amber / Multicolor & Buzzer","FLX205.SL.14 Q5MENS/LENS","Single Button & Simplex & 7-Seg Amber / Multicolor & Buzzer","FLX205.SL.14 Q5MENS/LENS","Single Button & Simplex & 7-Seg Amber / Multicolor & Buzzer"]
[null,{"$f":"IF(Form!$AA$4=\"TR\",H34,IF(Form!$AA$4=\"EN\",J34,IF(Form!$AA$4=\"RU\",L34,\"HATA!\")))","v":"FLX220.SL.14 Q5MENS/LENS"},{"$f":"IF(Form!$AA$4=\"TR\",I34,IF(Form!$AA$4=\"EN\",K34,IF(Form!$AA$4=\"RU\",M34,\"HATA!\")))","v":"Çift Buton & Simpleks & 7-Seg Amber / Multicolor & Buzzer"},null,null,null,null,"FLX220.SL.14 Q5MENS/LENS","Çift Buton & Simpleks & 7-Seg Amber / Multicolor & Buzzer","FLX220.SL.14 Q5MENS/LENS","Double Button & Simplex & 7-Seg Amber / Multicolor & Buzzer","FLX220.SL.14 Q5MENS/LENS","Double Button & Simplex & 7-Seg Amber / Multicolor & Buzzer"]
[null,{"$f":"IF(Form!$AA$4=\"TR\",H35,IF(Form!$AA$4=\"EN\",J35,IF(Form!$AA$4=\"RU\",L35,\"HATA!\")))","v":"FLX505.SL.14 Q5MENS/LENS"},{"$f":"IF(Form!$AA$4=\"TR\",I35,IF(Form!$AA$4=\"EN\",K35,IF(Form!$AA$4=\"RU\",M35,\"HATA!\")))","v":"Tek Buton & Simpleks & 7-Seg Amber / Multicolor & Buzzer"},null,null,null,null,"FLX505.SL.14 Q5MENS/LENS","Tek Buton & Simpleks & 7-Seg Amber / Multicolor & Buzzer","FLX505.SL.14 Q5MENS/LENS","Single Button & Simplex & 7-Seg Amber / Multicolor & Buzzer","FLX505.SL.14 Q5MENS/LENS","Single Button & Simplex & 7-Seg Amber / Multicolor & Buzzer"]
[null,{"$f":"IF(Form!$AA$4=\"TR\",H36,IF(Form!$AA$4=\"EN\",J36,IF(Form!$AA$4=\"RU\",L36,\"HATA!\")))","v":"FLX510.SL.14 Q5MENS/LENS"},{"$f":"IF(Form!$AA$4=\"TR\",I36,IF(Form!$AA$4=\"EN\",K36,IF(Form!$AA$4=\"RU\",M36,\"HATA!\")))","v":"Çift Buton & Simpleks & 7-Seg Amber / Multicolor & Buzzer"},null,null,null,null,"FLX510.SL.14 Q5MENS/LENS","Çift Buton & Simpleks & 7-Seg Amber / Multicolor & Buzzer","FLX510.SL.14 Q5MENS/LENS","Double Button & Simplex & 7-Seg Amber / Multicolor & Buzzer","FLX510.SL.14 Q5MENS/LENS","Double Button & Simplex & 7-Seg Amber / Multicolor & Buzzer"]
[null,{"$f":"IF(Form!$AA$4=\"TR\",H37,IF(Form!$AA$4=\"EN\",J37,IF(Form!$AA$4=\"RU\",L37,\"HATA!\")))","v":"205.SL.14 Q5MENS/LENS"},{"$f":"IF(Form!$AA$4=\"TR\",I37,IF(Form!$AA$4=\"EN\",K37,IF(Form!$AA$4=\"RU\",M37,\"HATA!\")))","v":"Tek Buton & Simpleks & 7-Seg Amber / Multicolor & Buzzer"},null,null,null,null,"205.SL.14 Q5MENS/LENS","Tek Buton & Simpleks & 7-Seg Amber / Multicolor & Buzzer","205.SL.14 Q5MENS/LENS","Single Button & Simplex & 7-Seg Amber / Multicolor & Buzzer","205.SL.14 Q5MENS/LENS","Single Button & Simplex & 7-Seg Amber / Multicolor & Buzzer"]
[null,{"$f":"IF(Form!$AA$4=\"TR\",H38,IF(Form!$AA$4=\"EN\",J38,IF(Form!$AA$4=\"RU\",L38,\"HATA!\")))","v":"220.SL.14 Q5MENS/LENS"},{"$f":"IF(Form!$AA$4=\"TR\",I38,IF(Form!$AA$4=\"EN\",K38,IF(Form!$AA$4=\"RU\",M38,\"HATA!\")))","v":"Çift Buton & Simpleks & 7-Seg Amber / Multicolor & Buzzer"},null,null,null,null,"220.SL.14 Q5MENS/LENS","Çift Buton & Simpleks & 7-Seg Amber / Multicolor & Buzzer","220.SL.14 Q5MENS/LENS","Double Button & Simplex & 7-Seg Amber / Multicolor & Buzzer","220.SL.14 Q5MENS/LENS","Double Button & Simplex & 7-Seg Amber / Multicolor & Buzzer"]
[null,{"$f":"IF(Form!$AA$4=\"TR\",H39,IF(Form!$AA$4=\"EN\",J39,IF(Form!$AA$4=\"RU\",L39,\"HATA!\")))","v":"505.SL.14 Q5MENS/LENS"},{"$f":"IF(Form!$AA$4=\"TR\",I39,IF(Form!$AA$4=\"EN\",K39,IF(Form!$AA$4=\"RU\",M39,\"HATA!\")))","v":"Tek Buton & Dubleks & 7-Seg Amber / Multicolor & Buzzer"},null,null,null,null,"505.SL.14 Q5MENS/LENS","Tek Buton & Dubleks & 7-Seg Amber / Multicolor & Buzzer","505.SL.14 Q5MENS/LENS","Single Button & Duplex & 7-Seg Amber / Multicolor & Buzzer","505.SL.14 Q5MENS/LENS","Single Button & Duplex & 7-Seg Amber / Multicolor & Buzzer"]
[null,{"$f":"IF(Form!$AA$4=\"TR\",H40,IF(Form!$AA$4=\"EN\",J40,IF(Form!$AA$4=\"RU\",L40,\"HATA!\")))","v":"510.SL.14 Q5MENS/LENS"},{"$f":"IF(Form!$AA$4=\"TR\",I40,IF(Form!$AA$4=\"EN\",K40,IF(Form!$AA$4=\"RU\",M40,\"HATA!\")))","v":"Çift Buton & Dubleks & 7-Seg Amber / Multicolor & Buzzer"},null,null,null,null,"510.SL.14 Q5MENS/LENS","Çift Buton & Dubleks & 7-Seg Amber / Multicolor & Buzzer","510.SL.14 Q5MENS/LENS","Double Button & Duplex & 7-Seg Amber / Multicolor & Buzzer","510.SL.14 Q5MENS/LENS","Double Button & Duplex & 7-Seg Amber / Multicolor & Buzzer"]
[null,{"$f":"IF(Form!$AA$4=\"TR\",H41,IF(Form!$AA$4=\"EN\",J41,IF(Form!$AA$4=\"RU\",L41,\"HATA!\")))","v":"SL205.SL.160 Q5MENS/LENS"},{"$f":"IF(Form!$AA$4=\"TR\",I41,IF(Form!$AA$4=\"EN\",K41,IF(Form!$AA$4=\"RU\",M41,\"HATA!\")))","v":"Tek Buton & Simpleks & Dot-matris Kırmızı & Buzzer"},null,null,null,null,"SL205.SL.160 Q5MENS/LENS","Tek Buton & Simpleks & Dot-matris Kırmızı & Buzzer","SL205.SL.160 Q5MENS/LENS","Single Button & Simplex & Dot-matrix Red & Buzzer","SL205.SL.160 Q5MENS/LENS","Single Button & Simplex & Dot-matrix Red & Buzzer"]
[null,{"$f":"IF(Form!$AA$4=\"TR\",H42,IF(Form!$AA$4=\"EN\",J42,IF(Form!$AA$4=\"RU\",L42,\"HATA!\")))","v":"SL220.SL.160 Q5MENS/LENS"},{"$f":"IF(Form!$AA$4=\"TR\",I42,IF(Form!$AA$4=\"EN\",K42,IF(Form!$AA$4=\"RU\",M42,\"HATA!\")))","v":"Çift Buton & Simpleks & Dot-matris Kırmızı & Buzzer"},null,null,null,null,"SL220.SL.160 Q5MENS/LENS","Çift Buton & Simpleks & Dot-matris Kırmızı & Buzzer","SL220.SL.160 Q5MENS/LENS","Double Button & Simplex & Dot-matrix Red & Buzzer","SL220.SL.160 Q5MENS/LENS","Double Button & Simplex & Dot-matrix Red & Buzzer"]
[null,{"$f":"IF(Form!$AA$4=\"TR\",H43,IF(Form!$AA$4=\"EN\",J43,IF(Form!$AA$4=\"RU\",L43,\"HATA!\")))","v":"FLX205.SL.160 Q5MENS/LENS"},{"$f":"IF(Form!$AA$4=\"TR\",I43,IF(Form!$AA$4=\"EN\",K43,IF(Form!$AA$4=\"RU\",M43,\"HATA!\")))","v":"Tek Buton & Simpleks & Dot-matris Kırmızı & Buzzer"},null,null,null,null,"FLX205.SL.160 Q5MENS/LENS","Tek Buton & Simpleks & Dot-matris Kırmızı & Buzzer","FLX205.SL.160 Q5MENS/LENS","Single Button & Simplex & Dot-matrix Red & Buzzer","FLX205.SL.160 Q5MENS/LENS","Single Button & Simplex & Dot-matrix Red & Buzzer"]
[null,{"$f":"IF(Form!$AA$4=\"TR\",H44,IF(Form!$AA$4=\"EN\",J44,IF(Form!$AA$4=\"RU\",L44,\"HATA!\")))","v":"FLX220.SL.160 Q5MENS/LENS"},{"$f":"IF(Form!$AA$4=\"TR\",I44,IF(Form!$AA$4=\"EN\",K44,IF(Form!$AA$4=\"RU\",M44,\"HATA!\")))","v":"Çift Buton & Simpleks & Dot-matris Kırmızı & Buzzer"},null,null,null,null,"FLX220.SL.160 Q5MENS/LENS","Çift Buton & Simpleks & Dot-matris Kırmızı & Buzzer","FLX220.SL.160 Q5MENS/LENS","Double Button & Simplex & Dot-matrix Red & Buzzer","FLX220.SL.160 Q5MENS/LENS","Double Button & Simplex & Dot-matrix Red & Buzzer"]
[null,{"$f":"IF(Form!$AA$4=\"TR\",H45,IF(Form!$AA$4=\"EN\",J45,IF(Form!$AA$4=\"RU\",L45,\"HATA!\")))","v":"FLX505.SL.160 Q5MENS/LENS"},{"$f":"IF(Form!$AA$4=\"TR\",I45,IF(Form!$AA$4=\"EN\",K45,IF(Form!$AA$4=\"RU\",M45,\"HATA!\")))","v":"Tek Buton & Simpleks & Dot-matris Kırmızı & Buzzer"},null,null,null,null,"FLX505.SL.160 Q5MENS/LENS","Tek Buton & Simpleks & Dot-matris Kırmızı & Buzzer","FLX505.SL.160 Q5MENS/LENS","Single Button & Simplex & Dot-matrix Red & Buzzer","FLX505.SL.160 Q5MENS/LENS","Single Button & Simplex & Dot-matrix Red & Buzzer"]
[null,{"$f":"IF(Form!$AA$4=\"TR\",H46,IF(Form!$AA$4=\"EN\",J46,IF(Form!$AA$4=\"RU\",L46,\"HATA!\")))","v":"FLX510.SL.160 Q5MENS/LENS"},{"$f":"IF(Form!$AA$4=\"TR\",I46,IF(Form!$AA$4=\"EN\",K46,IF(Form!$AA$4=\"RU\",M46,\"HATA!\")))","v":"Çift Buton & Simpleks & Dot-matris Kırmızı & Buzzer"},null,null,null,null,"FLX510.SL.160 Q5MENS/LENS","Çift Buton & Simpleks & Dot-matris Kırmızı & Buzzer","FLX510.SL.160 Q5MENS/LENS","Double Button & Simplex & Dot-matrix Red & Buzzer","FLX510.SL.160 Q5MENS/LENS","Double Button & Simplex & Dot-matrix Red & Buzzer"]
[null,{"$f":"IF(Form!$AA$4=\"TR\",H47,IF(Form!$AA$4=\"EN\",J47,IF(Form!$AA$4=\"RU\",L47,\"HATA!\")))","v":"205.SL.160 Q5MENS/LENS"},{"$f":"IF(Form!$AA$4=\"TR\",I47,IF(Form!$AA$4=\"EN\",K47,IF(Form!$AA$4=\"RU\",M47,\"HATA!\")))","v":"Tek Buton & Simpleks & Dot-matris Kırmızı & Buzzer"},null,null,null,null,"205.SL.160 Q5MENS/LENS","Tek Buton & Simpleks & Dot-matris Kırmızı & Buzzer","205.SL.160 Q5MENS/LENS","Single Button & Simplex & Dot-matrix Red & Buzzer","205.SL.160 Q5MENS/LENS","Single Button & Simplex & Dot-matrix Red & Buzzer"]
[null,{"$f":"IF(Form!$AA$4=\"TR\",H48,IF(Form!$AA$4=\"EN\",J48,IF(Form!$AA$4=\"RU\",L48,\"HATA!\")))","v":"220.SL.160 Q5MENS/LENS"},{"$f":"IF(Form!$AA$4=\"TR\",I48,IF(Form!$AA$4=\"EN\",K48,IF(Form!$AA$4=\"RU\",M48,\"HATA!\")))","v":"Çift Buton & Simpleks & Dot-matris Kırmızı & Buzzer"},null,null,null,null,"220.SL.160 Q5MENS/LENS","Çift Buton & Simpleks & Dot-matris Kırmızı & Buzzer","220.SL.160 Q5MENS/LENS","Double Button & Simplex & Dot-matrix Red & Buzzer","220.SL.160 Q5MENS/LENS","Double Button & Simplex & Dot-matrix Red & Buzzer"]
[null,{"$f":"IF(Form!$AA$4=\"TR\",H49,IF(Form!$AA$4=\"EN\",J49,IF(Form!$AA$4=\"RU\",L49,\"HATA!\")))","v":"505.SL.160 Q5MENS/LENS"},{"$f":"IF(Form!$AA$4=\"TR\",I49,IF(Form!$AA$4=\"EN\",K49,IF(Form!$AA$4=\"RU\",M49,\"HATA!\")))","v":"Tek Buton & Dubleks & Dot-matris Kırmızı & Buzzer"},null,null,null,null,"505.SL.160 Q5MENS/LENS","Tek Buton & Dubleks & Dot-matris Kırmızı & Buzzer","505.SL.160 Q5MENS/LENS","Single Button & Duplex & Dot-matrix Red & Buzzer","505.SL.160 Q5MENS/LENS","Single Button & Duplex & Dot-matrix Red & Buzzer"]
[null,{"$f":"IF(Form!$AA$4=\"TR\",H50,IF(Form!$AA$4=\"EN\",J50,IF(Form!$AA$4=\"RU\",L50,\"HATA!\")))","v":"510.SL.160 Q5MENS/LENS"},{"$f":"IF(Form!$AA$4=\"TR\",I50,IF(Form!$AA$4=\"EN\",K50,IF(Form!$AA$4=\"RU\",M50,\"HATA!\")))","v":"Çift Buton & Dubleks & Dot-matris Kırmızı & Buzzer"},null,null,null,null,"510.SL.160 Q5MENS/LENS","Çift Buton & Dubleks & Dot-matris Kırmızı & Buzzer","510.SL.160 Q5MENS/LENS","Double Button & Duplex & Dot-matrix Red & Buzzer","510.SL.160 Q5MENS/LENS","Double Button & Duplex & Dot-matrix Red & Buzzer"]
[null,{"$f":"IF(Form!$AA$4=\"TR\",H51,IF(Form!$AA$4=\"EN\",J51,IF(Form!$AA$4=\"RU\",L51,\"HATA!\")))","v":"FLX205.SL.14 FX6/B3-ENP.LS"},{"$f":"IF(Form!$AA$4=\"TR\",I51,IF(Form!$AA$4=\"EN\",K51,IF(Form!$AA$4=\"RU\",M51,\"HATA!\")))","v":"Tek Buton & Simpleks & 7-Seg Amber / Multicolor & Buzzer"},null,null,null,null,"FLX205.SL.14 FX6/B3-ENP.LS","Tek Buton & Simpleks & 7-Seg Amber / Multicolor & Buzzer","FLX205.SL.14 FX6/B3-ENP.LS","Single Button & Simplex & 7-Seg Amber / Multicolor & Buzzer","FLX205.SL.14 FX6/B3-ENP.LS","Single Button & Simplex & 7-Seg Amber / Multicolor & Buzzer"]
[null,{"$f":"IF(Form!$AA$4=\"TR\",H52,IF(Form!$AA$4=\"EN\",J52,IF(Form!$AA$4=\"RU\",L52,\"HATA!\")))","v":"FLX220.SL.14 FX6/B3-ENP.LS"},{"$f":"IF(Form!$AA$4=\"TR\",I52,IF(Form!$AA$4=\"EN\",K52,IF(Form!$AA$4=\"RU\",M52,\"HATA!\")))","v":"Çift Buton & Simpleks & 7-Seg Amber / Multicolor & Buzzer"},null,null,null,null,"FLX220.SL.14 FX6/B3-ENP.LS","Çift Buton & Simpleks & 7-Seg Amber / Multicolor & Buzzer","FLX220.SL.14 FX6/B3-ENP.LS","Double Button & Simplex & 7-Seg Amber / Multicolor & Buzzer","FLX220.SL.14 FX6/B3-ENP.LS","Double Button & Simplex & 7-Seg Amber / Multicolor & Buzzer"]
[null,{"$f":"IF(Form!$AA$4=\"TR\",H53,IF(Form!$AA$4=\"EN\",J53,IF(Form!$AA$4=\"RU\",L53,\"HATA!\")))","v":"FLX505.SL.14 FX6/B3-ENP.LS"},{"$f":"IF(Form!$AA$4=\"TR\",I53,IF(Form!$AA$4=\"EN\",K53,IF(Form!$AA$4=\"RU\",M53,\"HATA!\")))","v":"Tek Buton & Simpleks & 7-Seg Amber / Multicolor & Buzzer"},null,null,null,null,"FLX505.SL.14 FX6/B3-ENP.LS","Tek Buton & Simpleks & 7-Seg Amber / Multicolor & Buzzer","FLX505.SL.14 FX6/B3-ENP.LS","Single Button & Simplex & 7-Seg Amber / Multicolor & Buzzer","FLX505.SL.14 FX6/B3-ENP.LS","Single Button & Simplex & 7-Seg Amber / Multicolor & Buzzer"]
[null,{"$f":"IF(Form!$AA$4=\"TR\",H54,IF(Form!$AA$4=\"EN\",J54,IF(Form!$AA$4=\"RU\",L54,\"HATA!\")))","v":"FLX510.SL.14 FX6/B3-ENP.LS"},{"$f":"IF(Form!$AA$4=\"TR\",I54,IF(Form!$AA$4=\"EN\",K54,IF(Form!$AA$4=\"RU\",M54,\"HATA!\")))","v":"Çift Buton & Simpleks & 7-Seg Amber / Multicolor & Buzzer"},null,null,null,null,"FLX510.SL.14 FX6/B3-ENP.LS","Çift Buton & Simpleks & 7-Seg Amber / Multicolor & Buzzer","FLX510.SL.14 FX6/B3-ENP.LS","Double Button & Simplex & 7-Seg Amber / Multicolor & Buzzer","FLX510.SL.14 FX6/B3-ENP.LS","Double Button & Simplex & 7-Seg Amber / Multicolor & Buzzer"]
[null,{"$f":"IF(Form!$AA$4=\"TR\",H55,IF(Form!$AA$4=\"EN\",J55,IF(Form!$AA$4=\"RU\",L55,\"HATA!\")))","v":"205.SL.14 FX6/B3-ENP.LS"},{"$f":"IF(Form!$AA$4=\"TR\",I55,IF(Form!$AA$4=\"EN\",K55,IF(Form!$AA$4=\"RU\",M55,\"HATA!\")))","v":"Tek Buton & Simpleks & 7-Seg Amber / Multicolor & Buzzer"},null,null,null,null,"205.SL.14 FX6/B3-ENP.LS","Tek Buton & Simpleks & 7-Seg Amber / Multicolor & Buzzer","205.SL.14 FX6/B3-ENP.LS","Single Button & Simplex & 7-Seg Amber / Multicolor & Buzzer","205.SL.14 FX6/B3-ENP.LS","Single Button & Simplex & 7-Seg Amber / Multicolor & Buzzer"]
[null,{"$f":"IF(Form!$AA$4=\"TR\",H56,IF(Form!$AA$4=\"EN\",J56,IF(Form!$AA$4=\"RU\",L56,\"HATA!\")))","v":"220.SL.14 FX6/B3-ENP.LS"},{"$f":"IF(Form!$AA$4=\"TR\",I56,IF(Form!$AA$4=\"EN\",K56,IF(Form!$AA$4=\"RU\",M56,\"HATA!\")))","v":"Çift Buton & Simpleks & 7-Seg Amber / Multicolor & Buzzer"},null,null,null,null,"220.SL.14 FX6/B3-ENP.LS","Çift Buton & Simpleks & 7-Seg Amber / Multicolor & Buzzer","220.SL.14 FX6/B3-ENP.LS","Double Button & Simplex & 7-Seg Amber / Multicolor & Buzzer","220.SL.14 FX6/B3-ENP.LS","Double Button & Simplex & 7-Seg Amber / Multicolor & Buzzer"]
[null,{"$f":"IF(Form!$AA$4=\"TR\",H57,IF(Form!$AA$4=\"EN\",J57,IF(Form!$AA$4=\"RU\",L57,\"HATA!\")))","v":"505.SL.14 FX6/B3-ENP.LS"},{"$f":"IF(Form!$AA$4=\"TR\",I57,IF(Form!$AA$4=\"EN\",K57,IF(Form!$AA$4=\"RU\",M57,\"HATA!\")))","v":"Tek Buton & Dubleks & 7-Seg Amber / Multicolor & Buzzer"},null,null,null,null,"505.SL.14 FX6/B3-ENP.LS","Tek Buton & Dubleks & 7-Seg Amber / Multicolor & Buzzer","505.SL.14 FX6/B3-ENP.LS","Single Button & Duplex & 7-Seg Amber / Multicolor & Buzzer","505.SL.14 FX6/B3-ENP.LS","Single Button & Duplex & 7-Seg Amber / Multicolor & Buzzer"]
[null,{"$f":"IF(Form!$AA$4=\"TR\",H58,IF(Form!$AA$4=\"EN\",J58,IF(Form!$AA$4=\"RU\",L58,\"HATA!\")))","v":"510.SL.14 FX6/B3-ENP.LS"},{"$f":"IF(Form!$AA$4=\"TR\",I58,IF(Form!$AA$4=\"EN\",K58,IF(Form!$AA$4=\"RU\",M58,\"HATA!\")))","v":"Çift Buton & Dubleks & 7-Seg Amber / Multicolor & Buzzer"},null,null,null,null,"510.SL.14 FX6/B3-ENP.LS","Çift Buton & Dubleks & 7-Seg Amber / Multicolor & Buzzer","510.SL.14 FX6/B3-ENP.LS","Double Button & Duplex & 7-Seg Amber / Multicolor & Buzzer","510.SL.14 FX6/B3-ENP.LS","Double Button & Duplex & 7-Seg Amber / Multicolor & Buzzer"]
[null,{"$f":"IF(Form!$AA$4=\"TR\",H59,IF(Form!$AA$4=\"EN\",J59,IF(Form!$AA$4=\"RU\",L59,\"HATA!\")))","v":"FLX205.SL.160 FX6/B3-ENP.LS"},{"$f":"IF(Form!$AA$4=\"TR\",I59,IF(Form!$AA$4=\"EN\",K59,IF(Form!$AA$4=\"RU\",M59,\"HATA!\")))","v":"Tek Buton & Simpleks & Dot-matris Kırmızı & Buzzer"},null,null,null,null,"FLX205.SL.160 FX6/B3-ENP.LS","Tek Buton & Simpleks & Dot-matris Kırmızı & Buzzer","FLX205.SL.160 FX6/B3-ENP.LS","Single Button & Simplex & Dot-matrix Red & Buzzer","FLX205.SL.160 FX6/B3-ENP.LS","Single Button & Simplex & Dot-matrix Red & Buzzer"]
[null,{"$f":"IF(Form!$AA$4=\"TR\",H60,IF(Form!$AA$4=\"EN\",J60,IF(Form!$AA$4=\"RU\",L60,\"HATA!\")))","v":"FLX220.SL.160 FX6/B3-ENP.LS"},{"$f":"IF(Form!$AA$4=\"TR\",I60,IF(Form!$AA$4=\"EN\",K60,IF(Form!$AA$4=\"RU\",M60,\"HATA!\")))","v":"Çift Buton & Simpleks & Dot-matris Kırmızı & Buzzer"},null,null,null,null,"FLX220.SL.160 FX6/B3-ENP.LS","Çift Buton & Simpleks & Dot-matris Kırmızı & Buzzer","FLX220.SL.160 FX6/B3-ENP.LS","Double Button & Simplex & Dot-matrix Red & Buzzer","FLX220.SL.160 FX6/B3-ENP.LS","Double Button & Simplex & Dot-matrix Red & Buzzer"]
[null,{"$f":"IF(Form!$AA$4=\"TR\",H61,IF(Form!$AA$4=\"EN\",J61,IF(Form!$AA$4=\"RU\",L61,\"HATA!\")))","v":"FLX505.SL.160 FX6/B3-ENP.LS"},{"$f":"IF(Form!$AA$4=\"TR\",I61,IF(Form!$AA$4=\"EN\",K61,IF(Form!$AA$4=\"RU\",M61,\"HATA!\")))","v":"Tek Buton & Simpleks & Dot-matris Kırmızı & Buzzer"},null,null,null,null,"FLX505.SL.160 FX6/B3-ENP.LS","Tek Buton & Simpleks & Dot-matris Kırmızı & Buzzer","FLX505.SL.160 FX6/B3-ENP.LS","Single Button & Simplex & Dot-matrix Red & Buzzer","FLX505.SL.160 FX6/B3-ENP.LS","Single Button & Simplex & Dot-matrix Red & Buzzer"]
[null,{"$f":"IF(Form!$AA$4=\"TR\",H62,IF(Form!$AA$4=\"EN\",J62,IF(Form!$AA$4=\"RU\",L62,\"HATA!\")))","v":"FLX510.SL.160 FX6/B3-ENP.LS"},{"$f":"IF(Form!$AA$4=\"TR\",I62,IF(Form!$AA$4=\"EN\",K62,IF(Form!$AA$4=\"RU\",M62,\"HATA!\")))","v":"Çift Buton & Simpleks & Dot-matris Kırmızı & Buzzer"},null,null,null,null,"FLX510.SL.160 FX6/B3-ENP.LS","Çift Buton & Simpleks & Dot-matris Kırmızı & Buzzer","FLX510.SL.160 FX6/B3-ENP.LS","Double Button & Simplex & Dot-matrix Red & Buzzer","FLX510.SL.160 FX6/B3-ENP.LS","Double Button & Simplex & Dot-matrix Red & Buzzer"]
[null,{"$f":"IF(Form!$AA$4=\"TR\",H63,IF(Form!$AA$4=\"EN\",J63,IF(Form!$AA$4=\"RU\",L63,\"HATA!\")))","v":"205.SL.160 FX6/B3-ENP.LS"},{"$f":"IF(Form!$AA$4=\"TR\",I63,IF(Form!$AA$4=\"EN\",K63,IF(Form!$AA$4=\"RU\",M63,\"HATA!\")))","v":"Tek Buton & Simpleks & Dot-matris Kırmızı & Buzzer"},null,null,null,null,"205.SL.160 FX6/B3-ENP.LS","Tek Buton & Simpleks & Dot-matris Kırmızı & Buzzer","205.SL.160 FX6/B3-ENP.LS","Single Button & Simplex & Dot-matrix Red & Buzzer","205.SL.160 FX6/B3-ENP.LS","Single Button & Simplex & Dot-matrix Red & Buzzer"]
[null,{"$f":"IF(Form!$AA$4=\"TR\",H64,IF(Form!$AA$4=\"EN\",J64,IF(Form!$AA$4=\"RU\",L64,\"HATA!\")))","v":"220.SL.160 FX6/B3-ENP.LS"},{"$f":"IF(Form!$AA$4=\"TR\",I64,IF(Form!$AA$4=\"EN\",K64,IF(Form!$AA$4=\"RU\",M64,\"HATA!\")))","v":"Çift Buton & Simpleks & Dot-matris Kırmızı & Buzzer"},null,null,null,null,"220.SL.160 FX6/B3-ENP.LS","Çift Buton & Simpleks & Dot-matris Kırmızı & Buzzer","220.SL.160 FX6/B3-ENP.LS","Double Button & Simplex & Dot-matrix Red & Buzzer","220.SL.160 FX6/B3-ENP.LS","Double Button & Simplex & Dot-matrix Red & Buzzer"]
[null,{"$f":"IF(Form!$AA$4=\"TR\",H65,IF(Form!$AA$4=\"EN\",J65,IF(Form!$AA$4=\"RU\",L65,\"HATA!\")))","v":"505.SL.160 FX6/B3-ENP.LS"},{"$f":"IF(Form!$AA$4=\"TR\",I65,IF(Form!$AA$4=\"EN\",K65,IF(Form!$AA$4=\"RU\",M65,\"HATA!\")))","v":"Tek Buton & Dubleks & Dot-matris Kırmızı & Buzzer"},null,null,null,null,"505.SL.160 FX6/B3-ENP.LS","Tek Buton & Dubleks & Dot-matris Kırmızı & Buzzer","505.SL.160 FX6/B3-ENP.LS","Single Button & Duplex & Dot-matrix Red & Buzzer","505.SL.160 FX6/B3-ENP.LS","Single Button & Duplex & Dot-matrix Red & Buzzer"]
[null,{"$f":"IF(Form!$AA$4=\"TR\",H66,IF(Form!$AA$4=\"EN\",J66,IF(Form!$AA$4=\"RU\",L66,\"HATA!\")))","v":"510.SL.160 FX6/B3-ENP.LS"},{"$f":"IF(Form!$AA$4=\"TR\",I66,IF(Form!$AA$4=\"EN\",K66,IF(Form!$AA$4=\"RU\",M66,\"HATA!\")))","v":"Çift Buton & Dubleks & Dot-matris Kırmızı & Buzzer"},null,null,null,null,"510.SL.160 FX6/B3-ENP.LS","Çift Buton & Dubleks & Dot-matris Kırmızı & Buzzer","510.SL.160 FX6/B3-ENP.LS","Double Button & Duplex & Dot-matrix Red & Buzzer","510.SL.160 FX6/B3-ENP.LS","Double Button & Duplex & Dot-matrix Red & Buzzer"]
[null,{"$f":"IF(Form!$AA$4=\"TR\",H67,IF(Form!$AA$4=\"EN\",J67,IF(Form!$AA$4=\"RU\",L67,\"HATA!\")))","v":"FLX205.SL.14 V2-P"},{"$f":"IF(Form!$AA$4=\"TR\",I67,IF(Form!$AA$4=\"EN\",K67,IF(Form!$AA$4=\"RU\",M67,\"HATA!\")))","v":"Tek Buton & Simpleks & 7-Seg Amber / Multicolor & Buzzer"},null,null,null,null,"FLX205.SL.14 V2-P","Tek Buton & Simpleks & 7-Seg Amber / Multicolor & Buzzer","FLX205.SL.14 V2-P","Single Button & Simplex & 7-Seg Amber / Multicolor & Buzzer","FLX205.SL.14 V2-P","Single Button & Simplex & 7-Seg Amber / Multicolor & Buzzer"]
[null,{"$f":"IF(Form!$AA$4=\"TR\",H68,IF(Form!$AA$4=\"EN\",J68,IF(Form!$AA$4=\"RU\",L68,\"HATA!\")))","v":"FLX220.SL.14 V2-P"},{"$f":"IF(Form!$AA$4=\"TR\",I68,IF(Form!$AA$4=\"EN\",K68,IF(Form!$AA$4=\"RU\",M68,\"HATA!\")))","v":"Çift Buton & Simpleks & 7-Seg Amber / Multicolor & Buzzer"},null,null,null,null,"FLX220.SL.14 V2-P","Çift Buton & Simpleks & 7-Seg Amber / Multicolor & Buzzer","FLX220.SL.14 V2-P","Double Button & Simplex & 7-Seg Amber / Multicolor & Buzzer","FLX220.SL.14 V2-P","Double Button & Simplex & 7-Seg Amber / Multicolor & Buzzer"]
[null,{"$f":"IF(Form!$AA$4=\"TR\",H69,IF(Form!$AA$4=\"EN\",J69,IF(Form!$AA$4=\"RU\",L69,\"HATA!\")))","v":"FLX505.SL.14 V2-P"},{"$f":"IF(Form!$AA$4=\"TR\",I69,IF(Form!$AA$4=\"EN\",K69,IF(Form!$AA$4=\"RU\",M69,\"HATA!\")))","v":"Tek Buton & Simpleks & 7-Seg Amber / Multicolor & Buzzer"},null,null,null,null,"FLX505.SL.14 V2-P","Tek Buton & Simpleks & 7-Seg Amber / Multicolor & Buzzer","FLX505.SL.14 V2-P","Single Button & Simplex & 7-Seg Amber / Multicolor & Buzzer","FLX505.SL.14 V2-P","Single Button & Simplex & 7-Seg Amber / Multicolor & Buzzer"]
[null,{"$f":"IF(Form!$AA$4=\"TR\",H70,IF(Form!$AA$4=\"EN\",J70,IF(Form!$AA$4=\"RU\",L70,\"HATA!\")))","v":"FLX510.SL.14 V2-P"},{"$f":"IF(Form!$AA$4=\"TR\",I70,IF(Form!$AA$4=\"EN\",K70,IF(Form!$AA$4=\"RU\",M70,\"HATA!\")))","v":"Çift Buton & Simpleks & 7-Seg Amber / Multicolor & Buzzer"},null,null,null,null,"FLX510.SL.14 V2-P","Çift Buton & Simpleks & 7-Seg Amber / Multicolor & Buzzer","FLX510.SL.14 V2-P","Double Button & Simplex & 7-Seg Amber / Multicolor & Buzzer","FLX510.SL.14 V2-P","Double Button & Simplex & 7-Seg Amber / Multicolor & Buzzer"]
[null,{"$f":"IF(Form!$AA$4=\"TR\",H71,IF(Form!$AA$4=\"EN\",J71,IF(Form!$AA$4=\"RU\",L71,\"HATA!\")))","v":"205.SL.14 V2-P"},{"$f":"IF(Form!$AA$4=\"TR\",I71,IF(Form!$AA$4=\"EN\",K71,IF(Form!$AA$4=\"RU\",M71,\"HATA!\")))","v":"Tek Buton & Simpleks & 7-Seg Amber / Multicolor & Buzzer"},null,null,null,null,"205.SL.14 V2-P","Tek Buton & Simpleks & 7-Seg Amber / Multicolor & Buzzer","205.SL.14 V2-P","Single Button & Simplex & 7-Seg Amber / Multicolor & Buzzer","205.SL.14 V2-P","Single Button & Simplex & 7-Seg Amber / Multicolor & Buzzer"]
[null,{"$f":"IF(Form!$AA$4=\"TR\",H72,IF(Form!$AA$4=\"EN\",J72,IF(Form!$AA$4=\"RU\",L72,\"HATA!\")))","v":"220.SL.14 V2-P"},{"$f":"IF(Form!$AA$4=\"TR\",I72,IF(Form!$AA$4=\"EN\",K72,IF(Form!$AA$4=\"RU\",M72,\"HATA!\")))","v":"Çift Buton & Simpleks & 7-Seg Amber / Multicolor & Buzzer"},null,null,null,null,"220.SL.14 V2-P","Çift Buton & Simpleks & 7-Seg Amber / Multicolor & Buzzer","220.SL.14 V2-P","Double Button & Simplex & 7-Seg Amber / Multicolor & Buzzer","220.SL.14 V2-P","Double Button & Simplex & 7-Seg Amber / Multicolor & Buzzer"]
[null,{"$f":"IF(Form!$AA$4=\"TR\",H73,IF(Form!$AA$4=\"EN\",J73,IF(Form!$AA$4=\"RU\",L73,\"HATA!\")))","v":"505.SL.14 V2-P"},{"$f":"IF(Form!$AA$4=\"TR\",I73,IF(Form!$AA$4=\"EN\",K73,IF(Form!$AA$4=\"RU\",M73,\"HATA!\")))","v":"Tek Buton & Dubleks & 7-Seg Amber / Multicolor & Buzzer"},null,null,null,null,"505.SL.14 V2-P","Tek Buton & Dubleks & 7-Seg Amber / Multicolor & Buzzer","505.SL.14 V2-P","Single Button & Duplex & 7-Seg Amber / Multicolor & Buzzer","505.SL.14 V2-P","Single Button & Duplex & 7-Seg Amber / Multicolor & Buzzer"]
[null,{"$f":"IF(Form!$AA$4=\"TR\",H74,IF(Form!$AA$4=\"EN\",J74,IF(Form!$AA$4=\"RU\",L74,\"HATA!\")))","v":"510.SL.14 V2-P"},{"$f":"IF(Form!$AA$4=\"TR\",I74,IF(Form!$AA$4=\"EN\",K74,IF(Form!$AA$4=\"RU\",M74,\"HATA!\")))","v":"Çift Buton & Dubleks & 7-Seg Amber / Multicolor & Buzzer"},null,null,null,null,"510.SL.14 V2-P","Çift Buton & Dubleks & 7-Seg Amber / Multicolor & Buzzer","510.SL.14 V2-P","Double Button & Duplex & 7-Seg Amber / Multicolor & Buzzer","510.SL.14 V2-P","Double Button & Duplex & 7-Seg Amber / Multicolor & Buzzer"]
[null,{"$f":"IF(Form!$AA$4=\"TR\",H75,IF(Form!$AA$4=\"EN\",J75,IF(Form!$AA$4=\"RU\",L75,\"HATA!\")))","v":"FLX205.SL.160 V2-P"},{"$f":"IF(Form!$AA$4=\"TR\",I75,IF(Form!$AA$4=\"EN\",K75,IF(Form!$AA$4=\"RU\",M75,\"HATA!\")))","v":"Tek Buton & Simpleks & Dot-matris Kırmızı & Buzzer"},null,null,null,null,"FLX205.SL.160 V2-P","Tek Buton & Simpleks & Dot-matris Kırmızı & Buzzer","FLX205.SL.160 V2-P","Single Button & Simplex & Dot-matrix Red & Buzzer","FLX205.SL.160 V2-P","Single Button & Simplex & Dot-matrix Red & Buzzer"]
[null,{"$f":"IF(Form!$AA$4=\"TR\",H76,IF(Form!$AA$4=\"EN\",J76,IF(Form!$AA$4=\"RU\",L76,\"HATA!\")))","v":"FLX220.SL.160 V2-P"},{"$f":"IF(Form!$AA$4=\"TR\",I76,IF(Form!$AA$4=\"EN\",K76,IF(Form!$AA$4=\"RU\",M76,\"HATA!\")))","v":"Çift Buton & Simpleks & Dot-matris Kırmızı & Buzzer"},null,null,null,null,"FLX220.SL.160 V2-P","Çift Buton & Simpleks & Dot-matris Kırmızı & Buzzer","FLX220.SL.160 V2-P","Double Button & Simplex & Dot-matrix Red & Buzzer","FLX220.SL.160 V2-P","Double Button & Simplex & Dot-matrix Red & Buzzer"]
[null,{"$f":"IF(Form!$AA$4=\"TR\",H77,IF(Form!$AA$4=\"EN\",J77,IF(Form!$AA$4=\"RU\",L77,\"HATA!\")))","v":"FLX505.SL.160 V2-P"},{"$f":"IF(Form!$AA$4=\"TR\",I77,IF(Form!$AA$4=\"EN\",K77,IF(Form!$AA$4=\"RU\",M77,\"HATA!\")))","v":"Tek Buton & Simpleks & Dot-matris Kırmızı & Buzzer"},null,null,null,null,"FLX505.SL.160 V2-P","Tek Buton & Simpleks & Dot-matris Kırmızı & Buzzer","FLX505.SL.160 V2-P","Single Button & Simplex & Dot-matrix Red & Buzzer","FLX505.SL.160 V2-P","Single Button & Simplex & Dot-matrix Red & Buzzer"]
[null,{"$f":"IF(Form!$AA$4=\"TR\",H78,IF(Form!$AA$4=\"EN\",J78,IF(Form!$AA$4=\"RU\",L78,\"HATA!\")))","v":"FLX510.SL.160 V2-P"},{"$f":"IF(Form!$AA$4=\"TR\",I78,IF(Form!$AA$4=\"EN\",K78,IF(Form!$AA$4=\"RU\",M78,\"HATA!\")))","v":"Çift Buton & Simpleks & Dot-matris Kırmızı & Buzzer"},null,null,null,null,"FLX510.SL.160 V2-P","Çift Buton & Simpleks & Dot-matris Kırmızı & Buzzer","FLX510.SL.160 V2-P","Double Button & Simplex & Dot-matrix Red & Buzzer","FLX510.SL.160 V2-P","Double Button & Simplex & Dot-matrix Red & Buzzer"]
[null,{"$f":"IF(Form!$AA$4=\"TR\",H79,IF(Form!$AA$4=\"EN\",J79,IF(Form!$AA$4=\"RU\",L79,\"HATA!\")))","v":"205.SL.160 V2-P"},{"$f":"IF(Form!$AA$4=\"TR\",I79,IF(Form!$AA$4=\"EN\",K79,IF(Form!$AA$4=\"RU\",M79,\"HATA!\")))","v":"Tek Buton & Simpleks & Dot-matris Kırmızı & Buzzer"},null,null,null,null,"205.SL.160 V2-P","Tek Buton & Simpleks & Dot-matris Kırmızı & Buzzer","205.SL.160 V2-P","Single Button & Simplex & Dot-matrix Red & Buzzer","205.SL.160 V2-P","Single Button & Simplex & Dot-matrix Red & Buzzer"]
[null,{"$f":"IF(Form!$AA$4=\"TR\",H80,IF(Form!$AA$4=\"EN\",J80,IF(Form!$AA$4=\"RU\",L80,\"HATA!\")))","v":"220.SL.160 V2-P"},{"$f":"IF(Form!$AA$4=\"TR\",I80,IF(Form!$AA$4=\"EN\",K80,IF(Form!$AA$4=\"RU\",M80,\"HATA!\")))","v":"Çift Buton & Simpleks & Dot-matris Kırmızı & Buzzer"},null,null,null,null,"220.SL.160 V2-P","Çift Buton & Simpleks & Dot-matris Kırmızı & Buzzer","220.SL.160 V2-P","Double Button & Simplex & Dot-matrix Red & Buzzer","220.SL.160 V2-P","Double Button & Simplex & Dot-matrix Red & Buzzer"]
[null,{"$f":"IF(Form!$AA$4=\"TR\",H81,IF(Form!$AA$4=\"EN\",J81,IF(Form!$AA$4=\"RU\",L81,\"HATA!\")))","v":"505.SL.160 V2-P"},{"$f":"IF(Form!$AA$4=\"TR\",I81,IF(Form!$AA$4=\"EN\",K81,IF(Form!$AA$4=\"RU\",M81,\"HATA!\")))","v":"Tek Buton & Dubleks & Dot-matris Kırmızı & Buzzer"},null,null,null,null,"505.SL.160 V2-P","Tek Buton & Dubleks & Dot-matris Kırmızı & Buzzer","505.SL.160 V2-P","Single Button & Duplex & Dot-matrix Red & Buzzer","505.SL.160 V2-P","Single Button & Duplex & Dot-matrix Red & Buzzer"]
[null,{"$f":"IF(Form!$AA$4=\"TR\",H82,IF(Form!$AA$4=\"EN\",J82,IF(Form!$AA$4=\"RU\",L82,\"HATA!\")))","v":"510.SL.160 V2-P"},{"$f":"IF(Form!$AA$4=\"TR\",I82,IF(Form!$AA$4=\"EN\",K82,IF(Form!$AA$4=\"RU\",M82,\"HATA!\")))","v":"Çift Buton & Dubleks & Dot-matris Kırmızı & Buzzer"},null,null,null,null,"510.SL.160 V2-P","Çift Buton & Dubleks & Dot-matris Kırmızı & Buzzer","510.SL.160 V2-P","Double Button & Duplex & Dot-matrix Red & Buzzer","510.SL.160 V2-P","Double Button & Duplex & Dot-matrix Red & Buzzer"]
[null,{"$f":"IF(Form!$AA$4=\"TR\",H83,IF(Form!$AA$4=\"EN\",J83,IF(Form!$AA$4=\"RU\",L83,\"HATA!\")))","v":"Göstergeli Seri Haberleşme Kat Kartları"},{"$f":"IF(Form!$AA$4=\"TR\",I83,IF(Form!$AA$4=\"EN\",K83,IF(Form!$AA$4=\"RU\",M83,\"HATA!\")))","v":0},null,null,null,null,"Göstergeli Seri Haberleşme Kat Kartları",null,"Serial Display boards for LOPs",null,"Serial Display boards for LOPs"]
[null,{"$f":"IF(Form!$AA$4=\"TR\",H84,IF(Form!$AA$4=\"EN\",J84,IF(Form!$AA$4=\"RU\",L84,\"HATA!\")))","v":"SL14-AB"},{"$f":"IF(Form!$AA$4=\"TR\",I84,IF(Form!$AA$4=\"EN\",K84,IF(Form!$AA$4=\"RU\",M84,\"HATA!\")))","v":"Simpleks & 2x7-Seg Amber / Multicolor & Buzzer"},null,null,null,null,"SL14-AB","Simpleks & 2x7-Seg Amber / Multicolor & Buzzer","SL14-AB","Simplex & 2x7-Seg Amber / Multicolor & Buzzer","SL14-AB","Simplex & 2x7-Seg Amber / Multicolor & Buzzer"]
[null,{"$f":"IF(Form!$AA$4=\"TR\",H85,IF(Form!$AA$4=\"EN\",J85,IF(Form!$AA$4=\"RU\",L85,\"HATA!\")))","v":"DSL14-AB"},{"$f":"IF(Form!$AA$4=\"TR\",I85,IF(Form!$AA$4=\"EN\",K85,IF(Form!$AA$4=\"RU\",M85,\"HATA!\")))","v":"Dubleks & 2x7-Seg Amber / Multicolor & Buzzer"},null,null,null,null,"DSL14-AB","Dubleks & 2x7-Seg Amber / Multicolor & Buzzer","DSL14-AB","Duplex & 2x7-Seg Amber / Multicolor & Buzzer","DSL14-AB","Duplex & 2x7-Seg Amber / Multicolor & Buzzer"]
[null,{"$f":"IF(Form!$AA$4=\"TR\",H86,IF(Form!$AA$4=\"EN\",J86,IF(Form!$AA$4=\"RU\",L86,\"HATA!\")))","v":"SL160-AB"},{"$f":"IF(Form!$AA$4=\"TR\",I86,IF(Form!$AA$4=\"EN\",K86,IF(Form!$AA$4=\"RU\",M86,\"HATA!\")))","v":"Simpleks & 16x10 Dot-matris Kırmızı & Buzzer"},null,null,null,null,"SL160-AB","Simpleks & 16x10 Dot-matris Kırmızı & Buzzer","SL160-AB","Simplex & 16x10 Dot-matrix Red & Buzzer","SL160-AB","Simplex & 16x10 Dot-matrix Red & Buzzer"]
[null,{"$f":"IF(Form!$AA$4=\"TR\",H87,IF(Form!$AA$4=\"EN\",J87,IF(Form!$AA$4=\"RU\",L87,\"HATA!\")))","v":"DSL160-AB"},{"$f":"IF(Form!$AA$4=\"TR\",I87,IF(Form!$AA$4=\"EN\",K87,IF(Form!$AA$4=\"RU\",M87,\"HATA!\")))","v":"Dubleks & 16x10 Dot-matris Kırmızı & Buzzer"},null,null,null,null,"DSL160-AB","Dubleks & 16x10 Dot-matris Kırmızı & Buzzer","DSL160-AB","Duplex & 16x10 Dot-matrix Red & Buzzer","DSL160-AB","Duplex & 16x10 Dot-matrix Red & Buzzer"]
[null,{"$f":"IF(Form!$AA$4=\"TR\",H88,IF(Form!$AA$4=\"EN\",J88,IF(Form!$AA$4=\"RU\",L88,\"HATA!\")))","v":0},{"$f":"IF(Form!$AA$4=\"TR\",I88,IF(Form!$AA$4=\"EN\",K88,IF(Form!$AA$4=\"RU\",M88,\"HATA!\")))","v":0}]
[null,{"$f":"IF(Form!$AA$4=\"TR\",H89,IF(Form!$AA$4=\"EN\",J89,IF(Form!$AA$4=\"RU\",L89,\"HATA!\")))","v":"Göstergesiz Seri Haberleşme Kat Kartları"},{"$f":"IF(Form!$AA$4=\"TR\",I89,IF(Form!$AA$4=\"EN\",K89,IF(Form!$AA$4=\"RU\",M89,\"HATA!\")))","v":0},null,null,null,null,"Göstergesiz Seri Haberleşme Kat Kartları",null,"Serial Boards for LOPs",null,"Serial Boards for LOPs"]
[null,{"$f":"IF(Form!$AA$4=\"TR\",H90,IF(Form!$AA$4=\"EN\",J90,IF(Form!$AA$4=\"RU\",L90,\"HATA!\")))","v":"SLFCP"},{"$f":"IF(Form!$AA$4=\"TR\",I90,IF(Form!$AA$4=\"EN\",K90,IF(Form!$AA$4=\"RU\",M90,\"HATA!\")))","v":"Kat göstergeleri için gray-binary, yön oku ve buton çıkışlı seri haberleşmeli kat kartı"},null,null,null,null,"SLFCP","Kat göstergeleri için gray-binary, yön oku ve buton çıkışlı seri haberleşmeli kat kartı","SLFCP","Serial board for gray or binary compatible landing displays","SLFCP","Serial board for gray or binary compatible landing displays"]
[null,{"$f":"IF(Form!$AA$4=\"TR\",H91,IF(Form!$AA$4=\"EN\",J91,IF(Form!$AA$4=\"RU\",L91,\"HATA!\")))","v":"SLFAB"},{"$f":"IF(Form!$AA$4=\"TR\",I91,IF(Form!$AA$4=\"EN\",K91,IF(Form!$AA$4=\"RU\",M91,\"HATA!\")))","v":"Yön oku ve buton çıkışlı seri haberleşmeli kat kartı "},null,null,null,null,"SLFAB","Yön oku ve buton çıkışlı seri haberleşmeli kat kartı ","SLFAB","Serial board for push button & direction arrows (w/o display)","SLFAB","Serial board for push button & direction arrows (w/o display)"]
[]
[]
[]
[null,{"$f":"IF(Form!$AA$4=\"TR\",H95,IF(Form!$AA$4=\"EN\",J95,IF(Form!$AA$4=\"RU\",L95,\"HATA!\")))","v":"Mik-el Mivox Seri Haberleşmeli Kabin Butonyerleri"},null,null,null,null,null,"Mik-el Mivox Seri Haberleşmeli Kabin Butonyerleri",null,"Mik-el Mivox Serial COPs",null,"Mik-el Mivox Serial COPs"]
[null,{"$f":"IF(Form!$AA$4=\"TR\",H96,IF(Form!$AA$4=\"EN\",J96,IF(Form!$AA$4=\"RU\",L96,\"HATA!\")))","v":"MiVOX MV8112"},{"$f":"IF(Form!$AA$4=\"TR\",I96,IF(Form!$AA$4=\"EN\",K96,IF(Form!$AA$4=\"RU\",M96,\"HATA!\")))","v":"750x150x9.9mm, DM LED + 3m kablo "},null,null,null,null,"MiVOX MV8112","750x150x9.9mm, DM LED + 3m kablo ","MiVOX MV8112","750x150x9.9mm, DM LED + 3m cable ","MiVOX MV8112","750x150x9.9mm, DM LED + 3m cable "]
[null,{"$f":"IF(Form!$AA$4=\"TR\",H97,IF(Form!$AA$4=\"EN\",J97,IF(Form!$AA$4=\"RU\",L97,\"HATA!\")))","v":"MiVOX MV7112"},{"$f":"IF(Form!$AA$4=\"TR\",I97,IF(Form!$AA$4=\"EN\",K97,IF(Form!$AA$4=\"RU\",M97,\"HATA!\")))","v":"1100x180x9.9mm, Kırmızı DM LED + İnterkom + 3m kablo + Sesli Anons (SD kart hariç)"},null,null,null,null,"MiVOX MV7112","1100x180x9.9mm, Kırmızı DM LED + İnterkom + 3m kablo + Sesli Anons (SD kart hariç)","MiVOX MV7112","1100x180x9.9mm, Red DM LED + Intercom + 3m cable + Voice Announcer (SD card not included)","MiVOX MV7112","1100x180x9.9mm, Red DM LED + Intercom + 3m cable + Voice Announcer (SD card not included)"]
[null,{"$f":"IF(Form!$AA$4=\"TR\",H98,IF(Form!$AA$4=\"EN\",J98,IF(Form!$AA$4=\"RU\",L98,\"HATA!\")))","v":"MiVOX MV71C2"},{"$f":"IF(Form!$AA$4=\"TR\",I98,IF(Form!$AA$4=\"EN\",K98,IF(Form!$AA$4=\"RU\",M98,\"HATA!\")))","v":"1100x180x9.9mm, 2x4,3\" TFT Gösterge + İnterkom + 3m kablo + Sesli Anons (SD kart hariç)"},null,null,null,null,"MiVOX MV71C2","1100x180x9.9mm, 2x4,3\" TFT Gösterge + İnterkom + 3m kablo + Sesli Anons (SD kart hariç)","MiVOX MV71C2","1100x180x9.9mm, 2x4,3\" TFT Display + Intercom + 3m cable + Voice Announcer (SD card not included)","MiVOX MV71C2","1100x180x9.9mm, 2x4,3\" TFT Display + Intercom + 3m cable + Voice Announcer (SD card not included)"]
[null,{"$f":"IF(Form!$AA$4=\"TR\",H99,IF(Form!$AA$4=\"EN\",J99,IF(Form!$AA$4=\"RU\",L99,\"HATA!\")))","v":"MiVOX MV9112"},{"$f":"IF(Form!$AA$4=\"TR\",I99,IF(Form!$AA$4=\"EN\",K99,IF(Form!$AA$4=\"RU\",M99,\"HATA!\")))","v":"2150x180x9.9mm, DM LED + 3m kablo + Sesli Anons (SD kart hariç)"},null,null,null,null,"MiVOX MV9112","2150x180x9.9mm, DM LED + 3m kablo + Sesli Anons (SD kart hariç)","MiVOX MV9112","2150x180x9.9mm, DM LED + 3m cable + Voice Announcer (SD card not included)","MiVOX MV9112","2150x180x9.9mm, DM LED + 3m cable + Voice Announcer (SD card not included)"]
[null,{"$f":"IF(Form!$AA$4=\"TR\",H100,IF(Form!$AA$4=\"EN\",J100,IF(Form!$AA$4=\"RU\",L100,\"HATA!\")))","v":"MiVOX MV91C2"},{"$f":"IF(Form!$AA$4=\"TR\",I100,IF(Form!$AA$4=\"EN\",K100,IF(Form!$AA$4=\"RU\",M100,\"HATA!\")))","v":"2150x180x9.9mm, 2x4,3\" TFT Gösterge + İnterkom + 3m kablo + Sesli Anons (SD kart hariç)"},null,null,null,null,"MiVOX MV91C2","2150x180x9.9mm, 2x4,3\" TFT Gösterge + İnterkom + 3m kablo + Sesli Anons (SD kart hariç)","MiVOX MV91C2","2150x180x9.9mm, 2x4,3\" TFT Display + Intercom + 3m cable + Voice Announcer (SD card not included)","MiVOX MV91C2","2150x180x9.9mm, 2x4,3\" TFT Display + Intercom + 3m cable + Voice Announcer (SD card not included)"]
[null,{"$f":"IF(Form!$AA$4=\"TR\",H101,IF(Form!$AA$4=\"EN\",J101,IF(Form!$AA$4=\"RU\",L101,\"HATA!\")))","v":"Mik-el & Ametal Seri Haberleşmeli Kabin Butonyerleri"},{"$f":"IF(Form!$AA$4=\"TR\",I101,IF(Form!$AA$4=\"EN\",K101,IF(Form!$AA$4=\"RU\",M101,\"HATA!\")))","v":0},null,null,null,null,"Mik-el & Ametal Seri Haberleşmeli Kabin Butonyerleri",null,"Mik-el & Ametal Serial COPs",null,"Mik-el & Ametal Serial COPs"]
[null,{"$f":"IF(Form!$AA$4=\"TR\",H102,IF(Form!$AA$4=\"EN\",J102,IF(Form!$AA$4=\"RU\",L102,\"HATA!\")))","v":"AMETAL COP 1120 LCD ALCD 80"},{"$f":"IF(Form!$AA$4=\"TR\",I102,IF(Form!$AA$4=\"EN\",K102,IF(Form!$AA$4=\"RU\",M102,\"HATA!\")))","v":"225 x 1050 mm, LCD gösterge, ÇİFT sıralı buton yerleşimi, bükümlü, menteşeli kilitli kapak, GURME PANEL + kapı açma-kapama, İnterkom ünitesi ve butonu, Fan butonu. SC24 kartı, Sesli Anons (SD kart ve hoparlörler hariç) ve 3,5m haberleşme kablosu dahildir."},null,null,null,null,"AMETAL COP 1120 LCD ALCD 80","225 x 1050 mm, LCD gösterge, ÇİFT sıralı buton yerleşimi, bükümlü, menteşeli kilitli kapak, GURME PANEL + kapı açma-kapama, İnterkom ünitesi ve butonu, Fan butonu. SC24 kartı, Sesli Anons (SD kart ve hoparlörler hariç) ve 3,5m haberleşme kablosu dahildir.","AMETAL COP 1120 LCD ALCD 80","225 x 1050 mm, LCD Display,2 lines button layout, bended, face plate with hinges and lock, GURME PANEL +door open-close, Intercom. SC24 card, Voice Announcer (SD card and speakers not included) and 3,5m comm. cable included.","AMETAL COP 1120 LCD ALCD 80","225 x 1050 mm, LCD Display,2 lines button layout, bended, face plate with hinges and lock, GURME PANEL +door open-close, Intercom. SC24 card, Voice Announcer (SD card and speakers not included) and 3,5m comm. cable included."]
[null,{"$f":"IF(Form!$AA$4=\"TR\",H103,IF(Form!$AA$4=\"EN\",J103,IF(Form!$AA$4=\"RU\",L103,\"HATA!\")))","v":"AMETAL COP 2120 LCD ALCD 80"},{"$f":"IF(Form!$AA$4=\"TR\",I103,IF(Form!$AA$4=\"EN\",K103,IF(Form!$AA$4=\"RU\",M103,\"HATA!\")))","v":"225 x 2050 mm, LCD gösterge, ÇİFT sıralı buton yerleşimi, bükümlü, menteşeli kilitli kapak, GURME PANEL + kapı açma-kapama, İnterkom ünitesi ve butonu, Fan butonu. SC24 kartı, Sesli Anons (SD kart ve hoparlörler hariç)  ve 3,5m haberleşme kablosu dahildir."},null,null,null,null,"AMETAL COP 2120 LCD ALCD 80","225 x 2050 mm, LCD gösterge, ÇİFT sıralı buton yerleşimi, bükümlü, menteşeli kilitli kapak, GURME PANEL + kapı açma-kapama, İnterkom ünitesi ve butonu, Fan butonu. SC24 kartı, Sesli Anons (SD kart ve hoparlörler hariç)  ve 3,5m haberleşme kablosu dahildir.","AMETAL COP 2120 LCD ALCD 80","225 x 2050 mm, LCD Display,2 lines button layout, bended, face plate with hinges and lock, GURME PANEL +door open-close, Intercom. SC24 card, Voice Announcer (SD card and speakers not included)  and 3,5m comm. cable included.","AMETAL COP 2120 LCD ALCD 80","225 x 2050 mm, LCD Display,2 lines button layout, bended, face plate with hinges and lock, GURME PANEL +door open-close, Intercom. SC24 card, Voice Announcer (SD card and speakers not included)  and 3,5m comm. cable included."]
[null,{"$f":"IF(Form!$AA$4=\"TR\",H104,IF(Form!$AA$4=\"EN\",J104,IF(Form!$AA$4=\"RU\",L104,\"HATA!\")))","v":"AMETAL BS 200 LCD ALCD 80"},{"$f":"IF(Form!$AA$4=\"TR\",I104,IF(Form!$AA$4=\"EN\",K104,IF(Form!$AA$4=\"RU\",M104,\"HATA!\")))","v":"BS 200 (190 x 1000 mm kapak. Bükümsüz + vidalı, --- EKO SERİ ---) \n--- LCD gösterge --- + kapı açma-kapama, İnterkom ünitesi ve butonu, Fan butonu. SC24 kartı, Sesli Anons (SD kart ve hoparlörler hariç)  ve 3,5m haberleşme kablosu dahildir."},null,null,null,null,"AMETAL BS 200 LCD ALCD 80","BS 200 (190 x 1000 mm kapak. Bükümsüz + vidalı, --- EKO SERİ ---) \n--- LCD gösterge --- + kapı açma-kapama, İnterkom ünitesi ve butonu, Fan butonu. SC24 kartı, Sesli Anons (SD kart ve hoparlörler hariç)  ve 3,5m haberleşme kablosu dahildir.","AMETAL BS 200 LCD ALCD 80","BS 200 (190 x 1000 mm face plate, screw mounted, EKO LINE) \n--- LCD Display --- +door open-close, Intercom. SC24 card, Voice Announcer (SD card and speakers not included)  and 3,5m comm. cable included.","AMETAL BS 200 LCD ALCD 80","BS 200 (190 x 1000 mm face plate, screw mounted, EKO LINE) \n--- LCD Display --- +door open-close, Intercom. SC24 card, Voice Announcer (SD card and speakers not included)  and 3,5m comm. cable included."]
[null,{"$f":"IF(Form!$AA$4=\"TR\",H105,IF(Form!$AA$4=\"EN\",J105,IF(Form!$AA$4=\"RU\",L105,\"HATA!\")))","v":"AMETAL BS 2000 LCD ALCD 80"},{"$f":"IF(Form!$AA$4=\"TR\",I105,IF(Form!$AA$4=\"EN\",K105,IF(Form!$AA$4=\"RU\",M105,\"HATA!\")))","v":"BS 200 (190 x 2000 mm kapak. Bükümsüz + vidalı, --- EKO SERİ ---) \n--- LCD gösterge --- + kapı açma-kapama, İnterkom ünitesi ve butonu, Fan butonu. SC24 kartı, Sesli Anons (SD kart ve hoparlörler hariç)  ve 3,5m haberleşme kablosu dahildir."},null,null,null,null,"AMETAL BS 2000 LCD ALCD 80","BS 200 (190 x 2000 mm kapak. Bükümsüz + vidalı, --- EKO SERİ ---) \n--- LCD gösterge --- + kapı açma-kapama, İnterkom ünitesi ve butonu, Fan butonu. SC24 kartı, Sesli Anons (SD kart ve hoparlörler hariç)  ve 3,5m haberleşme kablosu dahildir.","AMETAL BS 2000 LCD ALCD 80","BS 200 (190 x 2000 mm face plate, screw mounted, EKO LINE) \n--- LCD Display --- +door open-close, Intercom. SC24 card, Voice Announcer (SD card and speakers not included)  and 3,5m comm. cable included.","AMETAL BS 2000 LCD ALCD 80","BS 200 (190 x 2000 mm face plate, screw mounted, EKO LINE) \n--- LCD Display --- +door open-close, Intercom. SC24 card, Voice Announcer (SD card and speakers not included)  and 3,5m comm. cable included."]
[null,{"$f":"IF(Form!$AA$4=\"TR\",H106,IF(Form!$AA$4=\"EN\",J106,IF(Form!$AA$4=\"RU\",L106,\"HATA!\")))","v":"AMETAL COP 1120 ATFT 7"},{"$f":"IF(Form!$AA$4=\"TR\",I106,IF(Form!$AA$4=\"EN\",K106,IF(Form!$AA$4=\"RU\",M106,\"HATA!\")))","v":"225 x 1050 mm, TFT gösterge, ÇİFT sıralı buton yerleşimi, bükümlü, menteşeli kilitli kapak, GURME PANEL + kapı açma-kapama, İnterkom ünitesi ve butonu, Fan butonu. SC24 kartı, Sesli Anons (SD kart ve hoparlörler hariç) ve 3,5m haberleşme kablosu dahildir."},null,null,null,null,"AMETAL COP 1120 ATFT 7","225 x 1050 mm, TFT gösterge, ÇİFT sıralı buton yerleşimi, bükümlü, menteşeli kilitli kapak, GURME PANEL + kapı açma-kapama, İnterkom ünitesi ve butonu, Fan butonu. SC24 kartı, Sesli Anons (SD kart ve hoparlörler hariç) ve 3,5m haberleşme kablosu dahildir.","AMETAL COP 1120 ATFT 7","225 x 1050 mm, TFT Display,2 lines button layout, bended, face plate with hinges and lock, GURME PANEL +door open-close, Intercom. SC24 card, Voice Announcer (SD card and speakers not included) and 3,5m comm. cable included.","AMETAL COP 1120 ATFT 7","225 x 1050 mm, TFT Display,2 lines button layout, bended, face plate with hinges and lock, GURME PANEL +door open-close, Intercom. SC24 card, Voice Announcer (SD card and speakers not included) and 3,5m comm. cable included."]
[null,{"$f":"IF(Form!$AA$4=\"TR\",H107,IF(Form!$AA$4=\"EN\",J107,IF(Form!$AA$4=\"RU\",L107,\"HATA!\")))","v":"AMETAL COP 2120 ATFT 7"},{"$f":"IF(Form!$AA$4=\"TR\",I107,IF(Form!$AA$4=\"EN\",K107,IF(Form!$AA$4=\"RU\",M107,\"HATA!\")))","v":"225 x 2050 mm, TFT gösterge, ÇİFT sıralı buton yerleşimi, bükümlü, menteşeli kilitli kapak, GURME PANEL + kapı açma-kapama, İnterkom ünitesi ve butonu, Fan butonu. SC24 kartı, Sesli Anons (SD kart ve hoparlörler hariç)  ve 3,5m haberleşme kablosu dahildir."},null,null,null,null,"AMETAL COP 2120 ATFT 7","225 x 2050 mm, TFT gösterge, ÇİFT sıralı buton yerleşimi, bükümlü, menteşeli kilitli kapak, GURME PANEL + kapı açma-kapama, İnterkom ünitesi ve butonu, Fan butonu. SC24 kartı, Sesli Anons (SD kart ve hoparlörler hariç)  ve 3,5m haberleşme kablosu dahildir.","AMETAL COP 2120 ATFT 7","225 x 2050 mm, TFT Display,2 lines button layout, bended, face plate with hinges and lock, GURME PANEL +door open-close, Intercom. SC24 card, Voice Announcer (SD card and speakers not included)  and 3,5m comm. cable included.","AMETAL COP 2120 ATFT 7","225 x 2050 mm, TFT Display,2 lines button layout, bended, face plate with hinges and lock, GURME PANEL +door open-close, Intercom. SC24 card, Voice Announcer (SD card and speakers not included)  and 3,5m comm. cable included."]
[null,{"$f":"IF(Form!$AA$4=\"TR\",H108,IF(Form!$AA$4=\"EN\",J108,IF(Form!$AA$4=\"RU\",L108,\"HATA!\")))","v":"AMETAL BS 200 ATFT 7"},{"$f":"IF(Form!$AA$4=\"TR\",I108,IF(Form!$AA$4=\"EN\",K108,IF(Form!$AA$4=\"RU\",M108,\"HATA!\")))","v":"BS 200 (190 x 1000 mm kapak. Bükümsüz + vidalı, --- EKO SERİ ---) \n--- TFT gösterge --- + kapı açma-kapama, İnterkom ünitesi ve butonu, Fan butonu. SC24 kartı, Sesli Anons (SD kart ve hoparlörler hariç)  ve 3,5m haberleşme kablosu dahildir."},null,null,null,null,"AMETAL BS 200 ATFT 7","BS 200 (190 x 1000 mm kapak. Bükümsüz + vidalı, --- EKO SERİ ---) \n--- TFT gösterge --- + kapı açma-kapama, İnterkom ünitesi ve butonu, Fan butonu. SC24 kartı, Sesli Anons (SD kart ve hoparlörler hariç)  ve 3,5m haberleşme kablosu dahildir.","AMETAL BS 200 ATFT 7","BS 200 (190 x 1000 mm face plate, screw mounted, EKO LINE) \n--- TFT Display --- +door open-close, Intercom. SC24 card, Voice Announcer (SD card and speakers not included)  and 3,5m comm. cable included.","AMETAL BS 200 ATFT 7","BS 200 (190 x 1000 mm face plate, screw mounted, EKO LINE) \n--- TFT Display --- +door open-close, Intercom. SC24 card, Voice Announcer (SD card and speakers not included)  and 3,5m comm. cable included."]
[null,{"$f":"IF(Form!$AA$4=\"TR\",H109,IF(Form!$AA$4=\"EN\",J109,IF(Form!$AA$4=\"RU\",L109,\"HATA!\")))","v":"AMETAL BS 2000 ATFT 7"},{"$f":"IF(Form!$AA$4=\"TR\",I109,IF(Form!$AA$4=\"EN\",K109,IF(Form!$AA$4=\"RU\",M109,\"HATA!\")))","v":"BS 200 (190 x 2000 mm kapak. Bükümsüz + vidalı, --- EKO SERİ ---) \n--- TFT gösterge --- + kapı açma-kapama, İnterkom ünitesi ve butonu, Fan butonu. SC24 kartı, Sesli Anons (SD kart ve hoparlörler hariç)  ve 3,5m haberleşme kablosu dahildir."},null,null,null,null,"AMETAL BS 2000 ATFT 7","BS 200 (190 x 2000 mm kapak. Bükümsüz + vidalı, --- EKO SERİ ---) \n--- TFT gösterge --- + kapı açma-kapama, İnterkom ünitesi ve butonu, Fan butonu. SC24 kartı, Sesli Anons (SD kart ve hoparlörler hariç)  ve 3,5m haberleşme kablosu dahildir.","AMETAL BS 2000 ATFT 7","BS 200 (190 x 2000 mm face plate, screw mounted, EKO LINE) \n--- TFT Display --- +door open-close, Intercom. SC24 card, Voice Announcer (SD card and speakers not included)  and 3,5m comm. cable included.","AMETAL BS 2000 ATFT 7","BS 200 (190 x 2000 mm face plate, screw mounted, EKO LINE) \n--- TFT Display --- +door open-close, Intercom. SC24 card, Voice Announcer (SD card and speakers not included)  and 3,5m comm. cable included."]
[null,{"$f":"IF(Form!$AA$4=\"TR\",H110,IF(Form!$AA$4=\"EN\",J110,IF(Form!$AA$4=\"RU\",L110,\"HATA!\")))","v":"AMETAL COP 1120 DMBUS 630"},{"$f":"IF(Form!$AA$4=\"TR\",I110,IF(Form!$AA$4=\"EN\",K110,IF(Form!$AA$4=\"RU\",M110,\"HATA!\")))","v":"225 x 1050 mm, Dot-matris gösterge, ÇİFT sıralı buton yerleşimi, bükümlü, menteşeli kilitli kapak, GURME PANEL + kapı açma-kapama, İnterkom ünitesi ve butonu, Fan butonu. SC24 kartı, Sesli Anons (SD kart ve hoparlörler hariç) ve 3,5m haberleşme kablosu dahildir."},null,null,null,null,"AMETAL COP 1120 DMBUS 630","225 x 1050 mm, Dot-matris gösterge, ÇİFT sıralı buton yerleşimi, bükümlü, menteşeli kilitli kapak, GURME PANEL + kapı açma-kapama, İnterkom ünitesi ve butonu, Fan butonu. SC24 kartı, Sesli Anons (SD kart ve hoparlörler hariç) ve 3,5m haberleşme kablosu dahildir.","AMETAL COP 1120 DMBUS 630","225 x 1050 mm, Dot-matrix Display,2 lines button layout, bended, face plate with hinges and lock, GURME PANEL +door open-close, Intercom. SC24 card, Voice Announcer (SD card and speakers not included) and 3,5m comm. cable included.","AMETAL COP 1120 DMBUS 630","225 x 1050 mm, Dot-matrix Display,2 lines button layout, bended, face plate with hinges and lock, GURME PANEL +door open-close, Intercom. SC24 card, Voice Announcer (SD card and speakers not included) and 3,5m comm. cable included."]
[null,{"$f":"IF(Form!$AA$4=\"TR\",H111,IF(Form!$AA$4=\"EN\",J111,IF(Form!$AA$4=\"RU\",L111,\"HATA!\")))","v":"AMETAL COP 2120 DMBUS 630"},{"$f":"IF(Form!$AA$4=\"TR\",I111,IF(Form!$AA$4=\"EN\",K111,IF(Form!$AA$4=\"RU\",M111,\"HATA!\")))","v":"225 x 2050 mm, Dot-matris gösterge, ÇİFT sıralı buton yerleşimi, bükümlü, menteşeli kilitli kapak, GURME PANEL + kapı açma-kapama, İnterkom ünitesi ve butonu, Fan butonu. SC24 kartı, Sesli Anons (SD kart ve hoparlörler hariç)  ve 3,5m haberleşme kablosu dahildir."},null,null,null,null,"AMETAL COP 2120 DMBUS 630","225 x 2050 mm, Dot-matris gösterge, ÇİFT sıralı buton yerleşimi, bükümlü, menteşeli kilitli kapak, GURME PANEL + kapı açma-kapama, İnterkom ünitesi ve butonu, Fan butonu. SC24 kartı, Sesli Anons (SD kart ve hoparlörler hariç)  ve 3,5m haberleşme kablosu dahildir.","AMETAL COP 2120 DMBUS 630","225 x 2050 mm, Dot-matrix Display,2 lines button layout, bended, face plate with hinges and lock, GURME PANEL +door open-close, Intercom. SC24 card, Voice Announcer (SD card and speakers not included)  and 3,5m comm. cable included.","AMETAL COP 2120 DMBUS 630","225 x 2050 mm, Dot-matrix Display,2 lines button layout, bended, face plate with hinges and lock, GURME PANEL +door open-close, Intercom. SC24 card, Voice Announcer (SD card and speakers not included)  and 3,5m comm. cable included."]
[null,{"$f":"IF(Form!$AA$4=\"TR\",H112,IF(Form!$AA$4=\"EN\",J112,IF(Form!$AA$4=\"RU\",L112,\"HATA!\")))","v":"AMETAL BS 200 DMBUS 630"},{"$f":"IF(Form!$AA$4=\"TR\",I112,IF(Form!$AA$4=\"EN\",K112,IF(Form!$AA$4=\"RU\",M112,\"HATA!\")))","v":"BS 200 (190 x 1000 mm kapak. Bükümsüz + vidalı, --- EKO SERİ ---) \n--- Dot-matris gösterge --- + kapı açma-kapama, İnterkom ünitesi ve butonu, Fan butonu. SC24 kartı, Sesli Anons (SD kart ve hoparlörler hariç)  ve 3,5m haberleşme kablosu dahildir."},null,null,null,null,"AMETAL BS 200 DMBUS 630","BS 200 (190 x 1000 mm kapak. Bükümsüz + vidalı, --- EKO SERİ ---) \n--- Dot-matris gösterge --- + kapı açma-kapama, İnterkom ünitesi ve butonu, Fan butonu. SC24 kartı, Sesli Anons (SD kart ve hoparlörler hariç)  ve 3,5m haberleşme kablosu dahildir.","AMETAL BS 200 DMBUS 630","BS 200 (190 x 1000 mm face plate, screw mounted, EKO LINE) \n--- Dot-matrix Display --- +door open-close, Intercom. SC24 card, Voice Announcer (SD card and speakers not included)  and 3,5m comm. cable included.","AMETAL BS 200 DMBUS 630","BS 200 (190 x 1000 mm face plate, screw mounted, EKO LINE) \n--- Dot-matrix Display --- +door open-close, Intercom. SC24 card, Voice Announcer (SD card and speakers not included)  and 3,5m comm. cable included."]
[null,{"$f":"IF(Form!$AA$4=\"TR\",H113,IF(Form!$AA$4=\"EN\",J113,IF(Form!$AA$4=\"RU\",L113,\"HATA!\")))","v":"AMETAL BS 2000 DMBUS 630"},{"$f":"IF(Form!$AA$4=\"TR\",I113,IF(Form!$AA$4=\"EN\",K113,IF(Form!$AA$4=\"RU\",M113,\"HATA!\")))","v":"BS 200 (190 x 2000 mm kapak. Bükümsüz + vidalı, --- EKO SERİ ---) \n--- Dot-matris gösterge --- + kapı açma-kapama, İnterkom ünitesi ve butonu, Fan butonu. SC24 kartı, Sesli Anons (SD kart ve hoparlörler hariç)  ve 3,5m haberleşme kablosu dahildir."},null,null,null,null,"AMETAL BS 2000 DMBUS 630","BS 200 (190 x 2000 mm kapak. Bükümsüz + vidalı, --- EKO SERİ ---) \n--- Dot-matris gösterge --- + kapı açma-kapama, İnterkom ünitesi ve butonu, Fan butonu. SC24 kartı, Sesli Anons (SD kart ve hoparlörler hariç)  ve 3,5m haberleşme kablosu dahildir.","AMETAL BS 2000 DMBUS 630","BS 200 (190 x 2000 mm face plate, screw mounted, EKO LINE) \n--- Dot-matrix Display --- +door open-close, Intercom. SC24 card, Voice Announcer (SD card and speakers not included)  and 3,5m comm. cable included.","AMETAL BS 2000 DMBUS 630","BS 200 (190 x 2000 mm face plate, screw mounted, EKO LINE) \n--- Dot-matrix Display --- +door open-close, Intercom. SC24 card, Voice Announcer (SD card and speakers not included)  and 3,5m comm. cable included."]
[null,{"$f":"IF(Form!$AA$4=\"TR\",H114,IF(Form!$AA$4=\"EN\",J114,IF(Form!$AA$4=\"RU\",L114,\"HATA!\")))","v":"Mik-el & But-San Seri Haberleşmeli Kabin Butonyerleri"},{"$f":"IF(Form!$AA$4=\"TR\",I114,IF(Form!$AA$4=\"EN\",K114,IF(Form!$AA$4=\"RU\",M114,\"HATA!\")))","v":0},null,null,null,null,"Mik-el & But-San Seri Haberleşmeli Kabin Butonyerleri",null,"Mik-el & But-San Serial COPs",null,"Mik-el & But-San Serial COPs"]
[null,{"$f":"IF(Form!$AA$4=\"TR\",H115,IF(Form!$AA$4=\"EN\",J115,IF(Form!$AA$4=\"RU\",L115,\"HATA!\")))","v":"BUT-SAN YARIM BOY KUTUSUZ 105*55 B-LCD Q5MENS/LENS"},{"$f":"IF(Form!$AA$4=\"TR\",I115,IF(Form!$AA$4=\"EN\",K115,IF(Form!$AA$4=\"RU\",M115,\"HATA!\")))","v":"Çift sıralı buton yerleşimi, LCD gösterge, bükümlü, + kapı açma-kapama, İnterkom ünitesi ve butonu, Fan butonu ve röle kartı - SC24 kartı, Sesli Anons (SD kart ve hoparlörler hariç) ve 3,5m haberleşme kablosu dahildir."},null,null,"fark",null,"BUT-SAN YARIM BOY KUTUSUZ 105*55 B-LCD Q5MENS/LENS","Çift sıralı buton yerleşimi, LCD gösterge, bükümlü, + kapı açma-kapama, İnterkom ünitesi ve butonu, Fan butonu ve röle kartı - SC24 kartı, Sesli Anons (SD kart ve hoparlörler hariç) ve 3,5m haberleşme kablosu dahildir.","BUT-SAN HALF LENGHT 105*55 B-LCD Q5MENS/LENS","2 lines button layout, LCD Display, bended, +door open-close, Intercom - SC24 card, Voice Announcer (SD card and speakers not included) and 3,5m comm. cable included.","BUT-SAN HALF LENGHT 105*55 B-LCD Q5MENS/LENS","2 lines button layout, LCD Display, bended, +door open-close, Intercom - SC24 card, Voice Announcer (SD card and speakers not included) and 3,5m comm. cable included."]
[null,{"$f":"IF(Form!$AA$4=\"TR\",H116,IF(Form!$AA$4=\"EN\",J116,IF(Form!$AA$4=\"RU\",L116,\"HATA!\")))","v":"BUT-SAN TAM BOY KUTUSUZ 105*55 B-LCD Q5MENS/LENS"},{"$f":"IF(Form!$AA$4=\"TR\",I116,IF(Form!$AA$4=\"EN\",K116,IF(Form!$AA$4=\"RU\",M116,\"HATA!\")))","v":"180 x 1990 mm, LCD gösterge, çift sıralı buton yerleşimi, bükümlü, + kapı açma-kapama, İnterkom ünitesi ve butonu, Fan butonu ve röle kartı - SC24 kartı, Sesli Anons (SD kart ve hoparlörler hariç) ve 3,5m haberleşme kablosu dahildir."},null,null,null,null,"BUT-SAN TAM BOY KUTUSUZ 105*55 B-LCD Q5MENS/LENS","180 x 1990 mm, LCD gösterge, çift sıralı buton yerleşimi, bükümlü, + kapı açma-kapama, İnterkom ünitesi ve butonu, Fan butonu ve röle kartı - SC24 kartı, Sesli Anons (SD kart ve hoparlörler hariç) ve 3,5m haberleşme kablosu dahildir.","BUT-SAN FULL LENGHT 105*55 B-LCD Q5MENS/LENS","180 x 1990 mm, LCD Display,2 lines button layout, bended, +door open-close, Intercom - SC24 card, Voice Announcer (SD card and speakers not included) and 3,5m comm. cable included.","BUT-SAN FULL LENGHT 105*55 B-LCD Q5MENS/LENS","180 x 1990 mm, LCD Display,2 lines button layout, bended, +door open-close, Intercom - SC24 card, Voice Announcer (SD card and speakers not included) and 3,5m comm. cable included."]
[null,{"$f":"IF(Form!$AA$4=\"TR\",H117,IF(Form!$AA$4=\"EN\",J117,IF(Form!$AA$4=\"RU\",L117,\"HATA!\")))","v":"BUT-SAN YARIM BOY KUTUSUZ DOT-MATRİS Q5MENS/LENS"},{"$f":"IF(Form!$AA$4=\"TR\",I117,IF(Form!$AA$4=\"EN\",K117,IF(Form!$AA$4=\"RU\",M117,\"HATA!\")))","v":"Çift sıralı buton yerleşimi, Dot-matris gösterge, bükümlü, + kapı açma-kapama, İnterkom ünitesi ve butonu, Fan butonu ve röle kartı - SC24 kartı, Sesli Anons (SD kart ve hoparlörler hariç) ve 3,5m haberleşme kablosu dahildir."},null,null,null,null,"BUT-SAN YARIM BOY KUTUSUZ DOT-MATRİS Q5MENS/LENS","Çift sıralı buton yerleşimi, Dot-matris gösterge, bükümlü, + kapı açma-kapama, İnterkom ünitesi ve butonu, Fan butonu ve röle kartı - SC24 kartı, Sesli Anons (SD kart ve hoparlörler hariç) ve 3,5m haberleşme kablosu dahildir.","BUT-SAN HALF LENGHT DOT-MATRIX Q5MENS/LENS","2 lines button layout, Dot-matrix Display, bended, +door open-close, Intercom - SC24 card, Voice Announcer (SD card and speakers not included) and 3,5m comm. cable included.","BUT-SAN HALF LENGHT DOT-MATRIX Q5MENS/LENS","2 lines button layout, Dot-matrix Display, bended, +door open-close, Intercom - SC24 card, Voice Announcer (SD card and speakers not included) and 3,5m comm. cable included."]
[null,{"$f":"IF(Form!$AA$4=\"TR\",H118,IF(Form!$AA$4=\"EN\",J118,IF(Form!$AA$4=\"RU\",L118,\"HATA!\")))","v":"BUT-SAN TAM BOY KUTUSUZ DOT-MATRİS Q5MENS/LENS"},{"$f":"IF(Form!$AA$4=\"TR\",I118,IF(Form!$AA$4=\"EN\",K118,IF(Form!$AA$4=\"RU\",M118,\"HATA!\")))","v":"180 x 1990 mm, Dot-matris gösterge, çift sıralı buton yerleşimi, bükümlü, + kapı açma-kapama, İnterkom ünitesi ve butonu, Fan butonu ve röle kartı - SC24 kartı, Sesli Anons (SD kart ve hoparlörler hariç) ve 3,5m haberleşme kablosu dahildir."},null,null,null,null,"BUT-SAN TAM BOY KUTUSUZ DOT-MATRİS Q5MENS/LENS","180 x 1990 mm, Dot-matris gösterge, çift sıralı buton yerleşimi, bükümlü, + kapı açma-kapama, İnterkom ünitesi ve butonu, Fan butonu ve röle kartı - SC24 kartı, Sesli Anons (SD kart ve hoparlörler hariç) ve 3,5m haberleşme kablosu dahildir.","BUT-SAN FULL LENGHT DOT-MATRIX Q5MENS/LENS","180 x 1990 mm, Dot-matrix Display,2 lines button layout, bended, +door open-close, Intercom - SC24 card, Voice Announcer (SD card and speakers not included) and 3,5m comm. cable included.","BUT-SAN FULL LENGHT DOT-MATRIX Q5MENS/LENS","180 x 1990 mm, Dot-matrix Display,2 lines button layout, bended, +door open-close, Intercom - SC24 card, Voice Announcer (SD card and speakers not included) and 3,5m comm. cable included."]
[null,{"$f":"IF(Form!$AA$4=\"TR\",H119,IF(Form!$AA$4=\"EN\",J119,IF(Form!$AA$4=\"RU\",L119,\"HATA!\")))","v":"BUT-SAN YARIM BOY KUTUSUZ 105*55 B-LCD FX6/B3-ENP.LS"},{"$f":"IF(Form!$AA$4=\"TR\",I119,IF(Form!$AA$4=\"EN\",K119,IF(Form!$AA$4=\"RU\",M119,\"HATA!\")))","v":"Çift sıralı buton yerleşimi, LCD gösterge, bükümlü, + kapı açma-kapama, İnterkom ünitesi ve butonu, Fan butonu ve röle kartı - SC24 kartı, Sesli Anons (SD kart ve hoparlörler hariç) ve 3,5m haberleşme kablosu dahildir."},null,null,"fark",null,"BUT-SAN YARIM BOY KUTUSUZ 105*55 B-LCD FX6/B3-ENP.LS","Çift sıralı buton yerleşimi, LCD gösterge, bükümlü, + kapı açma-kapama, İnterkom ünitesi ve butonu, Fan butonu ve röle kartı - SC24 kartı, Sesli Anons (SD kart ve hoparlörler hariç) ve 3,5m haberleşme kablosu dahildir.","BUT-SAN HALF LENGHT 105*55 B-LCD FX6/B3-ENP.LS","2 lines button layout, LCD Display, bended, +door open-close, Intercom - SC24 card, Voice Announcer (SD card and speakers not included) and 3,5m comm. cable included.","BUT-SAN HALF LENGHT 105*55 B-LCD FX6/B3-ENP.LS","2 lines button layout, LCD Display, bended, +door open-close, Intercom - SC24 card, Voice Announcer (SD card and speakers not included) and 3,5m comm. cable included."]
[null,{"$f":"IF(Form!$AA$4=\"TR\",H120,IF(Form!$AA$4=\"EN\",J120,IF(Form!$AA$4=\"RU\",L120,\"HATA!\")))","v":"BUT-SAN TAM BOY KUTUSUZ 105*55 B-LCD FX6/B3-ENP.LS"},{"$f":"IF(Form!$AA$4=\"TR\",I120,IF(Form!$AA$4=\"EN\",K120,IF(Form!$AA$4=\"RU\",M120,\"HATA!\")))","v":"180 x 1990 mm, LCD gösterge, çift sıralı buton yerleşimi, bükümlü, + kapı açma-kapama, İnterkom ünitesi ve butonu, Fan butonu ve röle kartı - SC24 kartı, Sesli Anons (SD kart ve hoparlörler hariç) ve 3,5m haberleşme kablosu dahildir."},null,null,null,null,"BUT-SAN TAM BOY KUTUSUZ 105*55 B-LCD FX6/B3-ENP.LS","180 x 1990 mm, LCD gösterge, çift sıralı buton yerleşimi, bükümlü, + kapı açma-kapama, İnterkom ünitesi ve butonu, Fan butonu ve röle kartı - SC24 kartı, Sesli Anons (SD kart ve hoparlörler hariç) ve 3,5m haberleşme kablosu dahildir.","BUT-SAN FULL LENGHT 105*55 B-LCD FX6/B3-ENP.LS","180 x 1990 mm, LCD Display,2 lines button layout, bended, +door open-close, Intercom - SC24 card, Voice Announcer (SD card and speakers not included) and 3,5m comm. cable included.","BUT-SAN FULL LENGHT 105*55 B-LCD FX6/B3-ENP.LS","180 x 1990 mm, LCD Display,2 lines button layout, bended, +door open-close, Intercom - SC24 card, Voice Announcer (SD card and speakers not included) and 3,5m comm. cable included."]
[null,{"$f":"IF(Form!$AA$4=\"TR\",H121,IF(Form!$AA$4=\"EN\",J121,IF(Form!$AA$4=\"RU\",L121,\"HATA!\")))","v":"BUT-SAN YARIM BOY KUTUSUZ DOT-MATRİS FX6/B3-ENP.LS"},{"$f":"IF(Form!$AA$4=\"TR\",I121,IF(Form!$AA$4=\"EN\",K121,IF(Form!$AA$4=\"RU\",M121,\"HATA!\")))","v":"Çift sıralı buton yerleşimi, Dot-matris gösterge, bükümlü, + kapı açma-kapama, İnterkom ünitesi ve butonu, Fan butonu ve röle kartı - SC24 kartı, Sesli Anons (SD kart ve hoparlörler hariç) ve 3,5m haberleşme kablosu dahildir."},null,null,null,null,"BUT-SAN YARIM BOY KUTUSUZ DOT-MATRİS FX6/B3-ENP.LS","Çift sıralı buton yerleşimi, Dot-matris gösterge, bükümlü, + kapı açma-kapama, İnterkom ünitesi ve butonu, Fan butonu ve röle kartı - SC24 kartı, Sesli Anons (SD kart ve hoparlörler hariç) ve 3,5m haberleşme kablosu dahildir.","BUT-SAN HALF LENGHT DOT-MATRIX FX6/B3-ENP.LS","2 lines button layout, Dot-matrix Display, bended, +door open-close, Intercom - SC24 card, Voice Announcer (SD card and speakers not included) and 3,5m comm. cable included.","BUT-SAN HALF LENGHT DOT-MATRIX FX6/B3-ENP.LS","2 lines button layout, Dot-matrix Display, bended, +door open-close, Intercom - SC24 card, Voice Announcer (SD card and speakers not included) and 3,5m comm. cable included."]
[null,{"$f":"IF(Form!$AA$4=\"TR\",H122,IF(Form!$AA$4=\"EN\",J122,IF(Form!$AA$4=\"RU\",L122,\"HATA!\")))","v":"BUT-SAN TAM BOY KUTUSUZ DOT-MATRİS FX6/B3-ENP.LS"},{"$f":"IF(Form!$AA$4=\"TR\",I122,IF(Form!$AA$4=\"EN\",K122,IF(Form!$AA$4=\"RU\",M122,\"HATA!\")))","v":"180 x 1990 mm, Dot-matris gösterge, çift sıralı buton yerleşimi, bükümlü, + kapı açma-kapama, İnterkom ünitesi ve butonu, Fan butonu ve röle kartı - SC24 kartı, Sesli Anons (SD kart ve hoparlörler hariç) ve 3,5m haberleşme kablosu dahildir."},null,null,null,null,"BUT-SAN TAM BOY KUTUSUZ DOT-MATRİS FX6/B3-ENP.LS","180 x 1990 mm, Dot-matris gösterge, çift sıralı buton yerleşimi, bükümlü, + kapı açma-kapama, İnterkom ünitesi ve butonu, Fan butonu ve röle kartı - SC24 kartı, Sesli Anons (SD kart ve hoparlörler hariç) ve 3,5m haberleşme kablosu dahildir.","BUT-SAN FULL LENGHT DOT-MATRIX FX6/B3-ENP.LS","180 x 1990 mm, Dot-matrix Display,2 lines button layout, bended, +door open-close, Intercom - SC24 card, Voice Announcer (SD card and speakers not included) and 3,5m comm. cable included.","BUT-SAN FULL LENGHT DOT-MATRIX FX6/B3-ENP.LS","180 x 1990 mm, Dot-matrix Display,2 lines button layout, bended, +door open-close, Intercom - SC24 card, Voice Announcer (SD card and speakers not included) and 3,5m comm. cable included."]
[null,{"$f":"IF(Form!$AA$4=\"TR\",H123,IF(Form!$AA$4=\"EN\",J123,IF(Form!$AA$4=\"RU\",L123,\"HATA!\")))","v":"BUT-SAN YARIM BOY KUTUSUZ 105*55 B-LCD V2-P"},{"$f":"IF(Form!$AA$4=\"TR\",I123,IF(Form!$AA$4=\"EN\",K123,IF(Form!$AA$4=\"RU\",M123,\"HATA!\")))","v":"Çift sıralı buton yerleşimi, LCD gösterge, bükümlü, + kapı açma-kapama, İnterkom ünitesi ve butonu, Fan butonu ve röle kartı - SC24 kartı, Sesli Anons (SD kart ve hoparlörler hariç) ve 3,5m haberleşme kablosu dahildir."},null,null,"fark",null,"BUT-SAN YARIM BOY KUTUSUZ 105*55 B-LCD V2-P","Çift sıralı buton yerleşimi, LCD gösterge, bükümlü, + kapı açma-kapama, İnterkom ünitesi ve butonu, Fan butonu ve röle kartı - SC24 kartı, Sesli Anons (SD kart ve hoparlörler hariç) ve 3,5m haberleşme kablosu dahildir.","BUT-SAN HALF LENGHT 105*55 B-LCD V2-P","2 lines button layout, LCD Display, bended, +door open-close, Intercom - SC24 card, Voice Announcer (SD card and speakers not included) and 3,5m comm. cable included.","BUT-SAN HALF LENGHT 105*55 B-LCD V2-P","2 lines button layout, LCD Display, bended, +door open-close, Intercom - SC24 card, Voice Announcer (SD card and speakers not included) and 3,5m comm. cable included."]
[null,{"$f":"IF(Form!$AA$4=\"TR\",H124,IF(Form!$AA$4=\"EN\",J124,IF(Form!$AA$4=\"RU\",L124,\"HATA!\")))","v":"BUT-SAN TAM BOY KUTUSUZ 105*55 B-LCD V2-P"},{"$f":"IF(Form!$AA$4=\"TR\",I124,IF(Form!$AA$4=\"EN\",K124,IF(Form!$AA$4=\"RU\",M124,\"HATA!\")))","v":"180 x 1990 mm, LCD gösterge, çift sıralı buton yerleşimi, bükümlü, + kapı açma-kapama, İnterkom ünitesi ve butonu, Fan butonu ve röle kartı - SC24 kartı, Sesli Anons (SD kart ve hoparlörler hariç) ve 3,5m haberleşme kablosu dahildir."},null,null,null,null,"BUT-SAN TAM BOY KUTUSUZ 105*55 B-LCD V2-P","180 x 1990 mm, LCD gösterge, çift sıralı buton yerleşimi, bükümlü, + kapı açma-kapama, İnterkom ünitesi ve butonu, Fan butonu ve röle kartı - SC24 kartı, Sesli Anons (SD kart ve hoparlörler hariç) ve 3,5m haberleşme kablosu dahildir.","BUT-SAN FULL LENGHT 105*55 B-LCD V2-P","180 x 1990 mm, LCD Display,2 lines button layout, bended, +door open-close, Intercom - SC24 card, Voice Announcer (SD card and speakers not included) and 3,5m comm. cable included.","BUT-SAN FULL LENGHT 105*55 B-LCD V2-P","180 x 1990 mm, LCD Display,2 lines button layout, bended, +door open-close, Intercom - SC24 card, Voice Announcer (SD card and speakers not included) and 3,5m comm. cable included."]
[null,{"$f":"IF(Form!$AA$4=\"TR\",H125,IF(Form!$AA$4=\"EN\",J125,IF(Form!$AA$4=\"RU\",L125,\"HATA!\")))","v":"BUT-SAN YARIM BOY KUTUSUZ DOT-MATRİS V2-P"},{"$f":"IF(Form!$AA$4=\"TR\",I125,IF(Form!$AA$4=\"EN\",K125,IF(Form!$AA$4=\"RU\",M125,\"HATA!\")))","v":"Çift sıralı buton yerleşimi, Dot-matris gösterge, bükümlü, + kapı açma-kapama, İnterkom ünitesi ve butonu, Fan butonu ve röle kartı - SC24 kartı, Sesli Anons (SD kart ve hoparlörler hariç) ve 3,5m haberleşme kablosu dahildir."},null,null,null,null,"BUT-SAN YARIM BOY KUTUSUZ DOT-MATRİS V2-P","Çift sıralı buton yerleşimi, Dot-matris gösterge, bükümlü, + kapı açma-kapama, İnterkom ünitesi ve butonu, Fan butonu ve röle kartı - SC24 kartı, Sesli Anons (SD kart ve hoparlörler hariç) ve 3,5m haberleşme kablosu dahildir.","BUT-SAN HALF LENGHT DOT-MATRIX V2-P","2 lines button layout, Dot-matrix Display, bended, +door open-close, Intercom - SC24 card, Voice Announcer (SD card and speakers not included) and 3,5m comm. cable included.","BUT-SAN HALF LENGHT DOT-MATRIX V2-P","2 lines button layout, Dot-matrix Display, bended, +door open-close, Intercom - SC24 card, Voice Announcer (SD card and speakers not included) and 3,5m comm. cable included."]
[null,{"$f":"IF(Form!$AA$4=\"TR\",H126,IF(Form!$AA$4=\"EN\",J126,IF(Form!$AA$4=\"RU\",L126,\"HATA!\")))","v":"BUT-SAN TAM BOY KUTUSUZ DOT-MATRİS V2-P"},{"$f":"IF(Form!$AA$4=\"TR\",I126,IF(Form!$AA$4=\"EN\",K126,IF(Form!$AA$4=\"RU\",M126,\"HATA!\")))","v":"180 x 1990 mm, Dot-matris gösterge, çift sıralı buton yerleşimi, bükümlü, + kapı açma-kapama, İnterkom ünitesi ve butonu, Fan butonu ve röle kartı - SC24 kartı, Sesli Anons (SD kart ve hoparlörler hariç) ve 3,5m haberleşme kablosu dahildir."},null,null,null,null,"BUT-SAN TAM BOY KUTUSUZ DOT-MATRİS V2-P","180 x 1990 mm, Dot-matris gösterge, çift sıralı buton yerleşimi, bükümlü, + kapı açma-kapama, İnterkom ünitesi ve butonu, Fan butonu ve röle kartı - SC24 kartı, Sesli Anons (SD kart ve hoparlörler hariç) ve 3,5m haberleşme kablosu dahildir.","BUT-SAN FULL LENGHT DOT-MATRIX V2-P","180 x 1990 mm, Dot-matrix Display,2 lines button layout, bended, +door open-close, Intercom - SC24 card, Voice Announcer (SD card and speakers not included) and 3,5m comm. cable included.","BUT-SAN FULL LENGHT DOT-MATRIX V2-P","180 x 1990 mm, Dot-matrix Display,2 lines button layout, bended, +door open-close, Intercom - SC24 card, Voice Announcer (SD card and speakers not included) and 3,5m comm. cable included."]
[null,{"$f":"IF(Form!$AA$4=\"TR\",H127,IF(Form!$AA$4=\"EN\",J127,IF(Form!$AA$4=\"RU\",L127,\"HATA!\")))","v":"Göstergesiz Seri Haberleşme Kabin Butonyeri Kartı"},{"$f":"IF(Form!$AA$4=\"TR\",I127,IF(Form!$AA$4=\"EN\",K127,IF(Form!$AA$4=\"RU\",M127,\"HATA!\")))","v":0},null,null,null,null,"Göstergesiz Seri Haberleşme Kabin Butonyeri Kartı",null,"Serial COP Boards w/o Display",null,"Serial COP Boards w/o Display"]
[null,{"$f":"IF(Form!$AA$4=\"TR\",H128,IF(Form!$AA$4=\"EN\",J128,IF(Form!$AA$4=\"RU\",L128,\"HATA!\")))","v":"SC24-T4"},{"$f":"IF(Form!$AA$4=\"TR\",I128,IF(Form!$AA$4=\"EN\",K128,IF(Form!$AA$4=\"RU\",M128,\"HATA!\")))","v":"Kabin butonyeri için 4'lü konnektörlü çağrı butonlarına uygun, göstergesiz seri haberleşme kartı + Sesli Anons \n(SD kart ve hoparlörler hariç)"},null,null,null,null,"SC24-T4","Kabin butonyeri için 4'lü konnektörlü çağrı butonlarına uygun, göstergesiz seri haberleşme kartı + Sesli Anons \n(SD kart ve hoparlörler hariç)","SC24-T4","COP board with serial communication for 4 pins call buttons/ Announcer included (SD card is not included)","SC24-T4","COP board with serial communication for 4 pins call buttons/ Announcer included (SD card is not included)"]
[null,{"$f":"IF(Form!$AA$4=\"TR\",H129,IF(Form!$AA$4=\"EN\",J129,IF(Form!$AA$4=\"RU\",L129,\"HATA!\")))","v":"SC24-T3"},{"$f":"IF(Form!$AA$4=\"TR\",I129,IF(Form!$AA$4=\"EN\",K129,IF(Form!$AA$4=\"RU\",M129,\"HATA!\")))","v":"Kabin butonyeri için 3'lü konnektörlü çağrı butonlarına uygun, göstergesiz seri haberleşme kartı + Sesli Anons \n(SD kart ve hoparlörler hariç)"},null,null,null,null,"SC24-T3","Kabin butonyeri için 3'lü konnektörlü çağrı butonlarına uygun, göstergesiz seri haberleşme kartı + Sesli Anons \n(SD kart ve hoparlörler hariç)","SC24-T3","COP board with serial communication for 3 pins call buttons/ Announcer included (SD card is not included)","SC24-T3","COP board with serial communication for 3 pins call buttons/ Announcer included (SD card is not included)"]

{"sheet":"Metinler","index":2,"n_rows":88,"n_cols":4,"rows_kept":88,"cut":false,"hidden":true,"merged":[]}
["Aşağıdaki tabloda satır ekleme yapılmamalıdır.","TR","EN","RU"]
[{"$f":"IF(Form!$AA$4=\"TR\",Metinler!B2,IF(Form!$AA$4=\"EN\",Metinler!C2,IF(Form!$AA$4=\"RU\",Metinler!D2,\"HATA!\")))","v":"Formu Temizle"},"Formu Temizle","Clean the Form","Очистка формы"]
[{"$f":"IF(Form!$AA$4=\"TR\",Metinler!B3,IF(Form!$AA$4=\"EN\",Metinler!C3,IF(Form!$AA$4=\"RU\",Metinler!D3,\"HATA!\")))","v":"Formu Temizlemek istediğinize emin misiniz? Girdiğiniz bütün veriler silinecektir!"},"Formu Temizlemek istediğinize emin misiniz? Girdiğiniz bütün veriler silinecektir!","Do you want to clear the form? Your inputted data will be deleted!","Вы хотите очистить форму? Все данные будут удалены!"]
[]
[]
[]
[]
[]
[]
[]
[]
[]
[]
[]
[]
[]
[]
[{"$f":"IF(Form!$AA$4=\"TR\",Metinler!B18,IF(Form!$AA$4=\"EN\",Metinler!C18,IF(Form!$AA$4=\"RU\",Metinler!D18,\"HATA!\")))","v":"MİK-EL ELEKTRONİK KUMANDA PANOSU & BUTONYER TEKLİF / SİPARİŞ FORMU"},"MİK-EL ELEKTRONİK KUMANDA PANOSU & BUTONYER TEKLİF / SİPARİŞ FORMU","MIK-EL ELEKTRONIK CONTROL PANEL & COP & LOP OFFER / ORDER FORM","MIK-EL ELEKTRONIK ФОРМА ЗАКАЗА СТАНЦИИ УПРАВЛЕНИЯ И КНОПОК ВЫЗОВА, ПРИКАЗА"]
[{"$f":"IF(Form!$AA$4=\"TR\",Metinler!B19,IF(Form!$AA$4=\"EN\",Metinler!C19,IF(Form!$AA$4=\"RU\",Metinler!D19,\"HATA!\")))","v":"Firma Adı"},"Firma Adı","Company Name","Наименование Компании"]
[{"$f":"IF(Form!$AA$4=\"TR\",Metinler!B20,IF(Form!$AA$4=\"EN\",Metinler!C20,IF(Form!$AA$4=\"RU\",Metinler!D20,\"HATA!\")))","v":"Referans/Proje Adı"},"Referans/Proje Adı","Referance/Project Name","Наименование Проекта"]
[{"$f":"IF(Form!$AA$4=\"TR\",Metinler!B21,IF(Form!$AA$4=\"EN\",Metinler!C21,IF(Form!$AA$4=\"RU\",Metinler!D21,\"HATA!\")))","v":"E-posta Adresi"},"E-posta Adresi","E-mail Address","E-mail Адрес"]
[{"$f":"IF(Form!$AA$4=\"TR\",Metinler!B22,IF(Form!$AA$4=\"EN\",Metinler!C22,IF(Form!$AA$4=\"RU\",Metinler!D22,\"HATA!\")))","v":"Adet"},"Adet","Quantity","Количество"]
[{"$f":"IF(Form!$AA$4=\"TR\",Metinler!B23,IF(Form!$AA$4=\"EN\",Metinler!C23,IF(Form!$AA$4=\"RU\",Metinler!D23,\"HATA!\")))","v":"adet"},"adet","pcs","шт"]
[{"$f":"IF(Form!$AA$4=\"TR\",Metinler!B24,IF(Form!$AA$4=\"EN\",Metinler!C24,IF(Form!$AA$4=\"RU\",Metinler!D24,\"HATA!\")))","v":"Tarih"},"Tarih","Date","Дата"]
[{"$f":"IF(Form!$AA$4=\"TR\",Metinler!B25,IF(Form!$AA$4=\"EN\",Metinler!C25,IF(Form!$AA$4=\"RU\",Metinler!D25,\"HATA!\")))","v":"Talep Edilen Teslim Tarihi"},"Talep Edilen Teslim Tarihi","Requested Delivery Time","Время постави"]
[{"$f":"IF(Form!$AA$4=\"TR\",Metinler!B26,IF(Form!$AA$4=\"EN\",Metinler!C26,IF(Form!$AA$4=\"RU\",Metinler!D26,\"HATA!\")))","v":"Kumanda Sistemi Modeli"},"Kumanda Sistemi Modeli","Controller Model","Модель станции управления"]
[{"$f":"IF(Form!$AA$4=\"TR\",Metinler!B27,IF(Form!$AA$4=\"EN\",Metinler!C27,IF(Form!$AA$4=\"RU\",Metinler!D27,\"HATA!\")))","v":"Lütfen kumanda sistemini seçiniz"},"Lütfen kumanda sistemini seçiniz","Please select a controller","Пожалуйста выбирете станцию управления"]
[{"$f":"IF(Form!$AA$4=\"TR\",Metinler!B28,IF(Form!$AA$4=\"EN\",Metinler!C28,IF(Form!$AA$4=\"RU\",Metinler!D28,\"HATA!\")))","v":"Kumanda Türü"},"Kumanda Türü","Controller Type","Тип станции управления"]
[{"$f":"IF(Form!$AA$4=\"TR\",Metinler!B29,IF(Form!$AA$4=\"EN\",Metinler!C29,IF(Form!$AA$4=\"RU\",Metinler!D29,\"HATA!\")))","v":"Tek / Grup Çalışma"},"Tek / Grup Çalışma","Single / Group","Одиночный / В группе"]
[{"$f":"IF(Form!$AA$4=\"TR\",Metinler!B30,IF(Form!$AA$4=\"EN\",Metinler!C30,IF(Form!$AA$4=\"RU\",Metinler!D30,\"HATA!\")))","v":"Tahrik Türü"},"Tahrik Türü","Traction Types","Тип привода"]
[{"$f":"IF(Form!$AA$4=\"TR\",Metinler!B31,IF(Form!$AA$4=\"EN\",Metinler!C31,IF(Form!$AA$4=\"RU\",Metinler!D31,\"HATA!\")))","v":"Asansör Standardı"},"Asansör Standardı","Lift Standards","Стандарты"]
[{"$f":"IF(Form!$AA$4=\"TR\",Metinler!B32,IF(Form!$AA$4=\"EN\",Metinler!C32,IF(Form!$AA$4=\"RU\",Metinler!D32,\"HATA!\")))","v":"Genel Özellikler"},"Genel Özellikler","General Specifications","Основные спецификации"]
[{"$f":"IF(Form!$AA$4=\"TR\",Metinler!B33,IF(Form!$AA$4=\"EN\",Metinler!C33,IF(Form!$AA$4=\"RU\",Metinler!D33,\"HATA!\")))","v":"Durak Sayısı"},"Durak Sayısı","No of Stops","Кол-во остановок"]
[{"$f":"IF(Form!$AA$4=\"TR\",Metinler!B34,IF(Form!$AA$4=\"EN\",Metinler!C34,IF(Form!$AA$4=\"RU\",Metinler!D34,\"HATA!\")))","v":"Motor / Hidrolik"},"Motor / Hidrolik","Motor / Hydraulic","Мотор / Гидравлика"]
[{"$f":"IF(Form!$AA$4=\"TR\",Metinler!B35,IF(Form!$AA$4=\"EN\",Metinler!C35,IF(Form!$AA$4=\"RU\",Metinler!D35,\"HATA!\")))","v":"Konum Bilgisi"},"Konum Bilgisi","Position Information","Информаци о месте установке"]
[{"$f":"IF(Form!$AA$4=\"TR\",Metinler!B36,IF(Form!$AA$4=\"EN\",Metinler!C36,IF(Form!$AA$4=\"RU\",Metinler!D36,\"HATA!\")))","v":"Durak"},"Durak","Stops","Остановок"]
[{"$f":"IF(Form!$AA$4=\"TR\",Metinler!B37,IF(Form!$AA$4=\"EN\",Metinler!C37,IF(Form!$AA$4=\"RU\",Metinler!D37,\"HATA!\")))","v":"Güç / Akım"},"Güç / Akım","Power / Current","Мощность мотора"]
[{"$f":"IF(Form!$AA$4=\"TR\",Metinler!B38,IF(Form!$AA$4=\"EN\",Metinler!C38,IF(Form!$AA$4=\"RU\",Metinler!D38,\"HATA!\")))","v":"Kabin Kapasitesi"},"Kabin Kapasitesi","Car Capacity","Грузоподъемность"]
[{"$f":"IF(Form!$AA$4=\"TR\",Metinler!B39,IF(Form!$AA$4=\"EN\",Metinler!C39,IF(Form!$AA$4=\"RU\",Metinler!D39,\"HATA!\")))","v":"Kabin Hızı"},"Kabin Hızı","Car Speed","Скорость"]
[{"$f":"IF(Form!$AA$4=\"TR\",Metinler!B40,IF(Form!$AA$4=\"EN\",Metinler!C40,IF(Form!$AA$4=\"RU\",Metinler!D40,\"HATA!\")))","v":"Motor Fren Gerilimi"},"Motor Fren Gerilimi","Motor Brake Voltage","Тормозная катушка V"]
[{"$f":"IF(Form!$AA$4=\"TR\",Metinler!B41,IF(Form!$AA$4=\"EN\",Metinler!C41,IF(Form!$AA$4=\"RU\",Metinler!D41,\"HATA!\")))","v":"Kapılar"},"Kapılar","Doors","Двери"]
[{"$f":"IF(Form!$AA$4=\"TR\",Metinler!B42,IF(Form!$AA$4=\"EN\",Metinler!C42,IF(Form!$AA$4=\"RU\",Metinler!D42,\"HATA!\")))","v":"Otomatik Kapı"},"Otomatik Kapı","Automatic Door","Автоматическая дверь"]
[{"$f":"IF(Form!$AA$4=\"TR\",Metinler!B43,IF(Form!$AA$4=\"EN\",Metinler!C43,IF(Form!$AA$4=\"RU\",Metinler!D43,\"HATA!\")))","v":"Kat Kapısı"},"Kat Kapısı","Landing Door","Распашная дверь"]
[{"$f":"IF(Form!$AA$4=\"TR\",Metinler!B44,IF(Form!$AA$4=\"EN\",Metinler!C44,IF(Form!$AA$4=\"RU\",Metinler!D44,\"HATA!\")))","v":"Kapı Mot Volt"},"Kapı Mot Volt","Door Mot Volt","Дверной мотор V"]
[{"$f":"IF(Form!$AA$4=\"TR\",Metinler!B45,IF(Form!$AA$4=\"EN\",Metinler!C45,IF(Form!$AA$4=\"RU\",Metinler!D45,\"HATA!\")))","v":"2. Kapı (eğer varsa)"},"2. Kapı (eğer varsa)","2nd Door (if any)","2-я дверь (если есть)"]
[{"$f":"IF(Form!$AA$4=\"TR\",Metinler!B46,IF(Form!$AA$4=\"EN\",Metinler!C46,IF(Form!$AA$4=\"RU\",Metinler!D46,\"HATA!\")))","v":"Otomatik Kapı"},"Otomatik Kapı","Automatic Door","Автоматическая дверь"]
[{"$f":"IF(Form!$AA$4=\"TR\",Metinler!B47,IF(Form!$AA$4=\"EN\",Metinler!C47,IF(Form!$AA$4=\"RU\",Metinler!D47,\"HATA!\")))","v":"Kat Kapısı"},"Kat Kapısı","Landing Door","Распашная дверь"]
[{"$f":"IF(Form!$AA$4=\"TR\",Metinler!B48,IF(Form!$AA$4=\"EN\",Metinler!C48,IF(Form!$AA$4=\"RU\",Metinler!D48,\"HATA!\")))","v":"Kapı Mot Volt"},"Kapı Mot Volt","Door Mot Volt","Дверной мотор V"]
[{"$f":"IF(Form!$AA$4=\"TR\",Metinler!B49,IF(Form!$AA$4=\"EN\",Metinler!C49,IF(Form!$AA$4=\"RU\",Metinler!D49,\"HATA!\")))","v":"Lütfen 2. kapı için 'Form A' formunu doldurunuz."},"Lütfen 2. kapı için 'Form A' formunu doldurunuz.","Please fill the 'Form A' for 2nd door.","Пожалйста заполните \"Форму А\" для 2-й двери"]
[{"$f":"IF(Form!$AA$4=\"TR\",Metinler!B50,IF(Form!$AA$4=\"EN\",Metinler!C50,IF(Form!$AA$4=\"RU\",Metinler!D50,\"HATA!\")))","v":"Lirpomp Gerilimi"},"Lirpomp Gerilimi","Door Lock Magnet","Напряжение дверного замка"]
[{"$f":"IF(Form!$AA$4=\"TR\",Metinler!B51,IF(Form!$AA$4=\"EN\",Metinler!C51,IF(Form!$AA$4=\"RU\",Metinler!D51,\"HATA!\")))","v":"3-Faz Kapı Mot. için 3VF"},"3-Faz Kapı Mot. için 3VF","VVVF for 3-Phase Door","VVVF для 3-х фазного мотора"]
[{"$f":"IF(Form!$AA$4=\"TR\",Metinler!B52,IF(Form!$AA$4=\"EN\",Metinler!C52,IF(Form!$AA$4=\"RU\",Metinler!D52,\"HATA!\")))","v":"VVVF Asansörler için Inverter Seçimi"},"VVVF Asansörler için Inverter Seçimi","Inverter Options for VVVF Lifts","Опции для лифтов с Инвертором VVVF"]
[{"$f":"IF(Form!$AA$4=\"TR\",Metinler!B53,IF(Form!$AA$4=\"EN\",Metinler!C53,IF(Form!$AA$4=\"RU\",Metinler!D53,\"HATA!\")))","v":"İnverter Modeli"},"İnverter Modeli","Inverter Model","Модель Инвертора"]
[{"$f":"IF(Form!$AA$4=\"TR\",Metinler!B54,IF(Form!$AA$4=\"EN\",Metinler!C54,IF(Form!$AA$4=\"RU\",Metinler!D54,\"HATA!\")))","v":"Enkoder Kartı"},"Enkoder Kartı","Encoder Cards","Плата энкодерная"]
[{"$f":"IF(Form!$AA$4=\"TR\",Metinler!B55,IF(Form!$AA$4=\"EN\",Metinler!C55,IF(Form!$AA$4=\"RU\",Metinler!D55,\"HATA!\")))","v":"Opsiyonlar & Diğer Özellikler"},"Opsiyonlar & Diğer Özellikler","Options & Other Specifications","Опции и другие Специфиации"]
[{"$f":"IF(Form!$AA$4=\"TR\",Metinler!B56,IF(Form!$AA$4=\"EN\",Metinler!C56,IF(Form!$AA$4=\"RU\",Metinler!D56,\"HATA!\")))","v":"Kata Getirme Cihazı"},"Kata Getirme Cihazı","Emergency Rescue Device","Противоаварийные устройства"]
[{"$f":"IF(Form!$AA$4=\"TR\",Metinler!B57,IF(Form!$AA$4=\"EN\",Metinler!C57,IF(Form!$AA$4=\"RU\",Metinler!D57,\"HATA!\")))","v":"Valf"},"Valf","Valve","Клапан"]
[{"$f":"IF(Form!$AA$4=\"TR\",Metinler!B58,IF(Form!$AA$4=\"EN\",Metinler!C58,IF(Form!$AA$4=\"RU\",Metinler!D58,\"HATA!\")))","v":"Emniyet Devresi"},"Emniyet Devresi","Safety Circuit","Цепь безопасности"]
[{"$f":"IF(Form!$AA$4=\"TR\",Metinler!B59,IF(Form!$AA$4=\"EN\",Metinler!C59,IF(Form!$AA$4=\"RU\",Metinler!D59,\"HATA!\")))","v":"Kumanda Panosu Tipi"},"Kumanda Panosu Tipi","Control Panel Type","Тип станции управления"]
[{"$f":"IF(Form!$AA$4=\"TR\",Metinler!B60,IF(Form!$AA$4=\"EN\",Metinler!C60,IF(Form!$AA$4=\"RU\",Metinler!D60,\"HATA!\")))","v":"Kum. Panosu için Baza"},"Kum. Panosu için Baza","Base for Control Panel","База для панели управления"]
[{"$f":"IF(Form!$AA$4=\"TR\",Metinler!B61,IF(Form!$AA$4=\"EN\",Metinler!C61,IF(Form!$AA$4=\"RU\",Metinler!D61,\"HATA!\")))","v":"Kontaktör Tipi"},"Kontaktör Tipi","Contactor Type","Тип контакторов"]
[{"$f":"IF(Form!$AA$4=\"TR\",Metinler!B62,IF(Form!$AA$4=\"EN\",Metinler!C62,IF(Form!$AA$4=\"RU\",Metinler!D62,\"HATA!\")))","v":"Ön Tetik. Reg. Bobin Gerilimi"},"Ön Tetik. Reg. Bobin Gerilimi","POSG Coil Voltage","Ограничитель сорости V"]
[{"$f":"IF(Form!$AA$4=\"TR\",Metinler!B63,IF(Form!$AA$4=\"EN\",Metinler!C63,IF(Form!$AA$4=\"RU\",Metinler!D63,\"HATA!\")))","v":"Seviyeleme & Erken Kapı Açma"},"Seviyeleme & Erken Kapı Açma","Re-levell. & Adv. Door Opening","Предворительное откр. Дверей"]
[{"$f":"IF(Form!$AA$4=\"TR\",Metinler!B64,IF(Form!$AA$4=\"EN\",Metinler!C64,IF(Form!$AA$4=\"RU\",Metinler!D64,\"HATA!\")))","v":"3VF için Ekranlı Mot Kabl (7M)"},"3VF için Ekranlı Mot Kabl (7M)","Screen. Mot. Cable for VF (7M)","Моторный кабель VF (7М)"]
[{"$f":"IF(Form!$AA$4=\"TR\",Metinler!B65,IF(Form!$AA$4=\"EN\",Metinler!C65,IF(Form!$AA$4=\"RU\",Metinler!D65,\"HATA!\")))","v":"Elektrik Dağıtım Panosu"},"Elektrik Dağıtım Panosu","Mains Supply Inside CP","Основное питание СУ"]
[{"$f":"IF(Form!$AA$4=\"TR\",Metinler!B66,IF(Form!$AA$4=\"EN\",Metinler!C66,IF(Form!$AA$4=\"RU\",Metinler!D66,\"HATA!\")))","v":"Revizyon kutusu dahildir."},"Revizyon kutusu dahildir.","Inspection box is included.","Блок ревизии прилагается"]
[{"$f":"IF(Form!$AA$4=\"TR\",Metinler!B67,IF(Form!$AA$4=\"EN\",Metinler!C67,IF(Form!$AA$4=\"RU\",Metinler!D67,\"HATA!\")))","v":"Kat ve Kabin Butonyerleri"},"Kat ve Kabin Butonyerleri","Car and Landing Operator Panels","Пульт приказа и Кнопки вызова"]
[{"$f":"IF(Form!$AA$4=\"TR\",Metinler!B68,IF(Form!$AA$4=\"EN\",Metinler!C68,IF(Form!$AA$4=\"RU\",Metinler!D68,\"HATA!\")))","v":"COP"},"COP","COP","Пульт приаза"]
[{"$f":"IF(Form!$AA$4=\"TR\",Metinler!B69,IF(Form!$AA$4=\"EN\",Metinler!C69,IF(Form!$AA$4=\"RU\",Metinler!D69,\"HATA!\")))","v":"LOPs"},"LOPs","LOPs","Кнопки вызова"]
[{"$f":"IF(Form!$AA$4=\"TR\",Metinler!B70,IF(Form!$AA$4=\"EN\",Metinler!C70,IF(Form!$AA$4=\"RU\",Metinler!D70,\"HATA!\")))","v":"Durak İsimleri"},"Durak İsimleri","Floor Names","Наименование этажей"]
[{"$f":"IF(Form!$AA$4=\"TR\",Metinler!B71,IF(Form!$AA$4=\"EN\",Metinler!C71,IF(Form!$AA$4=\"RU\",Metinler!D71,\"HATA!\")))","v":"Anons Modülü için 4GB SD Kart"},"Anons Modülü için 4GB SD Kart","4GB SD Card for Voice Announcer","4 Гб SD Карта для голосового анонса"]
[{"$f":"IF(Form!$AA$4=\"TR\",Metinler!B72,IF(Form!$AA$4=\"EN\",Metinler!C72,IF(Form!$AA$4=\"RU\",Metinler!D72,\"HATA!\")))","v":"Işıklandırmalı Firma Logosu"},"Işıklandırmalı Firma Logosu","Back-light Company Logo","Логотип компании на заднем фоне"]
[{"$f":"IF(Form!$AA$4=\"TR\",Metinler!B73,IF(Form!$AA$4=\"EN\",Metinler!C73,IF(Form!$AA$4=\"RU\",Metinler!D73,\"HATA!\")))","v":"2. İntercom Modülü"},"2. İntercom Modülü","2nd Intercom Module","2-й Интерком модуль"]
[{"$f":"IF(Form!$AA$4=\"TR\",Metinler!B74,IF(Form!$AA$4=\"EN\",Metinler!C74,IF(Form!$AA$4=\"RU\",Metinler!D74,\"HATA!\")))","v":"Kabin Butonyeri için Lazer Logo"},"Kabin Butonyeri için Lazer Logo","Laser Logo for COP","Логотип на пульте приказа"]
[{"$f":"IF(Form!$AA$4=\"TR\",Metinler!B75,IF(Form!$AA$4=\"EN\",Metinler!C75,IF(Form!$AA$4=\"RU\",Metinler!D75,\"HATA!\")))","v":"Kat Butonyeri için Lazer Logo"},"Kat Butonyeri için Lazer Logo","Laser Logo for LOPs","Логотип на кнопах вызова"]
[{"$f":"IF(Form!$AA$4=\"TR\",Metinler!B76,IF(Form!$AA$4=\"EN\",Metinler!C76,IF(Form!$AA$4=\"RU\",Metinler!D76,\"HATA!\")))","v":"SC24 Kartı için Kablo Seti"},"SC24 Kartı için Kablo Seti","Cable Set for SC24 Board","Кабель для SC24 платы"]
[{"$f":"IF(Form!$AA$4=\"TR\",Metinler!B77,IF(Form!$AA$4=\"EN\",Metinler!C77,IF(Form!$AA$4=\"RU\",Metinler!D77,\"HATA!\")))","v":"SL Kartları için Kablo Seti"},"SL Kartları için Kablo Seti","Cable Set for SL Boards","Кабель для SL платы"]
[{"$f":"IF(Form!$AA$4=\"TR\",Metinler!B78,IF(Form!$AA$4=\"EN\",Metinler!C78,IF(Form!$AA$4=\"RU\",Metinler!D78,\"HATA!\")))","v":"Kabin But. & Rev. Kutusu Bağ. Kablosu"},"Kabin But. & Rev. Kutusu Bağ. Kablosu","COP to Insp. Box Connection Cable","Кабель от Блока ревизии до Пульта приказа"]
[{"$f":"IF(Form!$AA$4=\"TR\",Metinler!B79,IF(Form!$AA$4=\"EN\",Metinler!C79,IF(Form!$AA$4=\"RU\",Metinler!D79,\"HATA!\")))","v":"Boş bırakılan VAR/YOK seçimleri 'YOK' kabul edilecektir."},"Boş bırakılan VAR/YOK seçimleri 'YOK' kabul edilecektir.","Blank YES/NO options will be assumed as 'NO'.","Не заполненые поля будут отмечены как \"нет\""]
[{"$f":"IF(Form!$AA$4=\"TR\",Metinler!B80,IF(Form!$AA$4=\"EN\",Metinler!C80,IF(Form!$AA$4=\"RU\",Metinler!D80,\"HATA!\")))","v":"Notlar"},"Notlar","Notes","Заметки"]
[{"$f":"IF(Form!$AA$4=\"TR\",Metinler!B81,IF(Form!$AA$4=\"EN\",Metinler!C81,IF(Form!$AA$4=\"RU\",Metinler!D81,\"HATA!\")))","v":"Sipariş Onayı"},"Sipariş Onayı","Order Confirmation","Подтверждение заказа"]
[{"$f":"IF(Form!$AA$4=\"TR\",Metinler!B82,IF(Form!$AA$4=\"EN\",Metinler!C82,IF(Form!$AA$4=\"RU\",Metinler!D82,\"HATA!\")))","v":"Lütfen hangi katta hangi kapının açılacağını aşağıda belirtiniz."},"Lütfen hangi katta hangi kapının açılacağını aşağıda belirtiniz.","Please mark opening combinations of the doors below.","Отметьте комбинацию открывания дверей на этажах"]
[{"$f":"IF(Form!$AA$4=\"TR\",Metinler!B83,IF(Form!$AA$4=\"EN\",Metinler!C83,IF(Form!$AA$4=\"RU\",Metinler!D83,\"HATA!\")))","v":"A Kapısı"},"A Kapısı","Door A","Дверь А"]
[{"$f":"IF(Form!$AA$4=\"TR\",Metinler!B84,IF(Form!$AA$4=\"EN\",Metinler!C84,IF(Form!$AA$4=\"RU\",Metinler!D84,\"HATA!\")))","v":"B Kapısı"},"B Kapısı","Door B","Дверь Б"]
[{"$f":"IF(Form!$AA$4=\"TR\",Metinler!B85,IF(Form!$AA$4=\"EN\",Metinler!C85,IF(Form!$AA$4=\"RU\",Metinler!D85,\"HATA!\")))","v":"Katlar"},"Katlar","Floors","Этажи"]
[{"$f":"IF(Form!$AA$4=\"TR\",Metinler!B86,IF(Form!$AA$4=\"EN\",Metinler!C86,IF(Form!$AA$4=\"RU\",Metinler!D86,\"HATA!\")))","v":"Kattan Kata Mesafeler (mm)"},"Kattan Kata Mesafeler (mm)","Floor to Floor Distances (mm)","Расстояние между этажами"]
[{"$f":"IF(Form!$AA$4=\"TR\",Metinler!B87,IF(Form!$AA$4=\"EN\",Metinler!C87,IF(Form!$AA$4=\"RU\",Metinler!D87,\"HATA!\")))","v":"En üst kat butonu ve pano arası mesafe =>"},"En üst kat butonu ve pano arası mesafe =>","Distance from top floor LOP to Control Panel =>","Расстояние от блока ревизии до кнопки вызова последнего этажа"]
[{"$f":"IF(Form!$AA$4=\"TR\",Metinler!B88,IF(Form!$AA$4=\"EN\",Metinler!C88,IF(Form!$AA$4=\"RU\",Metinler!D88,\"HATA!\")))","v":"Lütfen kattan kata mesafeler için 'Form A' formunu doldurunuz."},"Lütfen kattan kata mesafeler için 'Form A' formunu doldurunuz.","Please fill the 'Form A' for floor to floor distances.","Заполните расстояние между этажами в \"Форме А\""]

{"sheet":"Form A","index":3,"n_rows":31,"n_cols":7,"rows_kept":31,"cut":false,"hidden":false,"merged":[]}
[]
[null,{"$f":"IF(Form!H6=\"\",Form!C6,Form!H6)","v":"Firma Adı"}]
[null,{"$f":"IF(Form!H7=\"\",Form!C7,Form!H7)","v":"Referans/Proje Adı"}]
[null,{"$f":"Form!F18&\" \"&Form!H18","v":" Durak"}]
[null,null,{"$f":"Metinler!A82","v":"Lütfen hangi katta hangi kapının açılacağını aşağıda belirtiniz."}]
[]
[null,null,{"$f":"Metinler!A86","v":"Kattan Kata Mesafeler (mm)"},{"$f":"Metinler!A85","v":"Katlar"},{"$f":"Metinler!A83","v":"A Kapısı"},{"$f":"Metinler!A84","v":"B Kapısı"},{"$f":"Metinler!A85","v":"Katlar"}]
[null,{"$f":"Metinler!A87","v":"En üst kat butonu ve pano arası mesafe =>"},null,24,null,null,24]
[null,null,null,23,null,null,23]
[null,null,null,22,null,null,22]
[null,null,null,21,null,null,21]
[null,null,null,20,null,null,20]
[null,null,null,19,null,null,19]
[null,null,null,18,null,null,18]
[null,null,null,17,null,null,17]
[null,null,null,16,null,null,16]
[null,null,null,15,null,null,15]
[null,null,null,14,null,null,14]
[null,null,null,13,null,null,13]
[null,null,null,12,null,null,12]
[null,null,null,11,null,null,11]
[null,null,null,10,null,null,10]
[null,null,null,9,null,null,9]
[null,null,null,8,null,null,8]
[null,null,null,7,null,null,7]
[null,null,null,6,null,null,6]
[null,null,null,5,null,null,5]
[null,null,null,4,null,null,4]
[null,null,null,3,null,null,3]
[null,null,null,2,null,null,2]
[null,null,null,1,null,null,1]